Workbook

Sheet Acide fort monoprotique
A1: # | B1: VB [ml] | C1: pH
C2: Acide fort | D2: Base forte
A3: 0 | B3: 0 | C3: =-LOG(H4) -> 1.124938737 | D3: =IF(B3>$H$10,14+LOG((($H$7*B3/1000)-($H$3*$H$4/1000))/(($H$3+B3)/1000)),NA()) ->  | F3: Acide fort monoprotique : | G3: VHA= | H3: 25.00 | I3: ml | L3: 20
A4: =A3+1 -> 1 | B4: =A4*$H$8 -> 5.00E-02 | C4: =IF(B4<$H$10,-LOG((($H$3*$H$4/1000)-(B4*$H$7/1000))/(($H$3+B4)/1000)),NA()) -> 1.126966124 | D4: =IF(B4>$H$10,14+LOG((($H$7*B4/1000)-($H$3*$H$4/1000))/(($H$3+B4)/1000)),NA()) ->  | G4: cHA= | H4: 0.075 | I4: M
A5: =A4+1 -> 2 | B5: =A5*$H$8 -> 1.00E-01 | C5: =IF(B5<$H$10,-LOG((($H$3*$H$4/1000)-(B5*$H$7/1000))/(($H$3+B5)/1000)),NA()) -> 1.128994885 | D5: =IF(B5>$H$10,14+LOG((($H$7*B5/1000)-($H$3*$H$4/1000))/(($H$3+B5)/1000)),NA()) -> 
A6: 3 | B6: =A6*$H$8 -> 1.50E-01 | C6: =IF(B6<$H$10,-LOG((($H$3*$H$4/1000)-(B6*$H$7/1000))/(($H$3+B6)/1000)),NA()) -> 1.131025045
A7: 4 | B7: 2.00E-01 | C7: =IF(B7<$H$10,-LOG((($H$3*$H$4/1000)-(B7*$H$7/1000))/(($H$3+B7)/1000)),NA()) -> 1.133056627 | F7: Monobase forte : | G7: cB= | H7: 0.100 | I7: M
A8: 5 | B8: 2.50E-01 | C8: 1.135089654 | G8: VB,incr.= | H8: 5.00E-02 | I8: ml
A9: 6 | B9: 3.00E-01 | C9: 1.137124151
A10: 7 | B10: 3.50E-01 | C10: 1.139160141 | F10: Equivalence : | G10: VB= | H10: =H3*H4/H7 -> 18.8 | I10: ml | K10: pH= | L10: 7.00 | P10: TRUE | Q10: =IF(P10=FALSE,"",0) -> 0 | R10: =IF(P10=FALSE,"",L10) -> 7.00 | S10: =IF(P10=FALSE,"",Q11) -> 18.8 | T10: =IF(P10=FALSE,"",0) -> 0
A11: 8 | B11: 4.00E-01 | C11: 1.141197648 | Q11: =IF(P10=FALSE,NA(),H10) -> 18.8 | R11: =IF(P10=FALSE,NA(),L10) -> 7.00 | S11: =IF(P10=FALSE,"",Q11) -> 18.8 | T11: =IF(P10=FALSE,"",15) -> 15
A12: 9 | B12: 4.50E-01 | C12: 1.143236697 | F12: Tangente 1 : | G12: =IF(G13=TRUE,L3,"") -> 20 | H12: =IF(G13=FALSE,NA(),0) -> 0.00 | L12: =IF(G13=FALSE,NA(),$L$14-($H$14-H12)/($H$15-$H$14)*($L$15-$L$14)) -> 3.1710 | Q12: =IF(P10=FALSE,"",B1002) -> 5.00E+01 | R12: =IF(P10=FALSE,"",L10) -> 7.00
A13: 10 | B13: 5.00E-01 | C13: 1.145277312 | G13: TRUE | H13: =IF(G13=FALSE,NA(),H10) -> 18.75 | L13: =IF(G13=FALSE,NA(),$L$14-($H$14-H13)/($H$15-$H$14)*($L$15-$L$14)) -> 10.9351
A14: 11 | B14: 5.50E-01 | C14: 1.147319516 | H14: =IF(G13=FALSE,NA(),H10+G12*H8) -> 19.75 | L14: =IF(G13=FALSE,NA(),14+LOG((($H$7*H14/1000)-($H$3*$H$4/1000))/(($H$3+H14)/1000))) -> 11.3492
A15: 12 | B15: 6.00E-01 | C15: 1.149363336 | H15: =IF(G13=FALSE,NA(),H14+H8) -> 19.80 | L15: =IF(G13=FALSE,NA(),14+LOG((($H$7*H15/1000)-($H$3*$H$4/1000))/(($H$3+H15)/1000))) -> 11.3699
A16: 13 | B16: 6.50E-01 | C16: 1.151408795 | H16: =IF(G13=FALSE,NA(),B1002) -> 49.95 | L16: =IF(G13=FALSE,NA(),$L$15+(H16-$H$15)/($H$15-$H$14)*($L$15-$L$14)) -> 23.8546
A17: 14 | B17: 7.00E-01 | C17: 1.153455917 | F17: Equivalence : | H17: =IF(G13=FALSE,NA(),H12) -> 0.00 | L17: =IF(G13=FALSE,NA(),L12-(L13-L18)) -> -0.7641
A18: 15 | B18: 7.50E-01 | C18: 1.155504728 | H18: =IF(G13=FALSE,NA(),H10) -> 18.8 | L18: =IF(G13=FALSE,NA(),L10) -> 7.00
A19: 16 | B19: 8.00E-01 | C19: 1.157555253 | H19: =IF(G13=FALSE,NA(),H16) -> 49.95 | L19: =IF(G13=FALSE,NA(),L16-(L13-L18)) -> 19.9195
A20: 17 | B20: 8.50E-01 | C20: 1.159607516 | F20: Tangente 2 : | H20: =IF(G13=FALSE,NA(),H12) -> 0.00 | L20: =IF(G13=FALSE,NA(),L21-((H21-H20)/(H22-H21))*(L22-L21)) -> -5.0717
A21: 18 | B21: 9.00E-01 | C21: 1.161661544 | H21: =IF(G13=FALSE,NA(),H22-H8) -> 17.70 | L21: =IF(G13=FALSE,NA(),-LOG((($H$3*$H$4/1000)-(H21*$H$7/1000))/(($H$3+H21)/1000))) -> 2.609238576
A22: 19 | B22: 9.50E-01 | C22: 1.16371736 | H22: =IF(G13=FALSE,NA(),H10-G12*H8) -> 17.75 | L22: =IF(G13=FALSE,NA(),-LOG((($H$3*$H$4/1000)-(H22*$H$7/1000))/(($H$3+H22)/1000))) -> 2.630936119
A23: 20 | B23: 1.00E+00 | C23: 1.165774991 | H23: =IF(G13=FALSE,NA(),H16) -> 49.95 | L23: =IF(G13=FALSE,NA(),L22+(H23-H22)/(H22-H21)*(L22-L21)) -> 16.60415388
A24: 21 | B24: 1.05E+00 | C24: 1.167834461
A25: 22 | B25: 1.10E+00 | C25: 1.169895798
A26: 23 | B26: 1.15E+00 | C26: 1.171959025
A27: 24 | B27: 1.20E+00 | C27: 1.174024171
A28: 25 | B28: 1.25E+00 | C28: 1.176091259
A29: 26 | B29: 1.30E+00 | C29: 1.178160317
A30: 27 | B30: 1.35E+00 | C30: 1.180231371
A31: 28 | B31: 1.40E+00 | C31: 1.182304448
A32: 29 | B32: 1.45E+00 | C32: 1.184379573
A33: 30 | B33: 1.50E+00 | C33: 1.186456775
A34: 31 | B34: 1.55E+00 | C34: 1.188536079
A35: 32 | B35: 1.60E+00 | C35: 1.190617512
A36: 33 | B36: 1.65E+00 | C36: 1.192701103
A37: 34 | B37: 1.70E+00 | C37: 1.194786878
A38: 35 | B38: 1.75E+00 | C38: 1.196874865
A39: 36 | B39: 1.80E+00 | C39: 1.198965091
A40: 37 | B40: 1.85E+00 | C40: 1.201057585
A41: 38 | B41: 1.90E+00 | C41: 1.203152375
A42: 39 | B42: 1.95E+00 | C42: 1.205249488
A43: 40 | B43: 2.00E+00 | C43: 1.207348953
A44: 41 | B44: 2.05E+00 | C44: 1.209450798
A45: 42 | B45: 2.10E+00 | C45: 1.211555053
A46: 43 | B46: 2.15E+00 | C46: 1.213661746
A47: 44 | B47: 2.20E+00 | C47: 1.215770906
A48: 45 | B48: 2.25E+00 | C48: 1.217882562
A49: 46 | B49: 2.30E+00 | C49: 1.219996745
A50: 47 | B50: 2.35E+00 | C50: 1.222113483
A51: 48 | B51: 2.40E+00 | C51: 1.224232806
A52: 49 | B52: 2.45E+00 | C52: 1.226354744
A53: 50 | B53: 2.50E+00 | C53: 1.228479329
A54: 51 | B54: 2.55E+00 | C54: 1.230606589
A55: 52 | B55: 2.60E+00 | C55: 1.232736555
A56: 53 | B56: 2.65E+00 | C56: 1.23486926
A57: 54 | B57: 2.70E+00 | C57: 1.237004732
A58: 55 | B58: 2.75E+00 | C58: 1.239143005
A59: 56 | B59: 2.80E+00 | C59: 1.241284109
A60: 57 | B60: 2.85E+00 | C60: 1.243428075
A61: 58 | B61: 2.90E+00 | C61: 1.245574937
A62: 59 | B62: 2.95E+00 | C62: 1.247724725
A63: 60 | B63: 3.00E+00 | C63: 1.249877473
A64: 61 | B64: 3.05E+00 | C64: 1.252033213
A65: 62 | B65: 3.10E+00 | C65: 1.254191978
A66: 63 | B66: 3.15E+00 | C66: 1.256353801
A67: 64 | B67: 3.20E+00 | C67: 1.258518715
A68: 65 | B68: 3.25E+00 | C68: 1.260686754 | D68: =IF(B68>$H$10,14+LOG((($H$7*B68/1000)-($H$3*$H$4/1000))/(($H$3+B68)/1000)),NA()) -> 
A69: =A68+1 -> 66 | B69: 3.30E+00 | C69: 1.262857952
A70: 67 | B70: =A70*$H$8 -> 3.35E+00 | C70: 1.265032342
A71: 68 | B71: 3.40E+00 | C71: =IF(B71<$H$10,-LOG((($H$3*$H$4/1000)-(B71*$H$7/1000))/(($H$3+B71)/1000)),NA()) -> 1.26720996
A72: 69 | B72: 3.45E+00 | C72: 1.26939084
A73: 70 | B73: 3.50E+00 | C73: 1.271575016
A74: 71 | B74: 3.55E+00 | C74: 1.273762525
A75: 72 | B75: 3.60E+00 | C75: 1.2759534
A76: 73 | B76: 3.65E+00 | C76: 1.278147679
A77: 74 | B77: 3.70E+00 | C77: 1.280345397
A78: 75 | B78: 3.75E+00 | C78: 1.28254659
A79: 76 | B79: 3.80E+00 | C79: 1.284751295
A80: 77 | B80: 3.85E+00 | C80: 1.286959549
A81: 78 | B81: 3.90E+00 | C81: 1.289171389
A82: 79 | B82: 3.95E+00 | C82: 1.291386853
A83: 80 | B83: 4.00E+00 | C83: 1.293605978
A84: 81 | B84: 4.05E+00 | C84: 1.295828802
A85: 82 | B85: 4.10E+00 | C85: 1.298055364
A86: 83 | B86: 4.15E+00 | C86: 1.300285703
A87: 84 | B87: 4.20E+00 | C87: 1.302519858
A88: 85 | B88: 4.25E+00 | C88: 1.304757868
A89: 86 | B89: 4.30E+00 | C89: 1.306999773
A90: 87 | B90: 4.35E+00 | C90: 1.309245613
A91: 88 | B91: 4.40E+00 | C91: 1.311495429
A92: 89 | B92: 4.45E+00 | C92: 1.313749262
A93: 90 | B93: 4.50E+00 | C93: 1.316007152
A94: 91 | B94: 4.55E+00 | C94: 1.318269141
A95: 92 | B95: 4.60E+00 | C95: 1.320535271
A96: 93 | B96: 4.65E+00 | C96: 1.322805585
A97: 94 | B97: 4.70E+00 | C97: 1.325080125
A98: 95 | B98: 4.75E+00 | C98: 1.327358934
A99: 96 | B99: 4.80E+00 | C99: 1.329642056
A100: 97 | B100: 4.85E+00 | C100: 1.331929535
A101: 98 | B101: 4.90E+00 | C101: 1.334221415
A102: 99 | B102: 4.95E+00 | C102: 1.33651774
A103: 100 | B103: 5.00E+00 | C103: 1.338818557
A104: 101 | B104: 5.05E+00 | C104: 1.341123909
A105: 102 | B105: 5.10E+00 | C105: 1.343433844
A106: 103 | B106: 5.15E+00 | C106: 1.345748408
A107: 104 | B107: 5.20E+00 | C107: 1.348067648
A108: 105 | B108: 5.25E+00 | C108: 1.35039161
A109: 106 | B109: 5.30E+00 | C109: 1.352720344
A110: 107 | B110: 5.35E+00 | C110: 1.355053897
A111: 108 | B111: 5.40E+00 | C111: 1.357392318
A112: 109 | B112: 5.45E+00 | C112: 1.359735656
A113: 110 | B113: 5.50E+00 | C113: 1.362083961
A114: 111 | B114: 5.55E+00 | C114: 1.364437283
A115: 112 | B115: 5.60E+00 | C115: 1.366795674
A116: 113 | B116: 5.65E+00 | C116: 1.369159183
A117: 114 | B117: 5.70E+00 | C117: 1.371527864
A118: 115 | B118: 5.75E+00 | C118: 1.373901768
A119: 116 | B119: 5.80E+00 | C119: 1.376280948
A120: 117 | B120: 5.85E+00 | C120: 1.378665458
A121: 118 | B121: 5.90E+00 | C121: 1.381055352
A122: 119 | B122: 5.95E+00 | C122: 1.383450684
A123: 120 | B123: 6.00E+00 | C123: 1.385851509
A124: 121 | B124: 6.05E+00 | C124: 1.388257884
A125: 122 | B125: 6.10E+00 | C125: 1.390669864
A126: 123 | B126: 6.15E+00 | C126: 1.393087506
A127: 124 | B127: 6.20E+00 | C127: 1.395510868
A128: 125 | B128: 6.25E+00 | C128: 1.397940009
A129: 126 | B129: 6.30E+00 | C129: 1.400374986
A130: 127 | B130: 6.35E+00 | C130: 1.40281586
A131: 128 | B131: 6.40E+00 | C131: 1.40526269
A132: 129 | B132: 6.45E+00 | C132: 1.407715538 | D132: =IF(B132>$H$10,14+LOG((($H$7*B132/1000)-($H$3*$H$4/1000))/(($H$3+B132)/1000)),NA()) -> 
A133: =A132+1 -> 130 | B133: 6.50E+00 | C133: 1.410174465
A134: 131 | B134: =A134*$H$8 -> 6.55E+00 | C134: 1.412639533
A135: 132 | B135: 6.60E+00 | C135: =IF(B135<$H$10,-LOG((($H$3*$H$4/1000)-(B135*$H$7/1000))/(($H$3+B135)/1000)),NA()) -> 1.415110805
A136: 133 | B136: 6.65E+00 | C136: 1.417588344
A137: 134 | B137: 6.70E+00 | C137: 1.420072215
A138: 135 | B138: 6.75E+00 | C138: 1.422562484
A139: 136 | B139: 6.80E+00 | C139: 1.425059215
A140: 137 | B140: 6.85E+00 | C140: 1.427562475
A141: 138 | B141: 6.90E+00 | C141: 1.430072333
A142: 139 | B142: 6.95E+00 | C142: 1.432588855
A143: 140 | B143: 7.00E+00 | C143: 1.435112112
A144: 141 | B144: 7.05E+00 | C144: 1.437642172
A145: 142 | B145: 7.10E+00 | C145: 1.440179107
A146: 143 | B146: 7.15E+00 | C146: 1.442722988
A147: 144 | B147: 7.20E+00 | C147: 1.445273887
A148: 145 | B148: 7.25E+00 | C148: 1.447831879
A149: 146 | B149: 7.30E+00 | C149: 1.450397036
A150: 147 | B150: 7.35E+00 | C150: 1.452969434
A151: 148 | B151: 7.40E+00 | C151: 1.455549149
A152: 149 | B152: 7.45E+00 | C152: 1.458136258
A153: 150 | B153: 7.50E+00 | C153: 1.460730839
A154: 151 | B154: 7.55E+00 | C154: 1.46333297
A155: 152 | B155: 7.60E+00 | C155: 1.465942733
A156: 153 | B156: 7.65E+00 | C156: 1.468560207
A157: 154 | B157: 7.70E+00 | C157: 1.471185475
A158: 155 | B158: 7.75E+00 | C158: 1.473818619
A159: 156 | B159: 7.80E+00 | C159: 1.476459725
A160: 157 | B160: 7.85E+00 | C160: 1.479108876
A161: 158 | B161: 7.90E+00 | C161: 1.48176616
A162: 159 | B162: 7.95E+00 | C162: 1.484431663
A163: 160 | B163: 8.00E+00 | C163: 1.487105476
A164: 161 | B164: 8.05E+00 | C164: 1.489787686
A165: 162 | B165: 8.10E+00 | C165: 1.492478386
A166: 163 | B166: 8.15E+00 | C166: 1.495177667
A167: 164 | B167: 8.20E+00 | C167: 1.497885624
A168: 165 | B168: 8.25E+00 | C168: 1.500602351
A169: 166 | B169: 8.30E+00 | C169: 1.503327943
A170: 167 | B170: 8.35E+00 | C170: 1.506062499
A171: 168 | B171: 8.40E+00 | C171: 1.508806117
A172: 169 | B172: 8.45E+00 | C172: 1.511558897
A173: 170 | B173: 8.50E+00 | C173: 1.514320942
A174: 171 | B174: 8.55E+00 | C174: 1.517092353
A175: 172 | B175: 8.60E+00 | C175: 1.519873235
A176: 173 | B176: 8.65E+00 | C176: 1.522663695
A177: 174 | B177: 8.70E+00 | C177: 1.525463839
A178: 175 | B178: 8.75E+00 | C178: 1.528273777
A179: 176 | B179: 8.80E+00 | C179: 1.53109362
A180: 177 | B180: 8.85E+00 | C180: 1.533923478
A181: 178 | B181: 8.90E+00 | C181: 1.536763468
A182: 179 | B182: 8.95E+00 | C182: 1.539613703
A183: 180 | B183: 9.00E+00 | C183: 1.542474301
A184: 181 | B184: 9.05E+00 | C184: 1.545345382
A185: 182 | B185: 9.10E+00 | C185: 1.548227066
A186: 183 | B186: 9.15E+00 | C186: 1.551119475
A187: 184 | B187: 9.20E+00 | C187: 1.554022734
A188: 185 | B188: 9.25E+00 | C188: 1.556936971
A189: 186 | B189: 9.30E+00 | C189: 1.559862312
A190: 187 | B190: 9.35E+00 | C190: 1.562798888
A191: 188 | B191: 9.40E+00 | C191: 1.565746832
A192: 189 | B192: 9.45E+00 | C192: 1.568706278
A193: 190 | B193: 9.50E+00 | C193: 1.571677362
A194: 191 | B194: 9.55E+00 | C194: 1.574660224
A195: 192 | B195: 9.60E+00 | C195: 1.577655005
A196: 193 | B196: 9.65E+00 | C196: 1.580661847 | D196: =IF(B196>$H$10,14+LOG((($H$7*B196/1000)-($H$3*$H$4/1000))/(($H$3+B196)/1000)),NA()) -> 
A197: =A196+1 -> 194 | B197: 9.70E+00 | C197: 1.583680896
A198: 195 | B198: =A198*$H$8 -> 9.75E+00 | C198: 1.586712299
A199: 196 | B199: 9.80E+00 | C199: =IF(B199<$H$10,-LOG((($H$3*$H$4/1000)-(B199*$H$7/1000))/(($H$3+B199)/1000)),NA()) -> 1.589756209
A200: 197 | B200: 9.85E+00 | C200: 1.592812776
... 802 more rows

Sheet Monobase forte
A1: # | B1: VHA [ml] | C1: pH
C2: Base forte | D2: Acide fort
A3: 0 | B3: 0 | C3: =14+LOG(H4) -> 11.699 | D3: =IF(B3>$H$10,-LOG((($H$7*B3/1000)-($H$3*$H$4/1000))/(($H$3+B3)/1000)),NA()) ->  | F3: Acide fort monoprotique : | G3: VB= | H3: 30.00 | I3: ml | L3: 20
A4: =A3+1 -> 1 | B4: =A4*$H$8 -> 5.00E-02 | C4: =IF(B4<$H$10,14+LOG((($H$3*$H$4/1000)-(B4*$H$7/1000))/(($H$3+B4)/1000)),NA()) -> 11.69534179 | D4: =IF(B4>$H$10,-LOG((($H$7*B4/1000)-($H$3*$H$4/1000))/(($H$3+B4)/1000)),NA()) ->  | G4: cB= | H4: 0.005 | I4: M
A5: =A4+1 -> 2 | B5: =A5*$H$8 -> 1.00E-01 | C5: =IF(B5<$H$10,14+LOG((($H$3*$H$4/1000)-(B5*$H$7/1000))/(($H$3+B5)/1000)),NA()) -> 11.69169522
A6: 3 | B6: =A6*$H$8 -> 1.50E-01 | C6: 11.68803002
A7: 4 | B7: 2.00E-01 | C7: 11.68434591 | F7: Monobase forte : | G7: cHA= | H7: 0.020 | I7: M
A8: 5 | B8: 2.50E-01 | C8: 11.68064262 | G8: VHA,incr.= | H8: 5.00E-02 | I8: ml
A9: 6 | B9: 3.00E-01 | C9: 11.67691986
A10: 7 | B10: 3.50E-01 | C10: 11.67317734 | F10: Equivalence : | G10: VHA= | H10: =H3*H4/H7 -> 7.5 | I10: ml | K10: pH= | L10: 7.00 | P10: TRUE | Q10: =IF(P10=FALSE,"",0) -> 0 | R10: =IF(P10=FALSE,"",L10) -> 7.00 | S10: =IF(P10=FALSE,"",Q11) -> 7.5 | T10: =IF(P10=FALSE,"",0) -> 0
A11: 8 | B11: 4.00E-01 | C11: 11.66941476 | Q11: =IF(P10=FALSE,NA(),H10) -> 7.5 | R11: =IF(P10=FALSE,NA(),L10) -> 7.00 | S11: =IF(P10=FALSE,"",Q11) -> 7.5 | T11: =IF(P10=FALSE,"",15) -> 15
A12: 9 | B12: 4.50E-01 | C12: 11.66563182 | F12: Tangente 1 : | G12: =IF(G13=TRUE,L3,"") ->  | H12: =IF(G13=FALSE,NA(),0) ->  | L12: =IF(G13=FALSE,NA(),$L$14-($H$14-H12)/($H$15-$H$14)*($L$15-$L$14)) ->  | Q12: =IF(P10=FALSE,"",B1002) -> 5.00E+01 | R12: =IF(P10=FALSE,"",L10) -> 7.00
A13: 10 | B13: 5.00E-01 | C13: 11.6618282 | G13: FALSE | H13: =IF(G13=FALSE,NA(),H10) ->  | L13: =IF(G13=FALSE,NA(),$L$14-($H$14-H13)/($H$15-$H$14)*($L$15-$L$14)) -> 
A14: 11 | B14: 5.50E-01 | C14: 11.65800359 | H14: =IF(G13=FALSE,NA(),H10+G12*H8) ->  | L14: =IF(G13=FALSE,NA(),-LOG((($H$7*H14/1000)-($H$3*$H$4/1000))/(($H$3+H14)/1000))) -> 
A15: 12 | B15: 6.00E-01 | C15: 11.65415766 | H15: =IF(G13=FALSE,NA(),H14+H8) ->  | L15: =IF(G13=FALSE,NA(),-LOG((($H$7*H15/1000)-($H$3*$H$4/1000))/(($H$3+H15)/1000))) -> 
A16: 13 | B16: 6.50E-01 | C16: 11.65029009 | H16: =IF(G13=FALSE,NA(),B1002) ->  | L16: =IF(G13=FALSE,NA(),$L$15+(H16-$H$15)/($H$15-$H$14)*($L$15-$L$14)) -> 
A17: 14 | B17: 7.00E-01 | C17: 11.64640053 | F17: Equivalence : | H17: =IF(G13=FALSE,NA(),H12) ->  | L17: =IF(G13=FALSE,NA(),L12-(L13-L18)) -> 
A18: 15 | B18: 7.50E-01 | C18: 11.64248865 | H18: =IF(G13=FALSE,NA(),H10) ->  | L18: =IF(G13=FALSE,NA(),L10) -> 
A19: 16 | B19: 8.00E-01 | C19: 11.63855408 | H19: =IF(G13=FALSE,NA(),H16) ->  | L19: =IF(G13=FALSE,NA(),L16-(L13-L18)) -> 
A20: 17 | B20: 8.50E-01 | C20: 11.63459647 | F20: Tangente 2 : | H20: =IF(G13=FALSE,NA(),H12) ->  | L20: =IF(G13=FALSE,NA(),L21-((H21-H20)/(H22-H21))*(L22-L21)) -> 
A21: 18 | B21: 9.00E-01 | C21: 11.63061545 | H21: =IF(G13=FALSE,NA(),H22-H8) ->  | L21: =IF(G13=FALSE,NA(),14+LOG((($H$3*$H$4/1000)-(H21*$H$7/1000))/(($H$3+H21)/1000))) -> 
A22: 19 | B22: 9.50E-01 | C22: 11.62661064 | H22: =IF(G13=FALSE,NA(),H10-G12*H8) ->  | L22: =IF(G13=FALSE,NA(),14+LOG((($H$3*$H$4/1000)-(H22*$H$7/1000))/(($H$3+H22)/1000))) -> 
A23: 20 | B23: 1.00E+00 | C23: 11.62258166 | H23: =IF(G13=FALSE,NA(),H16) ->  | L23: =IF(G13=FALSE,NA(),L22+(H23-H22)/(H22-H21)*(L22-L21)) -> 
A24: 21 | B24: 1.05E+00 | C24: 11.61852811
A25: 22 | B25: 1.10E+00 | C25: 11.61444958
A26: 23 | B26: 1.15E+00 | C26: 11.61034567
A27: 24 | B27: 1.20E+00 | C27: 11.60621595
A28: 25 | B28: 1.25E+00 | C28: 11.60205999
A29: 26 | B29: 1.30E+00 | C29: 11.59787735
A30: 27 | B30: 1.35E+00 | C30: 11.59366757
A31: 28 | B31: 1.40E+00 | C31: 11.58943018
A32: 29 | B32: 1.45E+00 | C32: 11.58516472
A33: 30 | B33: 1.50E+00 | C33: 11.58087069
A34: 31 | B34: 1.55E+00 | C34: 11.5765476
A35: 32 | B35: 1.60E+00 | C35: 11.57219492
A36: 33 | B36: 1.65E+00 | C36: 11.56781215
A37: 34 | B37: 1.70E+00 | C37: 11.56339873
A38: 35 | B38: 1.75E+00 | C38: 11.55895411
A39: 36 | B39: 1.80E+00 | C39: 11.55447773
A40: 37 | B40: 1.85E+00 | C40: 11.54996901
A41: 38 | B41: 1.90E+00 | C41: 11.54542734
A42: 39 | B42: 1.95E+00 | C42: 11.54085212
A43: 40 | B43: 2.00E+00 | C43: 11.53624271
A44: 41 | B44: 2.05E+00 | C44: 11.53159846
A45: 42 | B45: 2.10E+00 | C45: 11.52691872
A46: 43 | B46: 2.15E+00 | C46: 11.5222028
A47: 44 | B47: 2.20E+00 | C47: 11.51744999
A48: 45 | B48: 2.25E+00 | C48: 11.51265958
A49: 46 | B49: 2.30E+00 | C49: 11.50783082
A50: 47 | B50: 2.35E+00 | C50: 11.50296294
A51: 48 | B51: 2.40E+00 | C51: 11.49805516
A52: 49 | B52: 2.45E+00 | C52: 11.49310667
A53: 50 | B53: 2.50E+00 | C53: 11.48811664
A54: 51 | B54: 2.55E+00 | C54: 11.4830842
A55: 52 | B55: 2.60E+00 | C55: 11.47800848
A56: 53 | B56: 2.65E+00 | C56: 11.47288855
A57: 54 | B57: 2.70E+00 | C57: 11.46772348
A58: 55 | B58: 2.75E+00 | C58: 11.4625123
A59: 56 | B59: 2.80E+00 | C59: 11.45725401
A60: 57 | B60: 2.85E+00 | C60: 11.45194757
A61: 58 | B61: 2.90E+00 | C61: 11.44659193
A62: 59 | B62: 2.95E+00 | C62: 11.44118597
A63: 60 | B63: 3.00E+00 | C63: 11.43572857
A64: 61 | B64: 3.05E+00 | C64: 11.43021854
A65: 62 | B65: 3.10E+00 | C65: 11.42465468
A66: 63 | B66: 3.15E+00 | C66: 11.41903572
A67: 64 | B67: 3.20E+00 | C67: 11.41336037
A68: 65 | B68: 3.25E+00 | C68: 11.40762728 | D68: =IF(B68>$H$10,-LOG((($H$7*B68/1000)-($H$3*$H$4/1000))/(($H$3+B68)/1000)),NA()) -> 
A69: =A68+1 -> 66 | B69: 3.30E+00 | C69: =IF(B69<$H$10,14+LOG((($H$3*$H$4/1000)-(B69*$H$7/1000))/(($H$3+B69)/1000)),NA()) -> 11.40183505
A70: 67 | B70: =A70*$H$8 -> 3.35E+00 | C70: 11.39598225
A71: 68 | B71: 3.40E+00 | C71: 11.39006739
A72: 69 | B72: 3.45E+00 | C72: 11.3840889
A73: 70 | B73: 3.50E+00 | C73: 11.37804518
A74: 71 | B74: 3.55E+00 | C74: 11.37193457
A75: 72 | B75: 3.60E+00 | C75: 11.36575533
A76: 73 | B76: 3.65E+00 | C76: 11.35950566
A77: 74 | B77: 3.70E+00 | C77: 11.35318369
A78: 75 | B78: 3.75E+00 | C78: 11.34678749
A79: 76 | B79: 3.80E+00 | C79: 11.34031502
A80: 77 | B80: 3.85E+00 | C80: 11.33376419
A81: 78 | B81: 3.90E+00 | C81: 11.3271328
A82: 79 | B82: 3.95E+00 | C82: 11.32041857
A83: 80 | B83: 4.00E+00 | C83: 11.31361912
A84: 81 | B84: 4.05E+00 | C84: 11.30673197
A85: 82 | B85: 4.10E+00 | C85: 11.29975453
A86: 83 | B86: 4.15E+00 | C86: 11.29268409
A87: 84 | B87: 4.20E+00 | C87: 11.28551783
A88: 85 | B88: 4.25E+00 | C88: 11.27825278
A89: 86 | B89: 4.30E+00 | C89: 11.27088585
A90: 87 | B90: 4.35E+00 | C90: 11.26341381
A91: 88 | B91: 4.40E+00 | C91: 11.25583325
A92: 89 | B92: 4.45E+00 | C92: 11.24814061
A93: 90 | B93: 4.50E+00 | C93: 11.24033216
A94: 91 | B94: 4.55E+00 | C94: 11.23240396
A95: 92 | B95: 4.60E+00 | C95: 11.22435189
A96: 93 | B96: 4.65E+00 | C96: 11.21617162
A97: 94 | B97: 4.70E+00 | C97: 11.20785855
A98: 95 | B98: 4.75E+00 | C98: 11.19940788
A99: 96 | B99: 4.80E+00 | C99: 11.19081452
A100: 97 | B100: 4.85E+00 | C100: 11.18207309
A101: 98 | B101: 4.90E+00 | C101: 11.17317792
A102: 99 | B102: 4.95E+00 | C102: 11.164123
A103: 100 | B103: 5.00E+00 | C103: 11.15490196
A104: 101 | B104: 5.05E+00 | C104: 11.14550806
A105: 102 | B105: 5.10E+00 | C105: 11.13593412
A106: 103 | B106: 5.15E+00 | C106: 11.12617253
A107: 104 | B107: 5.20E+00 | C107: 11.11621517
A108: 105 | B108: 5.25E+00 | C108: 11.10605339
A109: 106 | B109: 5.30E+00 | C109: 11.09567797
A110: 107 | B110: 5.35E+00 | C110: 11.08507904
A111: 108 | B111: 5.40E+00 | C111: 11.07424603
A112: 109 | B112: 5.45E+00 | C112: 11.06316762
A113: 110 | B113: 5.50E+00 | C113: 11.05183164
A114: 111 | B114: 5.55E+00 | C114: 11.040225
A115: 112 | B115: 5.60E+00 | C115: 11.0283336
A116: 113 | B116: 5.65E+00 | C116: 11.01614219
A117: 114 | B117: 5.70E+00 | C117: 11.00363428
A118: 115 | B118: 5.75E+00 | C118: 10.990792
A119: 116 | B119: 5.80E+00 | C119: 10.97759589
A120: 117 | B120: 5.85E+00 | C120: 10.96402478
A121: 118 | B121: 5.90E+00 | C121: 10.95005553
A122: 119 | B122: 5.95E+00 | C122: 10.9356628
A123: 120 | B123: 6.00E+00 | C123: 10.92081875
A124: 121 | B124: 6.05E+00 | C124: 10.90549273
A125: 122 | B125: 6.10E+00 | C125: 10.88965083
A126: 123 | B126: 6.15E+00 | C126: 10.87325546
A127: 124 | B127: 6.20E+00 | C127: 10.85626478
A128: 125 | B128: 6.25E+00 | C128: 10.838632
A129: 126 | B129: 6.30E+00 | C129: 10.82030462
A130: 127 | B130: 6.35E+00 | C130: 10.80122342
A131: 128 | B131: 6.40E+00 | C131: 10.7813213
A132: 129 | B132: 6.45E+00 | C132: 10.76052176 | D132: =IF(B132>$H$10,-LOG((($H$7*B132/1000)-($H$3*$H$4/1000))/(($H$3+B132)/1000)),NA()) -> 
A133: =A132+1 -> 130 | B133: 6.50E+00 | C133: =IF(B133<$H$10,14+LOG((($H$3*$H$4/1000)-(B133*$H$7/1000))/(($H$3+B133)/1000)),NA()) -> 10.73873713
A134: 131 | B134: =A134*$H$8 -> 6.55E+00 | C134: 10.71586622
A135: 132 | B135: 6.60E+00 | C135: 10.69179142
A136: 133 | B136: 6.65E+00 | C136: 10.66637494
A137: 134 | B137: 6.70E+00 | C137: 10.63945392
A138: 135 | B138: 6.75E+00 | C138: 10.61083392
A139: 136 | B139: 6.80E+00 | C139: 10.58028022
A140: 137 | B140: 6.85E+00 | C140: 10.54750586
A141: 138 | B141: 6.90E+00 | C141: 10.51215488
A142: 139 | B142: 6.95E+00 | C142: 10.47377824
A143: 140 | B143: 7.00E+00 | C143: 10.43179828
A144: 141 | B144: 7.05E+00 | C144: 10.3854543
A145: 142 | B145: 7.10E+00 | C145: 10.33371608
A146: 143 | B146: 7.15E+00 | C146: 10.27513922
A147: 144 | B147: 7.20E+00 | C147: 10.20760831
A148: 145 | B148: 7.25E+00 | C148: 10.12784373
A149: 146 | B149: 7.30E+00 | C149: 10.03035116
A150: 147 | B150: 7.35E+00 | C150: 9.904830649
A151: 148 | B151: 7.40E+00 | C151: 9.728158393
A152: 149 | B152: 7.45E+00 | C152: 9.426548178
A153: 150 | B153: 7.50E+00
A154: 151 | B154: 7.55E+00 | D154: 4.574609941
A155: 152 | B155: 7.60E+00 | D155: 4.274157849
A156: 153 | B156: 7.65E+00 | D156: 4.098643726
A157: 154 | B157: 7.70E+00 | D157: 3.974281359
A158: 155 | B158: 7.75E+00 | D158: 3.877946952
A159: 156 | B159: 7.80E+00 | D159: 3.799340549
A160: 157 | B160: 7.85E+00 | D160: 3.732967844
A161: 158 | B161: 7.90E+00 | D161: 3.675549223
A162: 159 | B162: 7.95E+00 | D162: 3.624969271
A163: 160 | B163: 8.00E+00 | D163: 3.579783597
A164: 161 | B164: 8.05E+00 | D164: 3.538961976
A165: 162 | B165: 8.10E+00 | D165: 3.50174373
A166: 163 | B166: 8.15E+00 | D166: 3.46755119
A167: 164 | B167: 8.20E+00 | D167: 3.435935327
A168: 165 | B168: 8.25E+00 | D168: 3.40654018
A169: 166 | B169: 8.30E+00 | D169: 3.379078791
A170: 167 | B170: 8.35E+00 | D170: 3.353316447
A171: 168 | B171: 8.40E+00 | D171: 3.329058719
A172: 169 | B172: 8.45E+00 | D172: 3.306142743
A173: 170 | B173: 8.50E+00 | D173: 3.284430734
A174: 171 | B174: 8.55E+00 | D174: 3.263805088
A175: 172 | B175: 8.60E+00 | D175: 3.244164624
A176: 173 | B176: 8.65E+00 | D176: 3.225421662
A177: 174 | B177: 8.70E+00 | D177: 3.207499723
A178: 175 | B178: 8.75E+00 | D178: 3.190331698
A179: 176 | B179: 8.80E+00 | D179: 3.173858378
A180: 177 | B180: 8.85E+00 | D180: 3.158027259
A181: 178 | B181: 8.90E+00 | D181: 3.14279157
A182: 179 | B182: 8.95E+00 | D182: 3.128109464
A183: 180 | B183: 9.00E+00 | D183: 3.113943352
A184: 181 | B184: 9.05E+00 | D184: 3.100259344
A185: 182 | B185: 9.10E+00 | D185: 3.087026779
A186: 183 | B186: 9.15E+00 | D186: 3.074217827
A187: 184 | B187: 9.20E+00 | D187: 3.06180715
A188: 185 | B188: 9.25E+00 | D188: 3.049771617
A189: 186 | B189: 9.30E+00 | D189: 3.03809005
A190: 187 | B190: 9.35E+00 | D190: 3.026743013
A191: 188 | B191: 9.40E+00 | D191: 3.015712625
A192: 189 | B192: 9.45E+00 | D192: 3.004982401
A193: 190 | B193: 9.50E+00 | D193: 2.994537104
A194: 191 | B194: 9.55E+00 | D194: 2.984362631
A195: 192 | B195: 9.60E+00 | D195: 2.974445896
A196: 193 | B196: 9.65E+00 | D196: =IF(B196>$H$10,-LOG((($H$7*B196/1000)-($H$3*$H$4/1000))/(($H$3+B196)/1000)),NA()) -> 2.964774736
A197: =A196+1 -> 194 | B197: 9.70E+00 | C197: =IF(B197<$H$10,14+LOG((($H$3*$H$4/1000)-(B197*$H$7/1000))/(($H$3+B197)/1000)),NA()) ->  | D197: 2.95533783
A198: 195 | B198: =A198*$H$8 -> 9.75E+00 | D198: 2.946124619
A199: 196 | B199: 9.80E+00 | D199: 2.93712524
A200: 197 | B200: 9.85E+00 | D200: 2.928330468
... 802 more rows

Sheet Acide faible monoprotique
A1: # | B1: VB [ml]
C2: Acide faible | O2: Base forte
C3: cHA,av.n.,0 | D3: cA-,av.n.,0 | E3: a | F3: b | G3: c | H3: x1 | I3: x2 | J3: cHA,éq | K3: cH3O+,éq | L3: cA-,éq | M3: pH | O3: cOH-,ap.n.,0 | P3: cA-,ap.n.0 | Q3: a | R3: b | S3: c | T3: x1 | U3: x2 | V3: cOH-,éq | W3: pH
A4: 0 | B4: 0 | C4: =IF((($AB$5*$AB$4/1000)-($AB$8*B4/1000))>0,(($AB$5*$AB$4/1000)-($AB$8*B4/1000))/((B4+$AB$4)/1000),NA()) -> 0.1 | D4: =IF(C4>0,($AB$8*B4/1000)/((B4+$AB$4)/1000),NA()) -> 0 | E4: =IF(C4>0,1,NA()) -> 1 | F4: =IF(C4>0,D4+10^(-7)+10^(-$AB$6),NA()) -> 1.78827941e-05 | G4: =IF(C4>0,(10^(-7)*D4)-(10^(-$AB$6)*C4),NA()) -> -1.77827941e-06 | H4: =IF(C4>0,((-F4)+SQRT(F4^(2)-4*E4*G4))/(2*E4),NA()) -> 0.001324610011 | I4: =IF(C4>0,((-F4)-SQRT(F4^(2)-4*E4*G4))/(2*E4),NA()) -> -0.001342492805 | J4: =IF(C4>0,C4-H4,NA()) -> 0.09867538999 | K4: =IF(C4>0,H4+10^(-7),NA()) -> 0.001324710011 | L4: =IF(C4>0,D4+H4,NA()) -> 0.001324610011 | M4: =IF(C4>0,-LOG(K4),NA()) -> 2.877879182 | N4: =IF(M4>$AF$11,NA(),M4) -> 2.877879182 | O4: =IF((($AB$8*B4/1000)-($AB$5*$AB$4/1000))>0,(($AB$8*B4/1000)-($AB$5*$AB$4/1000))/((B4+$AB$4)/1000),NA()) ->  | P4: =IF(O4>0,($AB$5*$AB$4/1000)/((B4+$AB$4)/1000),NA()) ->  | Q4: =IF(O4>0,1,NA()) ->  | R4: =IF(O4>0,O4+10^(-7)+10^(-(14-$AB$6)),NA()) ->  | S4: =IF(O4>0,-(10^(-(14-$AB$6))*P4),NA()) ->  | T4: =IF(O4>0,((-R4)+SQRT(R4^(2)-4*Q4*S4))/(2*Q4),NA()) ->  | U4: =IF(O4>0,((-R4)-SQRT(R4^(2)-4*Q4*S4))/(2*Q4),NA()) ->  | V4: =IF(Q4>0,O4+10^(-7)+T4,NA()) ->  | W4: =IF(O4>0,14+LOG(V4),NA()) ->  | X4: =IF(W4<$AF$11,NA(),W4) ->  | Z4: Acide faible monoprotique : | AA4: VHA= | AB4: 20.00 | AC4: ml | AF4: 40
A5: =A4+1 -> 1 | B5: =A5*$AB$9 -> 5.00E-02 | C5: 0.09956359102 | D5: 0.000187032419 | E5: =IF(C5>0,1,NA()) -> 1 | F5: =IF(C5>0,D5+10^(-7)+10^(-$AB$6),NA()) -> 0.0002049152131 | G5: =IF(C5>0,(10^(-7)*D5)-(10^(-$AB$6)*C5),NA()) -> -1.770500136e-06 | H5: =IF(C5>0,((-F5)+SQRT(F5^(2)-4*E5*G5))/(2*E5),NA()) -> 0.00123208265 | I5: -0.001436997863 | J5: =IF(C5>0,C5-H5,NA()) -> 0.09833150837 | K5: =IF(C5>0,H5+10^(-7),NA()) -> 0.00123218265 | L5: =IF(C5>0,D5+H5,NA()) -> 0.001419115069 | M5: =IF(C5>0,-LOG(K5),NA()) -> 2.909324911 | N5: =IF(M5>$AF$11,NA(),M5) -> 2.909324911 | O5: =IF((($AB$8*B5/1000)-($AB$5*$AB$4/1000))>0,(($AB$8*B5/1000)-($AB$5*$AB$4/1000))/((B5+$AB$4)/1000),NA()) ->  | P5: =IF(O5>0,($AB$5*$AB$4/1000)/((B5+$AB$4)/1000),NA()) ->  | Q5: =IF(O5>0,1,NA()) ->  | R5: =IF(O5>0,O5+10^(-7)+10^(-(14-$AB$6)),NA()) ->  | S5: =IF(O5>0,-(10^(-(14-$AB$6))*P5),NA()) ->  | T5: =IF(O5>0,((-R5)+SQRT(R5^(2)-4*Q5*S5))/(2*Q5),NA()) ->  | U5: =IF(O5>0,((-R5)-SQRT(R5^(2)-4*Q5*S5))/(2*Q5),NA()) ->  | V5: =IF(Q5>0,O5+10^(-7)+T5,NA()) ->  | W5: =IF(O5>0,14+LOG(V5),NA()) ->  | X5: =IF(W5<$AF$11,NA(),W5) ->  | AA5: cHA= | AB5: 0.100 | AC5: M
A6: =A5+1 -> 2 | B6: 1.00E-01 | C6: 0.09912935323 | D6: 0.0003731343284 | E6: 1 | F6: 0.0003910171225 | G6: -1.762759564e-06 | H6: 0.001146498578 | I6: -0.001537515701 | J6: 0.09798285466 | K6: 0.001146598578 | L6: 0.001519632906 | M6: 2.940588601 | N6: 2.940588601 | AA6: pKa | AB6: 4.75
A7: 3 | B7: 1.50E-01 | C7: 0.09869727047 | D7: 0.0005583126551 | E7: 1 | F7: 0.0005761954492 | G7: -1.755057408e-06 | H7: 0.001067652144 | I7: -0.001643847593 | J7: 0.09762961833 | K7: 0.001067752144 | L7: 0.001625964799 | M7: 2.971529548 | N7: 2.971529548
A8: 4 | B8: 2.00E-01 | C8: 0.09826732673 | D8: 0.0007425742574 | E8: 1 | F8: 0.0007604570515 | G8: -1.747393381e-06 | H8: 0.0009952594286 | I8: -0.00175571648 | J8: 0.0972720673 | K8: 0.0009953594286 | L8: 0.001737833686 | M8: 3.002020065 | N8: 3.002020065 | Z8: Monobase forte : | AA8: cB= | AB8: 0.075 | AC8: M
A9: 5 | B9: 2.50E-01 | C9: 0.09783950617 | D9: 0.0009259259259 | E9: 1 | F9: 0.00094380872 | G9: -1.739767201e-06 | H9: 0.0009289742663 | I9: -0.001872782986 | J9: 0.09691053191 | K9: 0.0009290742663 | L9: 0.001854900192 | M9: 3.031949569 | N9: 3.031949569 | AA9: VB,incr.= | AB9: 5.00E-02 | AC9: ml
A10: 6 | B10: 3.00E-01 | C10: 0.0974137931 | D10: 0.001108374384 | E10: 1 | F10: 0.001126257178 | G10: -1.732178588e-06 | H10: 0.0008684063897 | I10: -0.001994663568 | J10: 0.09654538671 | K10: 0.0008685063897 | L10: 0.001976780774 | M10: 3.061226982 | N10: 3.061226982
A11: 7 | B11: 3.50E-01 | C11: 0.09699017199 | D11: 0.00128992629 | E11: 1 | F11: 0.001307809084 | G11: -1.724627266e-06 | H11: 0.0008131395663 | I11: -0.00212094865 | J11: 0.09617703242 | K11: 0.0008132395663 | L11: 0.002103065856 | M11: 3.0897815 | N11: 3.0897815 | Z11: Equivalence : | AA11: VB= | AB11: =AB4*AB5/AB8 -> 26.7 | AC11: ml | AE11: pH= | AF11: =7+0.5*AB6+0.5*LOG((AB5*AB8)/(AB5+AB8)) -> 8.69 | AJ11: TRUE | AK11: =IF(AJ11=FALSE,"",0) -> 0.0 | AL11: =IF(AJ11=FALSE,"",AF11) -> 8.7 | AM11: =IF(AJ11=FALSE,"",AK12) -> 26.7 | AN11: =IF(AJ11=FALSE,"",0) -> 0
A12: 8 | B12: 4.00E-01 | C12: 0.09656862745 | D12: 0.001470588235 | E12: 1 | F12: 0.001488471029 | G12: -1.71711296e-06 | H12: 0.0007627480489 | I12: -0.002251219078 | J12: 0.0958058794 | K12: 0.0007628480489 | L12: 0.002233336284 | M12: 3.11756196 | N12: 3.11756196 | AK12: =IF(AJ11=FALSE,NA(),AB11) -> 26.7 | AL12: =IF(AJ11=FALSE,NA(),AF11) -> 8.7 | AM12: =IF(AJ11=FALSE,"",AK12) -> 26.7 | AN12: =IF(AJ11=FALSE,"",15) -> 15
A13: 9 | B13: 4.50E-01 | C13: 0.09614914425 | D13: 0.001650366748 | E13: 1 | F13: 0.001668249542 | G13: -1.709635399e-06 | H13: 0.0007168102798 | I13: -0.002385059822 | J13: 0.09543233397 | K13: 0.0007169102798 | L13: 0.002367177028 | M13: 3.144535192 | N13: 3.144535192 | Z13: Demi-équivalence : | AA13: VB= | AB13: =AB11/2 -> 13.33333333 | AC13: ml | AE13: pH= | AF13: =AB6 -> 4.75 | AK13: =IF(AJ11=FALSE,"",B1003) -> 50.0 | AL13: =IF(AJ11=FALSE,"",AF11) -> 8.7
A14: 10 | B14: 5.00E-01 | C14: 0.09573170732 | D14: 0.001829268293 | E14: 1 | F14: 0.001847151087 | G14: -1.702194313e-06 | H14: 0.0006749194042 | I14: -0.002522070491 | J14: 0.09505678791 | K14: 0.0006750194042 | L14: 0.002504187697 | M14: 3.170683743 | N14: 3.170683743 | AF14: =IF(AA14=FALSE,NA(),$AF$15-($AB$15-AB14)/($AB$16-$AB$15)*($AF$16-$AF$15)) ->  | AJ14: TRUE | AK14: =IF(AJ14=FALSE,"",0) -> 0.0 | AL14: =IF(AJ14=FALSE,"",AF13) -> 4.8 | AM14: =IF(AJ14=FALSE,"",AK15) -> 13.33333333 | AN14: =IF(AJ14=FALSE,"",0) -> 0
A15: 11 | B15: 5.50E-01 | C15: 0.0953163017 | D15: 0.00200729927 | E15: 1 | F15: 0.002025182064 | G15: -1.694789438e-06 | H15: 0.0006366906406 | I15: -0.002661872705 | J15: 0.09467961106 | K15: 0.0006367906406 | L15: 0.002643989911 | M15: 3.196003328 | N15: 3.196003328 | AF15: =IF(AA14=FALSE,NA(),14+LOG((($AB$8*AB15/1000)-($AB$4*$AB$5/1000))/(($AB$4+AB15)/1000))) ->  | AK15: =IF(AJ14=FALSE,NA(),AB13) -> 13.3 | AL15: =IF(AJ14=FALSE,NA(),AF13) -> 4.8 | AM15: =IF(AJ14=FALSE,"",AK15) -> 13.33333333 | AN15: =IF(AJ14=FALSE,"",15) -> 15
A16: 12 | B16: 6.00E-01 | C16: 0.09490291262 | D16: 0.002184466019 | E16: 1 | F16: 0.002202348814 | G16: -1.687420508e-06 | H16: 0.0006017658688 | I16: -0.002804114682 | J16: 0.09430114675 | K16: 0.0006018658688 | L16: 0.002786231888 | M16: 3.220500284 | N16: 3.220500284 | AB16: =IF(AA14=FALSE,NA(),AB15+AB9) ->  | AF16: =IF(AA14=FALSE,NA(),14+LOG((($AB$8*AB16/1000)-($AB$4*$AB$5/1000))/(($AB$4+AB16)/1000))) ->  | AK16: =IF(AJ14=FALSE,"",B1003) -> 50.0 | AL16: =IF(AJ14=FALSE,"",AF13) -> 4.8
A17: 13 | B17: 6.50E-01 | C17: 0.09449152542 | D17: 0.002360774818 | E17: 1 | F17: 0.002378657613 | G17: -1.680087263e-06 | H17: 0.0005698159498 | I17: -0.002948473562 | J17: 0.09392170947 | K17: 0.0005699159498 | L17: 0.002930590768 | M17: 3.244189189 | N17: 3.244189189 | Z17: Tangente 1 : | AA17: =IF(AA18=TRUE,AF4,"") ->  | AB17: =IF(AA18=FALSE,NA(),0) ->  | AF17: =IF(AA18=FALSE,NA(),$AF$19-($AB$19-AB17)/($AB$20-$AB$19)*($AF$20-$AF$19)) -> 
A18: 14 | B18: 7.00E-01 | C18: 0.0940821256 | D18: 0.002536231884 | E18: 1 | F18: 0.002554114678 | G18: -1.672789445e-06 | H18: 0.0005405413219 | I18: -0.003094656 | J18: 0.09354158428 | K18: 0.0005406413219 | L18: 0.003076773206 | M18: 3.267090764 | N18: 3.267090764 | AA18: FALSE | AB18: =IF(AA18=FALSE,NA(),AB11) ->  | AF18: =IF(AA18=FALSE,NA(),$AF$19-($AB$19-AB18)/($AB$20-$AB$19)*($AF$20-$AF$19)) -> 
A19: 15 | B19: 7.50E-01 | C19: 0.0936746988 | D19: 0.002710843373 | E19: 1 | F19: 0.002728726168 | G19: -1.665526797e-06 | H19: 0.0005136713731 | I19: -0.003242397541 | J19: 0.09316102742 | K19: 0.0005137713731 | L19: 0.003224514747 | M19: 3.289230098 | N19: 3.289230098 | AB19: =IF(AA18=FALSE,NA(),AB11+AA17*AB9) ->  | AF19: =IF(AA18=FALSE,NA(),14+LOG((($AB$8*AB19/1000)-($AB$4*$AB$5/1000))/(($AB$4+AB19)/1000))) -> 
A20: 16 | B20: 8.00E-01 | C20: 0.09326923077 | D20: 0.002884615385 | E20: 1 | F20: 0.002902498179 | G20: -1.658299065e-06 | H20: 0.0004889630085 | I20: -0.003391461187 | J20: 0.09278026776 | K20: 0.0004890630085 | L20: 0.003373578393 | M20: 3.310635185 | N20: 3.310635185 | AB20: =IF(AA18=FALSE,NA(),AB19+AB9) ->  | AF20: =IF(AA18=FALSE,NA(),14+LOG((($AB$8*AB20/1000)-($AB$4*$AB$5/1000))/(($AB$4+AB20)/1000))) -> 
A21: 17 | B21: 8.50E-01 | C21: 0.09286570743 | D21: 0.003057553957 | E21: 1 | F21: 0.003075436751 | G21: -1.651105999e-06 | H21: 0.0004661987389 | I21: -0.00354163549 | J21: 0.0923995087 | K21: 0.0004662987389 | L21: 0.003523752696 | M21: 3.331335759 | N21: 3.331335759 | AB21: =IF(AA18=FALSE,NA(),B1003) ->  | AF21: =IF(AA18=FALSE,NA(),$AF$20+(AB21-$AB$20)/($AB$20-$AB$19)*($AF$20-$AF$19)) -> 
A22: 18 | B22: 9.00E-01 | C22: 0.09246411483 | D22: 0.003229665072 | E22: 1 | F22: 0.003247547866 | G22: -1.643947349e-06 | H22: 0.0004451845332 | I22: -0.003692732399 | J22: 0.0920189303 | K22: 0.0004452845332 | L22: 0.003674849605 | M22: 3.35136239 | N22: 3.35136239 | Z22: Equivalence : | AB22: =IF(AA18=FALSE,NA(),AB17) ->  | AF22: =IF(AA18=FALSE,NA(),AF17-(AF18-AF23)) -> 
A23: 19 | B23: 9.50E-01 | C23: 0.09206443914 | D23: 0.003400954654 | E23: 1 | F23: 0.003418837448 | G23: -1.63682287e-06 | H23: 0.0004257476029 | I23: -0.003844585051 | J23: 0.09163869154 | K23: 0.0004258476029 | L23: 0.003826702257 | M23: 3.370745793 | N23: 3.370745793 | AB23: =IF(AA18=FALSE,NA(),AB11) ->  | AF23: =IF(AA18=FALSE,NA(),AF11) -> 
A24: 20 | B24: 1.00E+00 | C24: 0.09166666667 | D24: 0.003571428571 | E24: 1 | F24: 0.003589311366 | G24: -1.629732316e-06 | H24: 0.0004077342319 | I24: -0.003997045597 | J24: 0.09125893243 | K24: 0.0004078342319 | L24: 0.003979162803 | M24: 3.389516324 | N24: 3.389516324 | AB24: =IF(AA18=FALSE,NA(),AB21) ->  | AF24: =IF(AA18=FALSE,NA(),AF21-(AF18-AF23)) -> 
A25: 21 | B25: 1.05E+00 | C25: 0.09127078385 | D25: 0.003741092637 | E25: 1 | F25: 0.003758975431 | G25: -1.622675447e-06 | H25: 0.0003910077194 | I25: -0.00414998315 | J25: 0.09087977613 | K25: 0.0003911077194 | L25: 0.004132100356 | M25: 3.407703612 | N25: 3.407703612 | Z25: Tangente 2 : | AB25: =IF(AA18=FALSE,NA(),AB17) ->  | AF25: =IF(AA18=FALSE,NA(),AF26-((AB26-AB25)/(AB27-AB26))*(AF27-AF26)) -> 
A26: 22 | B26: 1.10E+00 | C26: 0.09087677725 | D26: 0.003909952607 | E26: 1 | F26: 0.003927835401 | G26: -1.615652023e-06 | H26: 0.0003754464775 | I26: -0.004303281878 | J26: 0.09050133077 | K26: 0.0003755464775 | L26: 0.004285399084 | M26: 3.425336307 | N26: 3.425336307 | AB26: =IF(AA18=FALSE,NA(),AB27-AB9) ->  | AF26: =IF(AA18=FALSE,NA(),$AB$6+LOG(($AB$8*AB26/1000)/(($AB$4*$AB$5/1000)-($AB$8*AB26/1000)))) -> 
A27: 23 | B27: 1.15E+00 | C27: 0.09048463357 | D27: 0.004078014184 | E27: 1 | F27: 0.004095896978 | G27: -1.608661807e-06 | H27: 0.0003609422972 | I27: -0.004456839276 | J27: 0.09012369127 | K27: 0.0003610422972 | L27: 0.004438956482 | M27: 3.442441916 | N27: 3.442441916 | AB27: =IF(AA18=FALSE,NA(),AB11-AA17*AB9) ->  | AF27: =IF(AA18=FALSE,NA(),$AB$6+LOG(($AB$8*AB27/1000)/(($AB$4*$AB$5/1000)-($AB$8*AB27/1000)))) -> 
A28: 24 | B28: 1.20E+00 | C28: 0.09009433962 | D28: 0.004245283019 | E28: 1 | F28: 0.004263165813 | G28: -1.601704563e-06 | H28: 0.0003473987897 | I28: -0.004610564603 | J28: 0.08974694083 | K28: 0.0003474987897 | L28: 0.004592681809 | M28: 3.459046704 | N28: 3.459046704 | AB28: =IF(AA18=FALSE,NA(),AB21) ->  | AF28: =IF(AA18=FALSE,NA(),AF27+(AB28-AB27)/(AB27-AB26)*(AF27-AF26)) -> 
A29: 25 | B29: 1.25E+00 | C29: 0.08970588235 | D29: 0.004411764706 | E29: 1 | F29: 0.0044296475 | G29: -1.594780059e-06 | H29: 0.0003347299958 | I29: -0.004764377496 | J29: 0.08937115236 | K29: 0.0003348299958 | L29: 0.004746494702 | M29: 3.475175643 | N29: 3.475175643
A30: 26 | B30: 1.30E+00 | C30: 0.08931924883 | D30: 0.004577464789 | E30: 1 | F30: 0.004595347583 | G30: -1.587888065e-06 | H30: 0.0003228591537 | I30: -0.004918206737 | J30: 0.08899638967 | K30: 0.0003229591537 | L30: 0.004900323942 | M30: 3.490852402 | N30: 3.490852402
A31: 27 | B31: 1.35E+00 | C31: 0.08893442623 | D31: 0.004742388759 | E31: 1 | F31: 0.004760271553 | G31: -1.581028351e-06 | H31: 0.0003117176121 | I31: -0.005071989165 | J31: 0.08862270862 | K31: 0.0003118176121 | L31: 0.005054106371 | M31: 3.506099359 | N31: 3.506099359
A32: 28 | B32: 1.40E+00 | C32: 0.08855140187 | D32: 0.004906542056 | E32: 1 | F32: 0.00492442485 | G32: -1.574200693e-06 | H32: 0.0003012438743 | I32: -0.005225668725 | J32: 0.08825015799 | K32: 0.0003013438743 | L32: 0.00520778593 | M32: 3.520937632 | N32: 3.520937632
A33: 29 | B33: 1.45E+00 | C33: 0.08817016317 | D33: 0.00506993007 | E33: 1 | F33: 0.005087812864 | G33: -1.567404864e-06 | H33: 0.0002913827595 | I33: -0.005379195623 | J33: 0.08787878041 | K33: 0.0002914827595 | L33: 0.005361312829 | M33: 3.535387128 | N33: 3.535387128
A34: 30 | B34: 1.50E+00 | C34: 0.08779069767 | D34: 0.00523255814 | E34: 1 | F34: 0.005250440934 | G34: -1.560640645e-06 | H34: 0.0002820846675 | I34: -0.005532525601 | J34: 0.08750861301 | K34: 0.0002821846675 | L34: 0.005514642807 | M34: 3.549466587 | N34: 3.549466587
A35: 31 | B35: 1.55E+00 | C35: 0.08741299304 | D35: 0.005394431555 | E35: 1 | F35: 0.005412314349 | G35: -1.553907814e-06 | H35: 0.0002733049358 | I35: -0.005685619284 | J35: 0.0871396881 | K35: 0.0002734049358 | L35: 0.00566773649 | M35: 3.563193649 | N35: 3.563193649
A36: 32 | B36: 1.60E+00 | C36: 0.08703703704 | D36: 0.005555555556 | E36: 1 | F36: 0.00557343835 | G36: -1.547206153e-06 | H36: 0.0002650032753 | I36: -0.005838441625 | J36: 0.08677203376 | K36: 0.0002651032753 | L36: 0.005820558831 | M36: 3.576584907 | N36: 3.576584907
A37: 33 | B37: 1.65E+00 | C37: 0.08666281755 | D37: 0.005715935335 | E37: 1 | F37: 0.005733818129 | G37: -1.540535447e-06 | H37: 0.0002571432768 | I37: -0.005990961406 | J37: 0.08640567428 | K37: 0.0002572432768 | L37: 0.005973078612 | M37: 3.589655967 | N37: 3.589655967
A38: 34 | B38: 1.70E+00 | C38: 0.08629032258 | D38: 0.005875576037 | E38: 1 | F38: 0.005893458831 | G38: -1.533895482e-06 | H38: 0.0002496919788 | I38: -0.00614315081 | J38: 0.0860406306 | K38: 0.0002497919788 | L38: 0.006125268016 | M38: 3.602421512 | N38: 3.602421512
A39: 35 | B39: 1.75E+00 | C39: 0.08591954023 | D39: 0.006034482759 | E39: 1 | F39: 0.006052365553 | G39: -1.527286045e-06 | H39: 0.0002426194876 | I39: -0.00629498504 | J39: 0.08567692074 | K39: 0.0002427194876 | L39: 0.006277102246 | M39: 3.614895353 | N39: 3.614895353
A40: 36 | B40: 1.80E+00 | C40: 0.08555045872 | D40: 0.00619266055 | E40: 1 | F40: 0.006210543345 | G40: -1.520706926e-06 | H40: 0.0002358986444 | I40: -0.006446441989 | J40: 0.08531456007 | K40: 0.0002359986444 | L40: 0.006428559195 | M40: 3.627090492 | N40: 3.627090492
A41: 37 | B41: 1.85E+00 | C41: 0.08518306636 | D41: 0.006350114416 | E41: 1 | F41: 0.006367997211 | G41: -1.514157919e-06 | H41: 0.0002295047325 | I41: -0.006597501943 | J41: 0.08495356163 | K41: 0.0002296047325 | L41: 0.006579619149 | M41: 3.639019165 | N41: 3.639019165
A42: 38 | B42: 1.90E+00 | C42: 0.0848173516 | D42: 0.006506849315 | E42: 1 | F42: 0.006524732109 | G42: -1.507638815e-06 | H42: 0.0002234152192 | I42: -0.006748147328 | J42: 0.08459393638 | K42: 0.0002235152192 | L42: 0.006730264534 | M42: 3.6506929 | N42: 3.6506929
A43: 39 | B43: 1.95E+00 | C43: 0.08445330296 | D43: 0.006662870159 | E43: 1 | F43: 0.006680752954 | G43: -1.501149411e-06 | H43: 0.000217609529 | I43: -0.006898362483 | J43: 0.08423569343 | K43: 0.000217709529 | L43: 0.006880479688 | M43: 3.662122562 | N43: 3.662122562
A44: 40 | B44: 2.00E+00 | C44: 0.08409090909 | D44: 0.006818181818 | E44: 1 | F44: 0.006836064612 | G44: -1.494689504e-06 | H44: 0.0002120688425 | I44: -0.007048133455 | J44: 0.08387884025 | K44: 0.0002121688425 | L44: 0.007030250661 | M44: 3.673318393 | N44: 3.673318393
A45: 41 | B45: 2.05E+00 | C45: 0.08373015873 | D45: 0.006972789116 | E45: 1 | F45: 0.00699067191 | G45: -1.488258894e-06 | H45: 0.0002067759196 | I45: -0.007197447829 | J45: 0.08352338281 | K45: 0.0002068759196 | L45: 0.007179565035 | M45: 3.684290058 | N45: 3.684290058
A46: 42 | B46: 2.10E+00 | C46: 0.08337104072 | D46: 0.007126696833 | E46: 1 | F46: 0.007144579627 | G46: -1.481857381e-06 | H46: 0.0002017149418 | I46: -0.007346294568 | J46: 0.08316932578 | K46: 0.0002018149418 | L46: 0.007328411774 | M46: 3.695046683 | N46: 3.695046683
A47: 43 | B47: 2.15E+00 | C47: 0.08301354402 | D47: 0.007279909707 | E47: 1 | F47: 0.007297792501 | G47: -1.47548477e-06 | H47: 0.0001968713734 | I47: -0.007494663874 | J47: 0.08281667264 | K47: 0.0001969713734 | L47: 0.00747678108 | M47: 3.705596887 | N47: 3.705596887
A48: 44 | B48: 2.20E+00 | C48: 0.08265765766 | D48: 0.007432432432 | E48: 1 | F48: 0.007450315227 | G48: -1.469140864e-06 | H48: 0.0001922318373 | I48: -0.007642547064 | J48: 0.08246542582 | K48: 0.0001923318373 | L48: 0.00762466427 | M48: 3.71594882 | N48: 3.71594882
A49: 45 | B49: 2.25E+00 | C49: 0.08230337079 | D49: 0.007584269663 | E49: 1 | F49: 0.007602152457 | G49: -1.462825469e-06 | H49: 0.0001877840052 | I49: -0.007789936462 | J49: 0.08211558678 | K49: 0.0001878840052 | L49: 0.007772053668 | M49: 3.72611019 | N49: 3.72611019
A50: 46 | B50: 2.30E+00 | C50: 0.08195067265 | D50: 0.007735426009 | E50: 1 | F50: 0.007753308803 | G50: -1.456538395e-06 | H50: 0.0001835164993 | I50: -0.007936825302 | J50: 0.08176715615 | K50: 0.0001836164993 | L50: 0.007918942508 | M50: 3.736088297 | N50: 3.736088297
A51: 47 | B51: 2.35E+00 | C51: 0.08159955257 | D51: 0.00788590604 | E51: 1 | F51: 0.007903788834 | G51: -1.450279451e-06 | H51: 0.0001794188045 | I51: -0.008083207639 | J51: 0.08142013377 | K51: 0.0001795188045 | L51: 0.008065324845 | M51: 3.745890052 | N51: 3.745890052
A52: 48 | B52: 2.40E+00 | C52: 0.08125 | D52: 0.008035714286 | E52: 1 | F52: 0.00805359708 | G52: -1.444048449e-06 | H52: 0.0001754811902 | I52: -0.00822907827 | J52: 0.08107451881 | K52: 0.0001755811902 | L52: 0.008211195476 | M52: 3.755522011 | N52: 3.755522011
A53: 49 | B53: 2.45E+00 | C53: 0.08090200445 | D53: 0.008184855234 | E53: 1 | F53: 0.008202738028 | G53: -1.437845202e-06 | H53: 0.00017169464 | I53: -0.008374432668 | J53: 0.08073030981 | K53: 0.00017179464 | L53: 0.008356549874 | M53: 3.76499039 | N53: 3.76499039
A54: 50 | B54: 2.50E+00 | C54: 0.08055555556 | D54: 0.008333333333 | E54: 1 | F54: 0.008351216127 | G54: -1.431669525e-06 | H54: 0.0001680507887 | I54: -0.008519266916 | J54: 0.08038750477 | K54: 0.0001681507887 | L54: 0.008501384122 | M54: 3.774301091 | N54: 3.774301091
A55: 51 | B55: 2.55E+00 | C55: 0.08021064302 | D55: 0.008481152993 | E55: 1 | F55: 0.008499035787 | G55: -1.425521234e-06 | H55: 0.0001645418661 | I55: -0.008663577654 | J55: 0.08004610115 | K55: 0.0001646418661 | L55: 0.008645694859 | M55: 3.78345972 | N55: 3.78345972
A56: 52 | B56: 2.60E+00 | C56: 0.07986725664 | D56: 0.008628318584 | E56: 1 | F56: 0.008646201378 | G56: -1.419400148e-06 | H56: 0.0001611606454 | I56: -0.008807362024 | J56: 0.07970609599 | K56: 0.0001612606454 | L56: 0.00878947923 | M56: 3.792471606 | N56: 3.792471606
A57: 53 | B57: 2.65E+00 | C57: 0.07952538631 | D57: 0.008774834437 | E57: 1 | F57: 0.008792717231 | G57: -1.413306087e-06 | H57: 0.0001579003981 | I57: -0.008950617629 | J57: 0.07936748592 | K57: 0.0001580003981 | L57: 0.008932734835 | M57: 3.801341819 | N57: 3.801341819
A58: 54 | B58: 2.70E+00 | C58: 0.07918502203 | D58: 0.008920704846 | E58: 1 | F58: 0.00893858764 | G58: -1.407238872e-06 | H58: 0.0001547548521 | I58: -0.009093342492 | J58: 0.07903026717 | K58: 0.0001548548521 | L58: 0.009075459698 | M58: 3.810075182 | N58: 3.810075182
A59: 55 | B59: 2.75E+00 | C59: 0.07884615385 | D59: 0.009065934066 | E59: 1 | F59: 0.00908381686 | G59: -1.401198326e-06 | H59: 0.0001517181543 | I59: -0.009235535014 | J59: 0.07869443569 | K59: 0.0001518181543 | L59: 0.00921765222 | M59: 3.818676293 | N59: 3.818676293
A60: 56 | B60: 2.80E+00 | C60: 0.07850877193 | D60: 0.009210526316 | E60: 1 | F60: 0.00922840911 | G60: -1.395184274e-06 | H60: 0.0001487848371 | I60: -0.009377193947 | J60: 0.07835998709 | K60: 0.0001488848371 | L60: 0.009359311153 | M60: 3.82714953 | N60: 3.82714953
A61: 57 | B61: 2.85E+00 | C61: 0.07817286652 | D61: 0.009354485777 | E61: 1 | F61: 0.009372368571 | G61: -1.389196541e-06 | H61: 0.0001459497874 | I61: -0.009518318358 | J61: 0.07802691673 | K61: 0.0001460497874 | L61: 0.009500435564 | M61: 3.835499071 | N61: 3.835499071
A62: 58 | B62: 2.90E+00 | C62: 0.07783842795 | D62: 0.009497816594 | E62: 1 | F62: 0.009515699388 | G62: -1.383234956e-06 | H62: 0.000143208219 | I62: -0.009658907607 | J62: 0.07769521973 | K62: 0.000143308219 | L62: 0.009641024813 | M62: 3.843728901 | N62: 3.843728901
A63: 59 | B63: 2.95E+00 | C63: 0.07750544662 | D63: 0.009640522876 | E63: 1 | F63: 0.00965840567 | G63: -1.377299347e-06 | H63: 0.0001405556469 | I63: -0.009798961317 | J63: 0.07736489098 | K63: 0.0001406556469 | L63: 0.009781078523 | M63: 3.851842828 | N63: 3.851842828
A64: 60 | B64: 3.00E+00 | C64: 0.07717391304 | D64: 0.009782608696 | E64: 1 | F64: 0.00980049149 | G64: -1.371389545e-06 | H64: 0.0001379878647 | I64: -0.009938479354 | J64: 0.07703592518 | K64: 0.0001380878647 | L64: 0.00992059656 | M64: 3.859844486 | N64: 3.859844486
A65: 61 | B65: 3.05E+00 | C65: 0.07684381779 | D65: 0.009924078091 | E65: 1 | F65: 0.009941960885 | G65: -1.365505382e-06 | H65: 0.0001355009235 | I65: -0.01007746181 | J65: 0.07670831686 | K65: 0.0001356009235 | L65: 0.01005957901 | M65: 3.867737353 | N65: 3.867737353
A66: 62 | B66: 3.10E+00 | C66: 0.07651515152 | D66: 0.01006493506 | E66: 1 | F66: 0.01008281786 | G66: -1.359646691e-06 | H66: 0.0001330911126 | I66: -0.01021590897 | J66: 0.0763820604 | K66: 0.0001331911126 | L66: 0.01019802618 | M66: 3.875524753 | N66: 3.875524753
A67: 63 | B67: 3.15E+00 | C67: 0.07618790497 | D67: 0.01020518359 | E67: 1 | F67: 0.01022306638 | G67: -1.353813309e-06 | H67: 0.0001307549422 | I67: -0.01035382132 | J67: 0.07605715003 | K67: 0.0001308549422 | L67: 0.01033593853 | M67: 3.88320987 | N67: 3.88320987
A68: 64 | B68: 3.20E+00 | C68: =IF((($AB$5*$AB$4/1000)-($AB$8*B68/1000))>0,(($AB$5*$AB$4/1000)-($AB$8*B68/1000))/((B68+$AB$4)/1000),NA()) -> 0.07586206897 | D68: =IF(C68>0,($AB$8*B68/1000)/((B68+$AB$4)/1000),NA()) -> 0.01034482759 | E68: 1 | F68: =IF(C68>0,D68+10^(-7)+10^(-$AB$6),NA()) -> 0.01036271038 | G68: -1.34800507e-06 | H68: 0.0001284891274 | I68: =IF(C68>0,((-F68)-SQRT(F68^(2)-4*E68*G68))/(2*E68),NA()) -> -0.01049119951 | J68: 0.07573357984 | K68: 0.0001285891274 | L68: 0.01047331671 | M68: 3.890795751 | N68: 3.890795751
A69: 65 | B69: =A69*$AB$9 -> 3.25E+00 | C69: 0.07553763441 | D69: 0.01048387097 | E69: =IF(C69>0,1,NA()) -> 1 | F69: 0.01050175376 | G69: =IF(C69>0,(10^(-7)*D69)-(10^(-$AB$6)*C69),NA()) -> -1.342221812e-06 | H69: =IF(C69>0,((-F69)+SQRT(F69^(2)-4*E69*G69))/(2*E69),NA()) -> 0.0001262905733 | I69: -0.01062804434 | J69: =IF(C69>0,C69-H69,NA()) -> 0.07541134384 | K69: =IF(C69>0,H69+10^(-7),NA()) -> 0.0001263905733 | L69: =IF(C69>0,D69+H69,NA()) -> 0.01061016154 | M69: =IF(C69>0,-LOG(K69),NA()) -> 3.898285316 | N69: =IF(M69>$AF$11,NA(),M69) -> 3.898285316 | O69: =IF((($AB$8*B69/1000)-($AB$5*$AB$4/1000))>0,(($AB$8*B69/1000)-($AB$5*$AB$4/1000))/((B69+$AB$4)/1000),NA()) ->  | P69: =IF(O69>0,($AB$5*$AB$4/1000)/((B69+$AB$4)/1000),NA()) ->  | Q69: =IF(O69>0,1,NA()) ->  | R69: =IF(O69>0,O69+10^(-7)+10^(-(14-$AB$6)),NA()) ->  | S69: =IF(O69>0,-(10^(-(14-$AB$6))*P69),NA()) ->  | T69: =IF(O69>0,((-R69)+SQRT(R69^(2)-4*Q69*S69))/(2*Q69),NA()) ->  | U69: =IF(O69>0,((-R69)-SQRT(R69^(2)-4*Q69*S69))/(2*Q69),NA()) ->  | V69: =IF(Q69>0,O69+10^(-7)+T69,NA()) ->  | W69: =IF(O69>0,14+LOG(V69),NA()) ->  | X69: =IF(W69<$AF$11,NA(),W69) -> 
A70: =A69+1 -> 66 | B70: 3.30E+00 | C70: 0.07521459227 | D70: 0.0106223176 | E70: 1 | F70: 0.01064020039 | G70: -1.336463376e-06 | H70: 0.0001241563622 | I70: -0.01076435675 | J70: 0.07509043591 | K70: 0.0001242563622 | L70: 0.01074647396 | M70: 3.905681365 | N70: 3.905681365
A71: 67 | B71: 3.35E+00 | C71: 0.07489293362 | D71: 0.01076017131 | E71: 1 | F71: 0.0107780541 | G71: -1.330729601e-06 | H71: 0.0001220837406 | I71: -0.01090013784 | J71: 0.07477084988 | K71: 0.0001221837406 | L71: 0.01088225505 | M71: 3.912986583 | N71: 3.912986583
A72: 68 | B72: 3.40E+00 | C72: 0.07457264957 | D72: 0.0108974359 | E72: 1 | F72: 0.01091531869 | G72: -1.325020329e-06 | H72: 0.0001200701084 | I72: -0.0110353888 | J72: 0.07445257946 | K72: 0.0001201701084 | L72: 0.01101750601 | M72: 3.920203547 | N72: 3.920203547
A73: 69 | B73: 3.45E+00 | C73: 0.07425373134 | D73: 0.01103411514 | E73: 1 | F73: 0.01105199793 | G73: -1.319335404e-06 | H73: 0.0001181130081 | I73: -0.01117011094 | J73: 0.07413561834 | K73: 0.0001182130081 | L73: 0.01115222815 | M73: 3.927334731 | N73: 3.927334731
A74: 70 | B74: 3.50E+00 | C74: 0.07393617021 | D74: 0.01117021277 | E74: 1 | F74: 0.01118809556 | G74: -1.31367467e-06 | H74: 0.0001162101157 | I74: -0.01130430568 | J74: 0.0738199601 | K74: 0.0001163101157 | L74: 0.01128642288 | M74: 3.934382512 | N74: 3.934382512
A75: 71 | B75: 3.55E+00 | C75: 0.07361995754 | D75: 0.01130573248 | E75: 1 | F75: 0.01132361528 | G75: -1.308037973e-06 | H75: 0.0001143592314 | I75: -0.01143797451 | J75: 0.07350559831 | K75: 0.0001144592314 | L75: 0.01142009172 | M75: 3.941349175 | N75: 3.941349175
A76: 72 | B76: 3.60E+00 | C76: 0.07330508475 | D76: 0.01144067797 | E76: 1 | F76: 0.01145856076 | G76: -1.302425161e-06 | H76: 0.0001125582718 | I76: -0.01157111903 | J76: 0.07319252647 | K76: 0.0001126582718 | L76: 0.01155323624 | M76: 3.948236915 | N76: 3.948236915
A77: 73 | B77: 3.65E+00 | C77: 0.07299154334 | D77: 0.01157505285 | E77: 1 | F77: 0.01159293565 | G77: -1.296836081e-06 | H77: 0.0001108052623 | I77: -0.01170374091 | J77: 0.07288073808 | K77: 0.0001109052623 | L77: 0.01168585812 | M77: 3.955047847 | N77: 3.955047847
A78: 74 | B78: 3.70E+00 | C78: 0.07267932489 | D78: 0.01170886076 | E78: 1 | F78: 0.01172674355 | G78: -1.291270584e-06 | H78: 0.00010909833 | I78: -0.01183584188 | J78: 0.07257022656 | K78: 0.00010919833 | L78: 0.01181795909 | M78: 3.961784003 | N78: 3.961784003
A79: 75 | B79: 3.75E+00 | C79: 0.07236842105 | D79: 0.01184210526 | E79: 1 | F79: 0.01185998806 | G79: -1.28572852e-06 | H79: 0.0001074356977 | I79: -0.01196742375 | J79: 0.07226098535 | K79: 0.0001075356977 | L79: 0.01194954096 | M79: 3.968447343 | N79: 3.968447343
A80: 76 | B80: 3.80E+00 | C80: 0.07205882353 | D80: 0.01197478992 | E80: 1 | F80: 0.01199267271 | G80: -1.280209743e-06 | H80: 0.0001058156773 | I80: -0.01209848839 | J80: 0.07195300785 | K80: 0.0001059156773 | L80: 0.01208060559 | M80: 3.975039752 | N80: 3.975039752
A81: 77 | B81: 3.85E+00 | C81: 0.07175052411 | D81: 0.01210691824 | E81: 1 | F81: 0.01212480103 | G81: -1.274714105e-06 | H81: 0.0001042366649 | I81: -0.0122290377 | J81: 0.07164628744 | K81: 0.0001043366649 | L81: 0.0122111549 | M81: 3.981563049 | N81: 3.981563049
A82: 78 | B82: 3.90E+00 | C82: 0.07144351464 | D82: 0.01223849372 | E82: 1 | F82: 0.01225637652 | G82: -1.269241461e-06 | H82: 0.0001026971355 | I82: -0.01235907365 | J82: 0.07134081751 | K82: 0.0001027971355 | L82: 0.01234119086 | M82: 3.988018987 | N82: 3.988018987
A83: 79 | B83: 3.95E+00 | C83: 0.07113778706 | D83: 0.01236951983 | E83: 1 | F83: 0.01238740263 | G83: -1.263791668e-06 | H83: 0.0001011956379 | I83: -0.01248859826 | J83: 0.07103659142 | K83: 0.0001012956379 | L83: 0.01247071547 | M83: 3.994409256 | N83: 3.994409256
A84: 80 | B84: 4.00E+00 | C84: 0.07083333333 | D84: 0.0125 | E84: 1 | F84: 0.01251788279 | G84: -1.258364582e-06 | H84: 9.97307909e-05 | I84: -0.01261761359 | J84: 0.07073360254 | K84: 9.98307909e-05 | L84: 0.01259973079 | M84: 4.000735488 | N84: 4.000735488
A85: 81 | B85: 4.05E+00 | C85: 0.07053014553 | D85: 0.01262993763 | E85: 1 | F85: 0.01264782042 | G85: -1.252960062e-06 | H85: 9.830127872e-05 | I85: -0.0127461217 | J85: 0.07043184425 | K85: 9.840127872e-05 | L85: 0.01272823891 | M85: 4.006999258 | N85: 4.006999258
A86: 82 | B86: 4.10E+00 | C86: 0.07022821577 | D86: 0.0127593361 | E86: 1 | F86: 0.01277721889 | G86: -1.247577967e-06 | H86: 9.690584739e-05 | I86: -0.01287412474 | J86: 0.07013130992 | K86: 9.700584739e-05 | L86: 0.01285624195 | M86: 4.013202086 | N86: 4.013202086
A87: 83 | B87: 4.15E+00 | C87: 0.06992753623 | D87: 0.01288819876 | E87: 1 | F87: 0.01290608155 | G87: -1.242218159e-06 | H87: 9.554330116e-05 | I87: -0.01300162485 | J87: 0.06983199293 | K87: 9.564330116e-05 | L87: 0.01298374206 | M87: 4.019345442 | N87: 4.019345442
A88: 84 | B88: 4.20E+00 | C88: 0.06962809917 | D88: 0.01301652893 | E88: 1 | F88: 0.01303441172 | G88: -1.236880498e-06 | H88: 9.421249917e-05 | I88: -0.01312862422 | J88: 0.06953388667 | K88: 9.431249917e-05 | L88: 0.01311074142 | M88: 4.025430747 | N88: 4.025430747
A89: 85 | B89: 4.25E+00 | C89: 0.06932989691 | D89: 0.0131443299 | E89: 1 | F89: 0.01316221269 | G89: -1.231564849e-06 | H89: 9.291235237e-05 | I89: -0.01325512504 | J89: 0.06923698455 | K89: 9.301235237e-05 | L89: 0.01323724225 | M89: 4.031459372 | N89: 4.031459372
A90: 86 | B90: 4.30E+00 | C90: 0.06903292181 | D90: 0.01327160494 | E90: 1 | F90: 0.01328948773 | G90: -1.226271074e-06 | H90: 9.164182062e-05 | I90: -0.01338112955 | J90: 0.06894127999 | K90: 9.174182062e-05 | L90: 0.01336324676 | M90: 4.037432646 | N90: 4.037432646
A91: 87 | B91: 4.35E+00 | C91: 0.06873716632 | D91: 0.01339835729 | E91: 1 | F91: 0.01341624008 | G91: -1.22099904e-06 | H91: 9.039991002e-05 | I91: -0.01350663999 | J91: 0.06864676641 | K91: 9.049991002e-05 | L91: 0.0134887572 | M91: 4.043351853 | N91: 4.043351853
A92: 88 | B92: 4.40E+00 | C92: 0.06844262295 | D92: 0.01352459016 | E92: 1 | F92: 0.01354247296 | G92: -1.215748613e-06 | H92: 8.918567034e-05 | I92: -0.01363165863 | J92: 0.06835343728 | K92: 8.928567034e-05 | L92: 0.01361377583 | M92: 4.049218236 | N92: 4.049218236
A93: 89 | B93: 4.45E+00 | C93: 0.06814928425 | D93: 0.01365030675 | E93: 1 | F93: 0.01366818954 | G93: -1.210519659e-06 | H93: 8.799819271e-05 | I93: -0.01375618774 | J93: 0.06806128606 | K93: 8.809819271e-05 | L93: 0.01373830494 | M93: 4.055033001 | N93: 4.055033001
A94: 90 | B94: 4.50E+00 | C94: 0.06785714286 | D94: 0.0137755102 | E94: 1 | F94: 0.013793393 | G94: -1.205312049e-06 | H94: 8.683660738e-05 | I94: -0.01388022961 | J94: 0.06777030625 | K94: 8.693660738e-05 | L94: 0.01386234681 | M94: 4.060797312 | N94: 4.060797312
A95: 91 | B95: 4.55E+00 | C95: 0.06756619145 | D95: 0.01390020367 | E95: 1 | F95: 0.01391808646 | G95: -1.20012565e-06 | H95: 8.570008167e-05 | I95: -0.01400378654 | J95: 0.06748049136 | K95: 8.580008167e-05 | L95: 0.01398590375 | M95: 4.066512299 | N95: 4.066512299
A96: 92 | B96: 4.60E+00 | C96: 0.06727642276 | D96: 0.01402439024 | E96: 1 | F96: 0.01404227304 | G96: -1.194960335e-06 | H96: 8.458781799e-05 | I96: -0.01412686086 | J96: 0.06719183495 | K96: 8.468781799e-05 | L96: 0.01410897806 | M96: 4.072179057 | N96: 4.072179057
A97: 93 | B97: 4.65E+00 | C97: 0.06698782961 | D97: 0.01414807302 | E97: 1 | F97: 0.01416595582 | G97: -1.189815974e-06 | H97: 8.349905207e-05 | I97: -0.01424945487 | J97: 0.06690433056 | K97: 8.359905207e-05 | L97: 0.01423157207 | M97: 4.077798647 | N97: 4.077798647
A98: 94 | B98: 4.70E+00 | C98: 0.06670040486 | D98: 0.01427125506 | E98: 1 | F98: 0.01428913785 | G98: -1.184692441e-06 | H98: 8.243305121e-05 | I98: -0.01437157091 | J98: 0.06661797181 | K98: 8.253305121e-05 | L98: 0.01435368811 | M98: 4.083372099 | N98: 4.083372099
A99: 95 | B99: 4.75E+00 | C99: 0.06641414141 | D99: 0.01439393939 | E99: 1 | F99: 0.01441182219 | G99: -1.179589608e-06 | H99: 8.138911272e-05 | I99: -0.0144932113 | J99: 0.0663327523 | K99: 8.148911272e-05 | L99: 0.01447532851 | M99: 4.088900411 | N99: 4.088900411
A100: 96 | B100: 4.80E+00 | C100: 0.06612903226 | D100: 0.01451612903 | E100: 1 | F100: 0.01453401183 | G100: -1.174507352e-06 | H100: 8.036656234e-05 | I100: -0.01461437839 | J100: 0.0660486657 | K100: 8.046656234e-05 | L100: 0.01459649559 | M100: 4.094384552 | N100: 4.094384552
A101: 97 | B101: 4.85E+00 | C101: 0.06584507042 | D101: 0.01463782696 | E101: 1 | F101: 0.01465570976 | G101: -1.169445547e-06 | H101: 7.936475289e-05 | I101: -0.01473507451 | J101: 0.06576570567 | K101: 7.946475289e-05 | L101: 0.01471719171 | M101: 4.099825463 | N101: 4.099825463
A102: 98 | B102: 4.90E+00 | C102: 0.065562249 | D102: 0.01475903614 | E102: 1 | F102: 0.01477691894 | G102: -1.164404071e-06 | H102: 7.838306289e-05 | I102: -0.014855302 | J102: 0.06548386593 | K102: 7.848306289e-05 | L102: 0.01483741921 | M102: 4.105224056 | N102: 4.105224056
A103: 99 | B103: 4.95E+00 | C103: 0.06528056112 | D103: 0.01487975952 | E103: 1 | F103: 0.01489764231 | G103: -1.159382801e-06 | H103: 7.742089533e-05 | I103: -0.01497506321 | J103: 0.06520314023 | K103: 7.752089533e-05 | L103: 0.01495718041 | M103: 4.11058122 | N103: 4.11058122
A104: 100 | B104: 5.00E+00 | C104: 0.065 | D104: 0.015 | E104: 1 | F104: 0.01501788279 | G104: -1.154381617e-06 | H104: 7.647767647e-05 | I104: -0.01509436047 | J104: 0.06492352232 | K104: 7.657767647e-05 | L104: 0.01507647768 | M104: 4.115897815 | N104: 4.115897815
A105: 101 | B105: 5.05E+00 | C105: 0.06472055888 | D105: 0.01511976048 | E105: 1 | F105: 0.01513764327 | G105: -1.149400397e-06 | H105: 7.55528547e-05 | I105: -0.01521319613 | J105: 0.06464500603 | K105: 7.56528547e-05 | L105: 0.01519531333 | M105: 4.12117468 | N105: 4.12117468
A106: 102 | B106: 5.10E+00 | C106: 0.06444223108 | D106: 0.01523904382 | E106: 1 | F106: 0.01525692662 | G106: -1.144439022e-06 | H106: 7.464589955e-05 | I106: -0.01533157252 | J106: 0.06436758518 | K106: 7.474589955e-05 | L106: 0.01531368972 | M106: 4.126412627 | N106: 4.126412627
A107: 103 | B107: 5.15E+00 | C107: 0.06416500994 | D107: 0.01535785288 | E107: 1 | F107: 0.01537573568 | G107: -1.139497375e-06 | H107: 7.375630063e-05 | I107: -0.01544949198 | J107: 0.06409125364 | K107: 7.385630063e-05 | L107: 0.01543160918 | M107: 4.131612449 | N107: 4.131612449
A108: 104 | B108: 5.20E+00 | C108: 0.06388888889 | D108: 0.01547619048 | E108: 1 | F108: 0.01549407327 | G108: -1.134575337e-06 | H108: 7.288356673e-05 | I108: -0.01556695684 | J108: 0.06381600532 | K108: 7.298356673e-05 | L108: 0.01554907404 | M108: 4.136774916 | N108: 4.136774916
A109: 105 | B109: 5.25E+00 | C109: 0.06361386139 | D109: 0.01559405941 | E109: 1 | F109: 0.0156119422 | G109: -1.129672793e-06 | H109: 7.20272249e-05 | I109: -0.01568396942 | J109: 0.06354183416 | K109: 7.21272249e-05 | L109: 0.01566608663 | M109: 4.141900777 | N109: 4.141900777
A110: 106 | B110: 5.30E+00 | C110: 0.06333992095 | D110: 0.01571146245 | E110: 1 | F110: 0.01572934524 | G110: -1.124789626e-06 | H110: 7.118681964e-05 | I110: -0.01580053206 | J110: 0.06326873413 | K110: 7.128681964e-05 | L110: 0.01578264927 | M110: 4.14699076 | N110: 4.14699076
A111: 107 | B111: 5.35E+00 | C111: 0.06306706114 | D111: 0.01582840237 | E111: 1 | F111: 0.01584628516 | G111: -1.119925723e-06 | H111: 7.036191212e-05 | I111: -0.01591664707 | J111: 0.06299669923 | K111: 7.046191212e-05 | L111: 0.01589876428 | M111: 4.152045576 | N111: 4.152045576
A112: 108 | B112: 5.40E+00 | C112: 0.06279527559 | D112: 0.01594488189 | E112: 1 | F112: 0.01596276468 | G112: -1.115080968e-06 | H112: 6.955207938e-05 | I112: -0.01603231676 | J112: 0.06272572351 | K112: 6.965207938e-05 | L112: 0.01601443397 | M112: 4.157065914 | N112: 4.157065914
A113: 109 | B113: 5.45E+00 | C113: 0.06252455796 | D113: 0.01606090373 | E113: 1 | F113: 0.01607878653 | G113: -1.11025525e-06 | H113: 6.875691365e-05 | I113: -0.01614754344 | J113: 0.06245580104 | K113: 6.885691365e-05 | L113: 0.01612966065 | M113: 4.162052447 | N113: 4.162052447
A114: 110 | B114: 5.50E+00 | C114: 0.06225490196 | D114: 0.01617647059 | E114: 1 | F114: 0.01619435338 | G114: -1.105448456e-06 | H114: 6.797602169e-05 | I114: -0.0162623294 | J114: 0.06218692594 | K114: 6.807602169e-05 | L114: 0.01624444661 | M114: 4.167005832 | N114: 4.167005832
A115: 111 | B115: 5.55E+00 | C115: 0.06198630137 | D115: 0.01629158513 | E115: 1 | F115: 0.01630946792 | G115: -1.100660476e-06 | H115: 6.720902412e-05 | I115: -0.01637667695 | J115: 0.06191909235 | K115: 6.730902412e-05 | L115: 0.01635879415 | M115: 4.171926706 | N115: 4.171926706
A116: 112 | B116: 5.60E+00 | C116: 0.06171875 | D116: 0.01640625 | E116: 1 | F116: 0.01642413279 | G116: -1.095891198e-06 | H116: 6.645555484e-05 | I116: -0.01649058835 | J116: 0.06165229445 | K116: 6.655555484e-05 | L116: 0.01647270555 | M116: 4.176815692 | N116: 4.176815692
A117: 113 | B117: 5.65E+00 | C117: 0.06145224172 | D117: 0.01652046784 | E117: 1 | F117: 0.01653835063 | G117: -1.091140515e-06 | H117: 6.571526046e-05 | I117: -0.01660406589 | J117: 0.06138652645 | K117: 6.581526046e-05 | L117: 0.0165861831 | M117: 4.181673396 | N117: 4.181673396
A118: 114 | B118: 5.70E+00 | C118: 0.06118677043 | D118: 0.01663424125 | E118: 1 | F118: 0.01665212404 | G118: -1.086408316e-06 | H118: 6.498779972e-05 | I118: -0.01671711184 | J118: 0.06112178263 | K118: 6.508779972e-05 | L118: 0.01669922904 | M118: 4.186500409 | N118: 4.186500409
A119: 115 | B119: 5.75E+00 | C119: 0.0609223301 | D119: 0.01674757282 | E119: 1 | F119: 0.01676545561 | G119: -1.081694495e-06 | H119: 6.427284302e-05 | I119: -0.01682972845 | J119: 0.06085805725 | K119: 6.437284302e-05 | L119: 0.01681184566 | M119: 4.19129731 | N119: 4.19129731
A120: 116 | B120: 5.80E+00 | C120: 0.06065891473 | D120: 0.01686046512 | E120: 1 | F120: 0.01687834791 | G120: -1.076998944e-06 | H120: 6.357007191e-05 | I120: -0.01694191798 | J120: 0.06059534466 | K120: 6.367007191e-05 | L120: 0.01692403519 | M120: 4.19606466 | N120: 4.19606466
A121: 117 | B121: 5.85E+00 | C121: 0.06039651838 | D121: 0.0169729207 | E121: 1 | F121: 0.01699080349 | G121: -1.072321559e-06 | H121: 6.287917861e-05 | I121: -0.01705368267 | J121: 0.0603336392 | K121: 6.297917861e-05 | L121: 0.01703579987 | M121: 4.200803008 | N121: 4.200803008
A122: 118 | B122: 5.90E+00 | C122: 0.06013513514 | D122: 0.01708494208 | E122: 1 | F122: 0.01710282488 | G122: -1.067662232e-06 | H122: 6.21998656e-05 | I122: -0.01716502474 | J122: 0.06007293527 | K122: 6.22998656e-05 | L122: 0.01714714195 | M122: 4.20551289 | N122: 4.20551289
A123: 119 | B123: 5.95E+00 | C123: 0.05987475915 | D123: 0.01719653179 | E123: 1 | F123: 0.01721441459 | G123: -1.063020861e-06 | H123: 6.153184515e-05 | I123: -0.01727594643 | J123: 0.05981322731 | K123: 6.163184515e-05 | L123: 0.01725806364 | M123: 4.21019483 | N123: 4.21019483
A124: 120 | B124: 6.00E+00 | C124: 0.05961538462 | D124: 0.01730769231 | E124: 1 | F124: 0.0173255751 | G124: -1.058397341e-06 | H124: 6.087483898e-05 | I124: -0.01738644994 | J124: 0.05955450978 | K124: 6.097483898e-05 | L124: 0.01736856715 | M124: 4.214849338 | N124: 4.214849338
A125: 121 | B125: 6.05E+00 | C125: 0.05935700576 | D125: 0.0174184261 | E125: 1 | F125: 0.0174363089 | G125: -1.053791569e-06 | H125: 6.022857784e-05 | I125: -0.01749653748 | J125: 0.05929677718 | K125: 6.032857784e-05 | L125: 0.01747865468 | M125: 4.219476912 | N125: 4.219476912
A126: 122 | B126: 6.10E+00 | C126: 0.05909961686 | D126: 0.01752873563 | E126: 1 | F126: 0.01754661843 | G126: -1.049203444e-06 | H126: 5.959280114e-05 | I126: -0.01760621123 | J126: 0.05904002406 | K126: 5.969280114e-05 | L126: 0.01758832843 | M126: 4.224078041 | N126: 4.224078041
A127: 123 | B127: 6.15E+00 | C127: 0.05884321224 | D127: 0.01763862333 | E127: 1 | F127: 0.01765650612 | G127: -1.044632865e-06 | H127: 5.896725664e-05 | I127: -0.01771547338 | J127: 0.05878424498 | K127: 5.906725664e-05 | L127: 0.01769759058 | M127: 4.228653199 | N127: 4.228653199
A128: 124 | B128: 6.20E+00 | C128: 0.05858778626 | D128: 0.0177480916 | E128: 1 | F128: 0.0177659744 | G128: -1.040079731e-06 | H128: 5.835170009e-05 | I128: -0.0178243261 | J128: 0.05852943456 | K128: 5.845170009e-05 | L128: 0.0178064433 | M128: 4.233202853 | N128: 4.233202853
A129: 125 | B129: 6.25E+00 | C129: 0.05833333333 | D129: 0.01785714286 | E129: 1 | F129: 0.01787502565 | G129: -1.035543942e-06 | H129: 5.774589493e-05 | I129: -0.01793277155 | J129: 0.05827558744 | K129: 5.784589493e-05 | L129: 0.01791488875 | M129: 4.237727456 | N129: 4.237727456
A130: 126 | B130: 6.30E+00 | C130: 0.05807984791 | D130: 0.01796577947 | E130: 1 | F130: 0.01798366226 | G130: -1.031025399e-06 | H130: 5.7149612e-05 | I130: -0.01804081187 | J130: 0.0580226983 | K130: 5.7249612e-05 | L130: 0.01802292908 | M130: 4.242227452 | N130: 4.242227452
A131: 127 | B131: 6.35E+00 | C131: 0.05782732448 | D131: 0.0180740038 | E131: 1 | F131: 0.01809188659 | G131: -1.026524004e-06 | H131: 5.656262923e-05 | I131: -0.01814844922 | J131: 0.05777076185 | K131: 5.666262923e-05 | L131: 0.01813056642 | M131: 4.246703277 | N131: 4.246703277
A132: 128 | B132: 6.40E+00 | C132: =IF((($AB$5*$AB$4/1000)-($AB$8*B132/1000))>0,(($AB$5*$AB$4/1000)-($AB$8*B132/1000))/((B132+$AB$4)/1000),NA()) -> 0.05757575758 | D132: =IF(C132>0,($AB$8*B132/1000)/((B132+$AB$4)/1000),NA()) -> 0.01818181818 | E132: 1 | F132: =IF(C132>0,D132+10^(-7)+10^(-$AB$6),NA()) -> 0.01819970098 | G132: -1.02203966e-06 | H132: 5.598473137e-05 | I132: =IF(C132>0,((-F132)-SQRT(F132^(2)-4*E132*G132))/(2*E132),NA()) -> -0.01825568571 | J132: 0.05751977284 | K132: 5.608473137e-05 | L132: 0.01823780291 | M132: 4.251155356 | N132: 4.251155356
A133: 129 | B133: =A133*$AB$9 -> 6.45E+00 | C133: 0.05732514178 | D133: 0.01828922495 | E133: =IF(C133>0,1,NA()) -> 1 | F133: 0.01830710775 | G133: =IF(C133>0,(10^(-7)*D133)-(10^(-$AB$6)*C133),NA()) -> -1.01757227e-06 | H133: =IF(C133>0,((-F133)+SQRT(F133^(2)-4*E133*G133))/(2*E133),NA()) -> 5.541570977e-05 | I133: -0.01836252346 | J133: =IF(C133>0,C133-H133,NA()) -> 0.05726972607 | K133: =IF(C133>0,H133+10^(-7),NA()) -> 5.551570977e-05 | L133: =IF(C133>0,D133+H133,NA()) -> 0.01834464066 | M133: =IF(C133>0,-LOG(K133),NA()) -> 4.255584103 | N133: =IF(M133>$AF$11,NA(),M133) -> 4.255584103 | O133: =IF((($AB$8*B133/1000)-($AB$5*$AB$4/1000))>0,(($AB$8*B133/1000)-($AB$5*$AB$4/1000))/((B133+$AB$4)/1000),NA()) ->  | P133: =IF(O133>0,($AB$5*$AB$4/1000)/((B133+$AB$4)/1000),NA()) ->  | Q133: =IF(O133>0,1,NA()) ->  | R133: =IF(O133>0,O133+10^(-7)+10^(-(14-$AB$6)),NA()) ->  | S133: =IF(O133>0,-(10^(-(14-$AB$6))*P133),NA()) ->  | T133: =IF(O133>0,((-R133)+SQRT(R133^(2)-4*Q133*S133))/(2*Q133),NA()) ->  | U133: =IF(O133>0,((-R133)-SQRT(R133^(2)-4*Q133*S133))/(2*Q133),NA()) ->  | V133: =IF(Q133>0,O133+10^(-7)+T133,NA()) ->  | W133: =IF(O133>0,14+LOG(V133),NA()) ->  | X133: =IF(W133<$AF$11,NA(),W133) -> 
A134: =A133+1 -> 130 | B134: 6.50E+00 | C134: 0.0570754717 | D134: 0.01839622642 | E134: 1 | F134: 0.01841410921 | G134: -1.013121739e-06 | H134: 5.485536208e-05 | I134: -0.01846896457 | J134: 0.05702061634 | K134: 5.495536208e-05 | L134: 0.01845108178 | M134: 4.259989926 | N134: 4.259989926
A135: 131 | B135: 6.55E+00 | C135: 0.056826742 | D135: 0.01850282486 | E135: 1 | F135: 0.01852070765 | G135: -1.00868797e-06 | H135: 5.430349204e-05 | I135: -0.01857501114 | J135: 0.0567724385 | K135: 5.440349204e-05 | L135: 0.01855712835 | M135: 4.264373223 | N135: 4.264373223
A136: 132 | B136: 6.60E+00 | C136: 0.05657894737 | D136: 0.01860902256 | E136: 1 | F136: 0.01862690535 | G136: -1.004270869e-06 | H136: 5.375990926e-05 | I136: -0.01868066526 | J136: 0.05652518746 | K136: 5.385990926e-05 | L136: 0.01866278247 | M136: 4.268734383 | N136: 4.268734383
A137: 133 | B137: 6.65E+00 | C137: 0.05633208255 | D137: 0.01871482176 | E137: 1 | F137: 0.01873270456 | G137: -9.998703431e-07 | H137: 5.322442898e-05 | I137: -0.01878592899 | J137: 0.05627885812 | K137: 5.332442898e-05 | L137: 0.01876804619 | M137: 4.273073786 | N137: 4.273073786
A138: 134 | B138: 6.70E+00 | C138: 0.05608614232 | D138: 0.01882022472 | E138: 1 | F138: 0.01883810751 | G138: -9.954862983e-07 | H138: 5.269687188e-05 | I138: -0.01889080439 | J138: 0.05603344545 | K138: 5.279687188e-05 | L138: 0.01887292159 | M138: 4.277391808 | N138: 4.277391808
A139: 135 | B139: 6.75E+00 | C139: 0.0558411215 | D139: 0.01892523364 | E139: 1 | F139: 0.01894311644 | G139: -9.911186425e-07 | H139: 5.217706388e-05 | I139: -0.0189952935 | J139: 0.05578894443 | K139: 5.227706388e-05 | L139: 0.01897741071 | M139: 4.281688812 | N139: 4.281688812
A140: 136 | B140: 6.80E+00 | C140: 0.05559701493 | D140: 0.01902985075 | E140: 1 | F140: 0.01904773354 | G140: -9.867672839e-07 | H140: 5.166483595e-05 | I140: -0.01909939838 | J140: 0.05554535009 | K140: 5.176483595e-05 | L140: 0.01908151558 | M140: 4.285965158 | N140: 4.285965158
A141: 137 | B141: 6.85E+00 | C141: 0.0553538175 | D141: 0.01913407821 | E141: 1 | F141: 0.01915196101 | G141: -9.824321315e-07 | H141: 5.116002393e-05 | I141: -0.01920312103 | J141: 0.05530265748 | K141: 5.126002393e-05 | L141: 0.01918523824 | M141: 4.290221195 | N141: 4.290221195
A142: 138 | B142: 6.90E+00 | C142: 0.05511152416 | D142: 0.01923791822 | E142: 1 | F142: 0.01925580101 | G142: -9.781130949e-07 | H142: 5.066246835e-05 | I142: -0.01930646348 | J142: 0.0550608617 | K142: 5.076246835e-05 | L142: 0.01928858068 | M142: 4.294457268 | N142: 4.294457268
A143: 139 | B143: 6.95E+00 | C143: 0.05487012987 | D143: 0.01934137291 | E143: 1 | F143: 0.01935925571 | G143: -9.738100845e-07 | H143: 5.017201426e-05 | I143: -0.01940942772 | J143: 0.05481995786 | K143: 5.027201426e-05 | L143: 0.01939154493 | M143: 4.298673713 | N143: 4.298673713
A144: 140 | B144: 7.00E+00 | C144: 0.05462962963 | D144: 0.01944444444 | E144: 1 | F144: 0.01946232724 | G144: -9.69523011e-07 | H144: 4.968851109e-05 | I144: -0.01951201575 | J144: 0.05457994112 | K144: 4.978851109e-05 | L144: 0.01949413296 | M144: 4.302870861 | N144: 4.302870861
A145: 141 | B145: 7.05E+00 | C145: 0.05439001848 | D145: 0.01954713494 | E145: 1 | F145: 0.01956501773 | G145: -9.652517863e-07 | H145: 4.921181249e-05 | I145: -0.01961422954 | J145: 0.05434080667 | K145: 4.931181249e-05 | L145: 0.01959634675 | M145: 4.307049034 | N145: 4.307049034
A146: 142 | B146: 7.10E+00 | C146: 0.05415129151 | D146: 0.01964944649 | E146: 1 | F146: 0.01966732929 | G146: -9.609963226e-07 | H146: 4.874177616e-05 | I146: -0.01971607106 | J146: 0.05410254974 | K146: 4.884177616e-05 | L146: 0.01969818827 | M146: 4.311208551 | N146: 4.311208551
A147: 143 | B147: 7.15E+00 | C147: 0.05391344383 | D147: 0.01975138122 | E147: 1 | F147: 0.01976926401 | G147: -9.567565328e-07 | H147: 4.827826375e-05 | I147: -0.01981754227 | J147: 0.05386516557 | K147: 4.837826375e-05 | L147: 0.01979965948 | M147: 4.315349722 | N147: 4.315349722
A148: 144 | B148: 7.20E+00 | C148: 0.05367647059 | D148: 0.01985294118 | E148: 1 | F148: 0.01987082397 | G148: -9.525323304e-07 | H148: 4.78211407e-05 | I148: -0.01991864511 | J148: 0.05362864945 | K148: 4.79211407e-05 | L148: 0.01990076232 | M148: 4.319472853 | N148: 4.319472853
A149: 145 | B149: 7.25E+00 | C149: 0.05344036697 | D149: 0.01995412844 | E149: 1 | F149: 0.01997201123 | G149: -9.483236297e-07 | H149: 4.737027611e-05 | I149: -0.02001938151 | J149: 0.0533929967 | K149: 4.747027611e-05 | L149: 0.02000149872 | M149: 4.323578242 | N149: 4.323578242
A150: 146 | B150: 7.30E+00 | C150: 0.05320512821 | D150: 0.02005494505 | E150: 1 | F150: 0.02007282785 | G150: -9.441303455e-07 | H150: 4.692554263e-05 | I150: -0.02011975339 | J150: 0.05315820266 | K150: 4.702554263e-05 | L150: 0.0201018706 | M150: 4.327666184 | N150: 4.327666184
A151: 147 | B151: 7.35E+00 | C151: 0.05297074954 | D151: 0.02015539305 | E151: 1 | F151: 0.02017327585 | G151: -9.399523932e-07 | H151: 4.648681633e-05 | I151: -0.02021976266 | J151: 0.05292426273 | K151: 4.658681633e-05 | L151: 0.02020187987 | M151: 4.331736968 | N151: 4.331736968
A152: 148 | B152: 7.40E+00 | C152: 0.05273722628 | D152: 0.02025547445 | E152: 1 | F152: 0.02027335725 | G152: -9.357896889e-07 | H152: 4.605397659e-05 | I152: -0.02031941122 | J152: 0.0526911723 | K152: 4.615397659e-05 | L152: 0.02030152843 | M152: 4.335790875 | N152: 4.335790875
A153: 149 | B153: 7.45E+00 | C153: 0.05250455373 | D153: 0.02035519126 | E153: 1 | F153: 0.02037307405 | G153: -9.316421493e-07 | H153: 4.5626906e-05 | I153: -0.02041870096 | J153: 0.05245892683 | K153: 4.5726906e-05 | L153: 0.02040081816 | M153: 4.339828183 | N153: 4.339828183
A154: 150 | B154: 7.50E+00 | C154: 0.05227272727 | D154: 0.02045454545 | E154: 1 | F154: 0.02047242825 | G154: -9.275096916e-07 | H154: 4.520549023e-05 | I154: -0.02051763374 | J154: 0.05222752178 | K154: 4.530549023e-05 | L154: 0.02049975094 | M154: 4.343849166 | N154: 4.343849166
A155: 151 | B155: 7.55E+00 | C155: 0.05204174229 | D155: 0.02055353902 | E155: 1 | F155: 0.02057142181 | G155: -9.233922338e-07 | H155: 4.478961796e-05 | I155: -0.02061621143 | J155: 0.05199695267 | K155: 4.488961796e-05 | L155: 0.02059832864 | M155: 4.347854091 | N155: 4.347854091
A156: 152 | B156: 7.60E+00 | C156: 0.0518115942 | D156: 0.02065217391 | E156: 1 | F156: 0.02067005671 | G156: -9.192896943e-07 | H156: 4.437918075e-05 | I156: -0.02071443589 | J156: 0.05176721502 | K156: 4.447918075e-05 | L156: 0.02069655309 | M156: 4.351843221 | N156: 4.351843221
A157: 153 | B157: 7.65E+00 | C157: 0.05158227848 | D157: 0.02075045208 | E157: 1 | F157: 0.02076833487 | G157: -9.152019922e-07 | H157: 4.397407297e-05 | I157: -0.02081230895 | J157: 0.05153830441 | K157: 4.407407297e-05 | L157: 0.02079442615 | M157: 4.355816814 | N157: 4.355816814
A158: 154 | B158: 7.70E+00 | C158: 0.05135379061 | D158: 0.02084837545 | E158: 1 | F158: 0.02086625825 | G158: -9.111290472e-07 | H158: 4.357419171e-05 | I158: -0.02090983244 | J158: 0.05131021642 | K158: 4.367419171e-05 | L158: 0.02089194964 | M158: 4.359775124 | N158: 4.359775124
A159: 155 | B159: 7.75E+00 | C159: 0.05112612613 | D159: 0.02094594595 | E159: 1 | F159: 0.02096382874 | G159: -9.070707795e-07 | H159: 4.317943668e-05 | I159: -0.02100700818 | J159: 0.05108294669 | K159: 4.327943668e-05 | L159: 0.02098912538 | M159: 4.363718401 | N159: 4.363718401
A160: 156 | B160: 7.80E+00 | C160: 0.05089928058 | D160: 0.02104316547 | E160: 1 | F160: 0.02106104826 | G160: -9.030271098e-07 | H160: 4.278971015e-05 | I160: -0.02110383797 | J160: 0.05085649087 | K160: 4.288971015e-05 | L160: 0.02108595518 | M160: 4.367646889 | N160: 4.367646889
A161: 157 | B161: 7.85E+00 | C161: 0.05067324955 | D161: 0.02114003591 | E161: 1 | F161: 0.0211579187 | G161: -8.989979596e-07 | H161: 4.240491682e-05 | I161: -0.02120032362 | J161: 0.05063084463 | K161: 4.250491682e-05 | L161: 0.02118244082 | M161: 4.371560829 | N161: 4.371560829
A162: 158 | B162: 7.90E+00 | C162: 0.05044802867 | D162: 0.02123655914 | E162: 1 | F162: 0.02125444193 | G162: -8.949832508e-07 | H162: 4.202496382e-05 | I162: -0.0212964669 | J162: 0.05040600371 | K162: 4.212496382e-05 | L162: 0.0212785841 | M162: 4.375460459 | N162: 4.375460459
A163: 159 | B163: 7.95E+00 | C163: 0.0502236136 | D163: 0.02133273703 | E163: 1 | F163: 0.02135061982 | G163: -8.909829058e-07 | H163: 4.164976055e-05 | I163: -0.02139226959 | J163: 0.05018196384 | K163: 4.174976055e-05 | L163: 0.02137438679 | M163: 4.379346011 | N163: 4.379346011
A164: 160 | B164: 8.00E+00 | C164: 0.05 | D164: 0.02142857143 | E164: 1 | F164: 0.02144645422 | G164: -8.869968479e-07 | H164: 4.127921869e-05 | I164: -0.02148773344 | J164: 0.04995872078 | K164: 4.137921869e-05 | L164: 0.02146985065 | M164: 4.383217714 | N164: 4.383217714
A165: 161 | B165: 8.05E+00 | C165: 0.0497771836 | D165: 0.02152406417 | E165: 1 | F165: 0.02154194697 | G165: -8.830250005e-07 | H165: 4.091325207e-05 | I165: -0.02158286022 | J165: 0.04973627035 | K165: 4.101325207e-05 | L165: 0.02156497742 | M165: 4.387075793 | N165: 4.387075793
A166: 162 | B166: 8.10E+00 | C166: 0.04955516014 | D166: 0.02161921708 | E166: 1 | F166: 0.02163709988 | G166: -8.790672877e-07 | H166: 4.055177663e-05 | I166: -0.02167765165 | J166: 0.04951460837 | K166: 4.065177663e-05 | L166: 0.02165976886 | M166: 4.390920469 | N166: 4.390920469
A167: 163 | B167: 8.15E+00 | C167: 0.0493339254 | D167: 0.02171403197 | E167: 1 | F167: 0.02173191477 | G167: -8.751236343e-07 | H167: 4.019471036e-05 | I167: -0.02177210948 | J167: 0.04929373069 | K167: 4.029471036e-05 | L167: 0.02175422668 | M167: 4.394751962 | N167: 4.394751962
A168: 164 | B168: 8.20E+00 | C168: 0.04911347518 | D168: 0.02180851064 | E168: 1 | F168: 0.02182639343 | G168: -8.711939656e-07 | H168: 3.984197323e-05 | I168: -0.02186623541 | J168: 0.0490736332 | K168: 3.994197323e-05 | L168: 0.02184835261 | M168: 4.398570484 | N168: 4.398570484
A169: 165 | B169: 8.25E+00 | C169: 0.04889380531 | D169: 0.02190265487 | E169: 1 | F169: 0.02192053766 | G169: -8.672782071e-07 | H169: 3.949348711e-05 | I169: -0.02196003115 | J169: 0.04885431182 | K169: 3.959348711e-05 | L169: 0.02194214835 | M169: 4.402376247 | N169: 4.402376247
A170: 166 | B170: 8.30E+00 | C170: 0.04867491166 | D170: 0.02199646643 | E170: 1 | F170: 0.02201434923 | G170: -8.633762853e-07 | H170: 3.914917577e-05 | I170: -0.0220534984 | J170: 0.04863576249 | K170: 3.924917577e-05 | L170: 0.02203561561 | M170: 4.406169459 | N170: 4.406169459
A171: 167 | B171: 8.35E+00 | C171: 0.04845679012 | D171: 0.02208994709 | E171: 1 | F171: 0.02210782988 | G171: -8.594881268e-07 | H171: 3.880896477e-05 | I171: -0.02214663885 | J171: 0.04841798116 | K171: 3.890896477e-05 | L171: 0.02212875605 | M171: 4.409950324 | N171: 4.409950324
A172: 168 | B172: 8.40E+00 | C172: 0.04823943662 | D172: 0.02218309859 | E172: 1 | F172: 0.02220098139 | G172: -8.556136591e-07 | H172: 3.847278142e-05 | I172: -0.02223945417 | J172: 0.04820096384 | K172: 3.857278142e-05 | L172: 0.02222157137 | M172: 4.413719044 | N172: 4.413719044
A173: 169 | B173: 8.45E+00 | C173: 0.0480228471 | D173: 0.02227592267 | E173: 1 | F173: 0.02229380547 | G173: -8.517528098e-07 | H173: 3.814055475e-05 | I173: -0.02233194602 | J173: 0.04798470655 | K173: 3.824055475e-05 | L173: 0.02231406323 | M173: 4.417475816 | N173: 4.417475816
A174: 170 | B174: 8.50E+00 | C174: 0.04780701754 | D174: 0.02236842105 | E174: 1 | F174: 0.02238630385 | G174: -8.479055074e-07 | H174: 3.781221543e-05 | I174: -0.02242411606 | J174: 0.04776920533 | K174: 3.791221543e-05 | L174: 0.02240623327 | M174: 4.421220836 | N174: 4.421220836
A175: 171 | B175: 8.55E+00 | C175: 0.04759194396 | D175: 0.02246059545 | E175: 1 | F175: 0.02247847824 | G175: -8.440716807e-07 | H175: 3.748769576e-05 | I175: -0.02251596594 | J175: 0.04755445626 | K175: 3.758769576e-05 | L175: 0.02249808314 | M175: 4.424954297 | N175: 4.424954297
A176: 172 | B176: 8.60E+00 | C176: 0.04737762238 | D176: 0.02255244755 | E176: 1 | F176: 0.02257033035 | G176: -8.40251259e-07 | H176: 3.716692957e-05 | I176: -0.02260749728 | J176: 0.04734045545 | K176: 3.726692957e-05 | L176: 0.02258961448 | M176: 4.428676387 | N176: 4.428676387
A177: 173 | B177: 8.65E+00 | C177: 0.04716404887 | D177: 0.02264397906 | E177: 1 | F177: 0.02266186185 | G177: -8.36444172e-07 | H177: 3.684985223e-05 | I177: -0.0226987117 | J177: 0.04712719901 | K177: 3.694985223e-05 | L177: 0.02268082891 | M177: 4.432387294 | N177: 4.432387294
A178: 174 | B178: 8.70E+00 | C178: 0.04695121951 | D178: 0.02273519164 | E178: 1 | F178: 0.02275307443 | G178: -8.326503502e-07 | H178: 3.653640057e-05 | I178: -0.02278961083 | J178: 0.04691468311 | K178: 3.663640057e-05 | L178: 0.02277172804 | M178: 4.436087201 | N178: 4.436087201
A179: 175 | B179: 8.75E+00 | C179: 0.04673913043 | D179: 0.02282608696 | E179: 1 | F179: 0.02284396975 | G179: -8.288697243e-07 | H179: 3.622651286e-05 | I179: -0.02288019626 | J179: 0.04670290392 | K179: 3.632651286e-05 | L179: 0.02286231347 | M179: 4.43977629 | N179: 4.43977629
A180: 176 | B180: 8.80E+00 | C180: 0.04652777778 | D180: 0.02291666667 | E180: 1 | F180: 0.02293454946 | G180: -8.251022255e-07 | H180: 3.592012877e-05 | I180: -0.02297046959 | J180: 0.04649185765 | K180: 3.602012877e-05 | L180: 0.0229525868 | M180: 4.443454739 | N180: 4.443454739
A181: 177 | B181: 8.85E+00 | C181: 0.04631715771 | D181: 0.02300693241 | E181: 1 | F181: 0.0230248152 | G181: -8.213477857e-07 | H181: 3.561718929e-05 | I181: -0.02306043239 | J181: 0.04628154052 | K181: 3.571718929e-05 | L181: 0.0230425496 | M181: 4.447122725 | N181: 4.447122725
A182: 178 | B182: 8.90E+00 | C182: 0.04610726644 | D182: 0.02309688581 | E182: 1 | F182: 0.02311476861 | G182: -8.17606337e-07 | H182: 3.531763676e-05 | I182: -0.02315008624 | J182: 0.0460719488 | K182: 3.541763676e-05 | L182: 0.02313220345 | M182: 4.45078042 | N182: 4.45078042
A183: 179 | B183: 8.95E+00 | C183: 0.04589810017 | D183: 0.0231865285 | E183: 1 | F183: 0.02320441129 | G183: -8.138778121e-07 | H183: 3.502141478e-05 | I183: -0.02323943271 | J183: 0.04586307876 | K183: 3.512141478e-05 | L183: 0.02322154991 | M183: 4.454427998 | N183: 4.454427998
A184: 180 | B184: 9.00E+00 | C184: 0.04568965517 | D184: 0.02327586207 | E184: 1 | F184: 0.02329374486 | G184: -8.101621442e-07 | H184: 3.47284682e-05 | I184: -0.02332847333 | J184: 0.0456549267 | K184: 3.48284682e-05 | L184: 0.02331059054 | M184: 4.458065626 | N184: 4.458065626
A185: 181 | B185: 9.05E+00 | C185: 0.04548192771 | D185: 0.02336488812 | E185: 1 | F185: 0.02338277092 | G185: -8.06459267e-07 | H185: 3.443874307e-05 | I185: -0.02341720966 | J185: 0.04544748897 | K185: 3.453874307e-05 | L185: 0.02339932687 | M185: 4.461693471 | N185: 4.461693471
A186: 182 | B186: 9.10E+00 | C186: 0.04527491409 | D186: 0.02345360825 | E186: 1 | F186: 0.02347149104 | G186: -8.027691143e-07 | H186: 3.415218663e-05 | I186: -0.02350564323 | J186: 0.0452407619 | K186: 3.425218663e-05 | L186: 0.02348776043 | M186: 4.465311698 | N186: 4.465311698
A187: 183 | B187: 9.15E+00 | C187: 0.04506861063 | D187: 0.02354202401 | E187: 1 | F187: 0.02355990681 | G187: -7.990916209e-07 | H187: 3.386874725e-05 | I187: -0.02359377556 | J187: 0.04503474189 | K187: 3.396874725e-05 | L187: 0.02357589276 | M187: 4.468920469 | N187: 4.468920469
A188: 184 | B188: 9.20E+00 | C188: 0.0448630137 | D188: 0.02363013699 | E188: 1 | F188: 0.02364801978 | G188: -7.954267216e-07 | H188: 3.358837442e-05 | I188: -0.02368160815 | J188: 0.04482942532 | K188: 3.368837442e-05 | L188: 0.02366372536 | M188: 4.472519945 | N188: 4.472519945
A189: 185 | B189: 9.25E+00 | C189: 0.04465811966 | D189: 0.02371794872 | E189: 1 | F189: 0.02373583151 | G189: -7.917743519e-07 | H189: 3.331101872e-05 | I189: -0.02376914253 | J189: 0.04462480864 | K189: 3.341101872e-05 | L189: 0.02375125974 | M189: 4.476110282 | N189: 4.476110282
A190: 186 | B190: 9.30E+00 | C190: 0.04445392491 | D190: 0.02380546075 | E190: 1 | F190: 0.02382334354 | G190: -7.881344476e-07 | H190: 3.303663179e-05 | I190: -0.02385638018 | J190: 0.04442088828 | K190: 3.313663179e-05 | L190: 0.02383849738 | M190: 4.479691638 | N190: 4.479691638
A191: 187 | B191: 9.35E+00 | C191: 0.04425042589 | D191: 0.02389267462 | E191: 1 | F191: 0.02391055741 | G191: -7.845069451e-07 | H191: 3.276516626e-05 | I191: -0.02394332258 | J191: 0.04421766073 | K191: 3.286516626e-05 | L191: 0.02392543978 | M191: 4.483264166 | N191: 4.483264166
A192: 188 | B192: 9.40E+00 | C192: 0.04404761905 | D192: 0.02397959184 | E192: 1 | F192: 0.02399747463 | G192: -7.80891781e-07 | H192: 3.249657581e-05 | I192: -0.02402997121 | J192: 0.04401512247 | K192: 3.259657581e-05 | L192: 0.02401208841 | M192: 4.486828019 | N192: 4.486828019
A193: 189 | B193: 9.45E+00 | C193: 0.04384550085 | D193: 0.02406621392 | E193: 1 | F193: 0.02408409672 | G193: -7.772888924e-07 | H193: 3.223081505e-05 | I193: -0.02411632753 | J193: 0.04381327003 | K193: 3.233081505e-05 | L193: 0.02409844474 | M193: 4.490383347 | N193: 4.490383347
A194: 190 | B194: 9.50E+00 | C194: 0.0436440678 | D194: 0.02415254237 | E194: 1 | F194: 0.02417042517 | G194: -7.736982171e-07 | H194: 3.196783958e-05 | I194: -0.02420239301 | J194: 0.04361209996 | K194: 3.206783958e-05 | L194: 0.02418451021 | M194: 4.493930298 | N194: 4.493930298
A195: 191 | B195: 9.55E+00 | C195: 0.04344331641 | D195: 0.02423857868 | E195: 1 | F195: 0.02425646147 | G195: -7.701196929e-07 | H195: 3.170760589e-05 | I195: -0.02428816908 | J195: 0.04341160881 | K195: 3.180760589e-05 | L195: 0.02427028629 | M195: 4.497469018 | N195: 4.497469018
A196: 192 | B196: 9.60E+00 | C196: =IF((($AB$5*$AB$4/1000)-($AB$8*B196/1000))>0,(($AB$5*$AB$4/1000)-($AB$8*B196/1000))/((B196+$AB$4)/1000),NA()) -> 0.04324324324 | D196: =IF(C196>0,($AB$8*B196/1000)/((B196+$AB$4)/1000),NA()) -> 0.02432432432 | E196: 1 | F196: =IF(C196>0,D196+10^(-7)+10^(-$AB$6),NA()) -> 0.02434220712 | G196: -7.665532584e-07 | H196: 3.145007138e-05 | I196: =IF(C196>0,((-F196)-SQRT(F196^(2)-4*E196*G196))/(2*E196),NA()) -> -0.02437365719 | J196: 0.04321179317 | K196: 3.155007138e-05 | L196: 0.0243557744 | M196: 4.500999654 | N196: 4.500999654
A197: 193 | B197: =A197*$AB$9 -> 9.65E+00 | C197: 0.04304384486 | D197: 0.02440978078 | E197: =IF(C197>0,1,NA()) -> 1 | F197: 0.02442766357 | G197: =IF(C197>0,(10^(-7)*D197)-(10^(-$AB$6)*C197),NA()) -> -7.629988523e-07 | H197: =IF(C197>0,((-F197)+SQRT(F197^(2)-4*E197*G197))/(2*E197),NA()) -> 3.119519433e-05 | I197: -0.02445885876 | J197: =IF(C197>0,C197-H197,NA()) -> 0.04301264966 | K197: =IF(C197>0,H197+10^(-7),NA()) -> 3.129519433e-05 | L197: =IF(C197>0,D197+H197,NA()) -> 0.02444097597 | M197: =IF(C197>0,-LOG(K197),NA()) -> 4.504522347 | N197: =IF(M197>$AF$11,NA(),M197) -> 4.504522347 | O197: =IF((($AB$8*B197/1000)-($AB$5*$AB$4/1000))>0,(($AB$8*B197/1000)-($AB$5*$AB$4/1000))/((B197+$AB$4)/1000),NA()) ->  | P197: =IF(O197>0,($AB$5*$AB$4/1000)/((B197+$AB$4)/1000),NA()) ->  | Q197: =IF(O197>0,1,NA()) ->  | R197: =IF(O197>0,O197+10^(-7)+10^(-(14-$AB$6)),NA()) ->  | S197: =IF(O197>0,-(10^(-(14-$AB$6))*P197),NA()) ->  | T197: =IF(O197>0,((-R197)+SQRT(R197^(2)-4*Q197*S197))/(2*Q197),NA()) ->  | U197: =IF(O197>0,((-R197)-SQRT(R197^(2)-4*Q197*S197))/(2*Q197),NA()) ->  | V197: =IF(Q197>0,O197+10^(-7)+T197,NA()) ->  | W197: =IF(O197>0,14+LOG(V197),NA()) ->  | X197: =IF(W197<$AF$11,NA(),W197) -> 
A198: =A197+1 -> 194 | B198: 9.70E+00 | C198: 0.04284511785 | D198: 0.02449494949 | E198: 1 | F198: 0.02451283229 | G198: -7.594564139e-07 | H198: 3.094293388e-05 | I198: -0.02454377522 | J198: 0.04281417491 | K198: 3.104293388e-05 | L198: 0.02452589243 | M198: 4.50803724 | N198: 4.50803724
A199: 195 | B199: 9.75E+00 | C199: 0.04264705882 | D199: 0.02457983193 | E199: 1 | F199: 0.02459771473 | G199: -7.559258829e-07 | H199: 3.069324999e-05 | I199: -0.02462840798 | J199: 0.04261636557 | K199: 3.079324999e-05 | L199: 0.02461052518 | M199: 4.511544472 | N199: 4.511544472
A200: 196 | B200: 9.80E+00 | C200: 0.04244966443 | D200: 0.02466442953 | E200: 1 | F200: 0.02468231232 | G200: -7.524071992e-07 | H200: 3.044610343e-05 | I200: -0.02471275843 | J200: 0.04241921833 | K200: 3.054610343e-05 | L200: 0.02469487563 | M200: 4.515044182 | N200: 4.515044182
... 803 more rows

Sheet Monobase faible
A1: # | B1: VB [ml]
C2: Base faibe | O2: Acide fort
C3: cB,av.n.,0 | D3: cBH+,av.n.,0 | E3: a | F3: b | G3: c | H3: x1 | I3: x2 | J3: cB,éq | K3: cOH-,éq | L3: cBH+,éq | M3: pH | O3: cH3O+,ap.n.,0 | P3: cBH+,ap.n.0 | Q3: a | R3: b | S3: c | T3: x1 | U3: x2 | V3: cH3O+,éq | W3: pH
A4: 0 | B4: 0 | C4: =IF((($AB$5*$AB$4/1000)-($AB$8*B4/1000))>0,(($AB$5*$AB$4/1000)-($AB$8*B4/1000))/((B4+$AB$4)/1000),NA()) -> 0.01 | D4: =IF(C4>0,($AB$8*B4/1000)/((B4+$AB$4)/1000),NA()) -> 0 | E4: =IF(C4>0,1,NA()) -> 1 | F4: =IF(C4>0,D4+10^(-7)+10^(-$AD$6),NA()) -> 2.005262315e-05 | G4: =IF(C4>0,(10^(-7)*D4)-(10^(-$AD$6)*C4),NA()) -> -1.995262315e-07 | H4: =IF(C4>0,((-F4)+SQRT(F4^(2)-4*E4*G4))/(2*E4),NA()) -> 0.0004367697923 | I4: =IF(C4>0,((-F4)-SQRT(F4^(2)-4*E4*G4))/(2*E4),NA()) -> -0.0004568224154 | J4: =IF(C4>0,C4-H4,NA()) -> 0.009563230208 | K4: =IF(C4>0,H4+10^(-7),NA()) -> 0.0004368697923 | L4: =IF(C4>0,D4+H4,NA()) -> 0.0004367697923 | M4: =IF(C4>0,14+LOG(K4),NA()) -> 10.64035202 | N4: =IF(M4<$AG$11,NA(),M4) -> 10.64035202 | O4: =IF((($AB$8*B4/1000)-($AB$5*$AB$4/1000))>0,(($AB$8*B4/1000)-($AB$5*$AB$4/1000))/((B4+$AB$4)/1000),NA()) ->  | P4: =IF(O4>0,($AB$5*$AB$4/1000)/((B4+$AB$4)/1000),NA()) ->  | Q4: =IF(O4>0,1,NA()) ->  | R4: =IF(O4>0,O4+10^(-7)+10^(-(14-$AD$6)),NA()) ->  | S4: =IF(O4>0,-(10^(-(14-$AD$6))*P4),NA()) ->  | T4: =IF(O4>0,((-R4)+SQRT(R4^(2)-4*Q4*S4))/(2*Q4),NA()) ->  | U4: =IF(O4>0,((-R4)-SQRT(R4^(2)-4*Q4*S4))/(2*Q4),NA()) ->  | V4: =IF(Q4>0,O4+10^(-7)+T4,NA()) ->  | W4: =IF(O4>0,-LOG(V4),NA()) ->  | X4: =IF(W4>$AG$11,NA(),W4) ->  | Z4: Monobase faible : | AA4: VB= | AB4: 25.00 | AC4: ml | AG4: 20
A5: =A4+1 -> 1 | B5: =A5*$AB$9 -> 5.00E-02 | C5: =IF((($AB$5*$AB$4/1000)-($AB$8*B5/1000))>0,(($AB$5*$AB$4/1000)-($AB$8*B5/1000))/((B5+$AB$4)/1000),NA()) -> 0.0099500998 | D5: =IF(C5>0,($AB$8*B5/1000)/((B5+$AB$4)/1000),NA()) -> 2.994011976e-05 | E5: =IF(C5>0,1,NA()) -> 1 | F5: =IF(C5>0,D5+10^(-7)+10^(-$AD$6),NA()) -> 4.999274291e-05 | G5: =IF(C5>0,(10^(-7)*D5)-(10^(-$AD$6)*C5),NA()) -> -1.985275976e-07 | H5: =IF(C5>0,((-F5)+SQRT(F5^(2)-4*E5*G5))/(2*E5),NA()) -> 0.0004212685904 | I5: =IF(C5>0,((-F5)-SQRT(F5^(2)-4*E5*G5))/(2*E5),NA()) -> -0.0004712613333 | J5: =IF(C5>0,C5-H5,NA()) -> 0.00952883121 | K5: =IF(C5>0,H5+10^(-7),NA()) -> 0.0004213685904 | L5: =IF(C5>0,D5+H5,NA()) -> 0.0004512087102 | M5: =IF(C5>0,14+LOG(K5),NA()) -> 10.62466216 | N5: =IF(M5<$AG$11,NA(),M5) -> 10.62466216 | O5: =IF((($AB$8*B5/1000)-($AB$5*$AB$4/1000))>0,(($AB$8*B5/1000)-($AB$5*$AB$4/1000))/((B5+$AB$4)/1000),NA()) ->  | P5: =IF(O5>0,($AB$5*$AB$4/1000)/((B5+$AB$4)/1000),NA()) ->  | Q5: =IF(O5>0,1,NA()) ->  | R5: =IF(O5>0,O5+10^(-7)+10^(-(14-$AD$6)),NA()) ->  | S5: =IF(O5>0,-(10^(-(14-$AD$6))*P5),NA()) ->  | T5: =IF(O5>0,((-R5)+SQRT(R5^(2)-4*Q5*S5))/(2*Q5),NA()) ->  | U5: =IF(O5>0,((-R5)-SQRT(R5^(2)-4*Q5*S5))/(2*Q5),NA()) ->  | V5: =IF(Q5>0,O5+10^(-7)+T5,NA()) ->  | W5: =IF(O5>0,-LOG(V5),NA()) ->  | X5: =IF(W5>$AG$11,NA(),W5) ->  | AA5: cB= | AB5: 0.010 | AC5: M
A6: =A5+1 -> 2 | B6: =A6*$AB$9 -> 1.00E-01 | C6: =IF((($AB$5*$AB$4/1000)-($AB$8*B6/1000))>0,(($AB$5*$AB$4/1000)-($AB$8*B6/1000))/((B6+$AB$4)/1000),NA()) -> 0.009900398406 | D6: 5.976095618e-05 | E6: 1 | F6: 7.981357932e-05 | G6: -1.975329423e-07 | H6: 0.0004063280075 | I6: -0.0004861415868 | J6: 0.009494070399 | K6: 0.0004064280075 | L6: 0.0004660889637 | M6: 10.60898363 | N6: 10.60898363 | AA6: pKa | AB6: 9.3 | AC6: pKb= | AD6: =14-AB6 -> 4.7
A7: 3 | B7: =A7*$AB$9 -> 1.50E-01 | C7: 0.009850894632 | D7: 8.946322068e-05 | E7: 1 | F7: 0.0001095158438 | G7: -1.96542242e-07 | H7: 0.000391941834 | I7: -0.0005014576779 | J7: 0.009458952798 | K7: 0.000392041834 | L7: 0.0004814050547 | M7: 10.59333241 | N7: 10.59333241
A8: 4 | B8: 2.00E-01 | C8: 0.009801587302 | D8: 0.000119047619 | E8: 1 | F8: 0.0001391002422 | G8: -1.955554729e-07 | H8: 0.0003781023024 | I8: -0.0005172025446 | J8: 0.009423484999 | K8: 0.0003782023024 | L8: 0.0004971499215 | M8: 10.57772417 | N8: 10.57772417 | Z8: Acide fort : | AA8: cHA= | AB8: 0.015 | AC8: M
A9: 5 | B9: 2.50E-01 | C9: 0.009752475248 | D9: 0.0001485148515 | E9: 1 | F9: 0.0001685674746 | G9: -1.945726119e-07 | H9: 0.000364800175 | I9: -0.0005333676496 | J9: 0.009387675073 | K9: 0.000364900175 | L9: 0.0005133150265 | M9: 10.56217407 | N9: 10.56217407 | AA9: VHA,incr.= | AB9: 5.00E-02 | AC9: ml
A10: 6 | B10: 3.00E-01 | C10: 0.009703557312 | D10: 0.0001778656126 | E10: 1 | F10: 0.0001979182358 | G10: -1.935936357e-07 | H10: 0.0003520248538 | I10: -0.0005499430896 | J10: 0.009351532458 | K10: 0.0003521248538 | L10: 0.0005298904664 | M10: 10.54669668 | N10: 10.54669668
A11: 7 | B11: 3.50E-01 | C11: 0.009654832347 | D11: 0.0002071005917 | E11: 1 | F11: 0.0002271532149 | G11: -1.926185213e-07 | H11: 0.0003397645082 | I11: -0.000566917723 | J11: 0.009315067839 | K11: 0.0003398645082 | L11: 0.0005468650999 | M11: 10.53130581 | N11: 10.53130581 | Z11: Equivalence : | AA11: VHA= | AB11: =AB4*AB5/AB8 -> 16.7 | AC11: ml | AF11: pH= | AG11: =0.5*AB6-0.5*LOG((AB5*AB8)/(AB5+AB8)) -> 5.76 | AK11: TRUE | AL11: =IF(AK11=FALSE,"",0) -> 0 | AM11: =IF(AK11=FALSE,"",AG11) -> 5.76 | AN11: =IF(AK11=FALSE,"",AL12) -> 16.7 | AO11: =IF(AK11=FALSE,"",0) -> 0
A12: 8 | B12: 4.00E-01 | C12: 0.009606299213 | D12: 0.0002362204724 | E12: 1 | F12: 0.0002562730956 | G12: -1.91647246e-07 | H12: 0.0003280062159 | I12: -0.0005842793115 | J12: 0.009278292997 | K12: 0.0003281062159 | L12: 0.0005642266884 | M12: 10.51601446 | N12: 10.51601446 | AL12: =IF(AK11=FALSE,NA(),AB11) -> 16.7 | AM12: =IF(AK11=FALSE,NA(),AG11) -> 5.76 | AN12: =IF(AK11=FALSE,"",AL12) -> 16.7 | AO12: =IF(AK11=FALSE,"",15) -> 15
A13: 9 | B13: 4.50E-01 | C13: 0.009557956778 | D13: 0.0002652259332 | E13: 1 | F13: 0.0002852785564 | G13: -1.906797871e-07 | H13: 0.0003167361138 | I13: -0.0006020146702 | J13: 0.009241220664 | K13: 0.0003168361138 | L13: 0.000581962047 | M13: 10.50083468 | N13: 10.50083468 | Z13: Demi-équivalence : | AA13: VHA= | AB13: =AB11/2 -> 8.3 | AC13: ml | AF13: pH= | AG13: =AB6 -> 9.30 | AL13: =IF(AK11=FALSE,"",B1003) -> 5.00E+01 | AM13: =IF(AK11=FALSE,"",AG11) -> 5.76
A14: 10 | B14: 5.00E-01 | C14: 0.009509803922 | D14: 0.0002941176471 | E14: 1 | F14: 0.0003141702702 | G14: -1.897161221e-07 | H14: 0.000305939553 | I14: -0.0006201098232 | J14: 0.009203864369 | K14: 0.000306039553 | L14: 0.0006000572 | M14: 10.48577756 | N14: 10.48577756 | AG14: =IF(AA14=FALSE,NA(),$AG$15-($AB$15-AB14)/($AB$16-$AB$15)*($AG$16-$AG$15)) ->  | AK14: TRUE | AL14: =IF(AK14=FALSE,"",0) -> 0 | AM14: =IF(AK14=FALSE,"",AG13) -> 9.30 | AN14: =IF(AK14=FALSE,"",AL15) -> 8.333333333 | AO14: =IF(AK14=FALSE,"",0) -> 0
A15: 11 | B15: 5.50E-01 | C15: 0.00946183953 | D15: 0.0003228962818 | E15: 1 | F15: 0.000342948905 | G15: -1.887562288e-07 | H15: 0.0002956012552 | I15: -0.0006385501601 | J15: 0.009166238275 | K15: 0.0002957012552 | L15: 0.000618497537 | M15: 10.47085317 | N15: 10.47085317 | AG15: =IF(AA14=FALSE,NA(),14+LOG((($AB$8*AB15/1000)-($AB$4*$AB$5/1000))/(($AB$4+AB15)/1000))) ->  | AL15: =IF(AK14=FALSE,NA(),AB13) -> 8.333333333 | AM15: =IF(AK14=FALSE,NA(),AG13) -> 9.30 | AN15: =IF(AK14=FALSE,"",AL15) -> 8.333333333 | AO15: =IF(AK14=FALSE,"",15) -> 15
A16: 12 | B16: 6.00E-01 | C16: 0.0094140625 | D16: 0.0003515625 | E16: 1 | F16: 0.0003716151231 | G16: -1.878000851e-07 | H16: 0.0002857054659 | I16: -0.000657320589 | J16: 0.009128357034 | K16: 0.0002858054659 | L16: 0.0006372679659 | M16: 10.45607053 | N16: 10.45607053 | AB16: =IF(AA14=FALSE,NA(),AB15+AB9) ->  | AG16: =IF(AA14=FALSE,NA(),14+LOG((($AB$8*AB16/1000)-($AB$4*$AB$5/1000))/(($AB$4+AB16)/1000))) ->  | AL16: =IF(AK14=FALSE,"",B1003) -> 5.00E+01 | AM16: =IF(AK14=FALSE,"",AG13) -> 9.30
A17: 13 | B17: 6.50E-01 | C17: 0.009366471735 | D17: 0.0003801169591 | E17: 1 | F17: 0.0004001695822 | G17: -1.868476691e-07 | H17: 0.0002762361015 | I17: -0.0006764056837 | J17: 0.009090235633 | K17: 0.0002763361015 | L17: 0.0006563530605 | M17: 10.44143763 | N17: 10.44143763 | Z17: Tangente 1 : | AA17: =IF(AA18=TRUE,AG4,"") ->  | AB17: =IF(AA18=FALSE,NA(),0) ->  | AG17: =IF(AA18=FALSE,NA(),$AG$19-($AB$19-AB17)/($AB$20-$AB$19)*($AG$20-$AG$19)) -> 
A18: 14 | B18: 7.00E-01 | C18: 0.009319066148 | D18: 0.0004085603113 | E18: 1 | F18: 0.0004286129344 | G18: -1.858989589e-07 | H18: 0.0002671768874 | I18: -0.0006957898219 | J18: 0.00905188926 | K18: 0.0002672768874 | L18: 0.0006757371987 | M18: 10.42696141 | N18: 10.42696141 | AA18: FALSE | AB18: =IF(AA18=FALSE,NA(),AB11) ->  | AG18: =IF(AA18=FALSE,NA(),$AG$19-($AB$19-AB18)/($AB$20-$AB$19)*($AG$20-$AG$19)) -> 
A19: 15 | B19: 7.50E-01 | C19: 0.00927184466 | D19: 0.0004368932039 | E19: 1 | F19: 0.000456945827 | G19: -1.849539331e-07 | H19: 0.0002585114859 | I19: -0.000715457313 | J19: 0.009013333174 | K19: 0.0002586114859 | L19: 0.0006954046898 | M19: 10.41264781 | N19: 10.41264781 | AB19: =IF(AA18=FALSE,NA(),AB11+AA17*AB9) ->  | AG19: =IF(AA18=FALSE,NA(),-LOG((($AB$8*AB19/1000)-($AB$4*$AB$5/1000))/(($AB$4+AB19)/1000))) -> 
A20: 16 | B20: 8.00E-01 | C20: 0.009224806202 | D20: 0.0004651162791 | E20: 1 | F20: 0.0004851689022 | G20: -1.840125701e-07 | H20: 0.000250223611 | I20: -0.0007353925132 | J20: 0.008974582591 | K20: 0.000250323611 | L20: 0.00071533989 | M20: 10.39850181 | N20: 10.39850181 | AB20: =IF(AA18=FALSE,NA(),AB19+AB9) ->  | AG20: =IF(AA18=FALSE,NA(),-LOG((($AB$8*AB20/1000)-($AB$4*$AB$5/1000))/(($AB$4+AB20)/1000))) -> 
A21: 17 | B21: 8.50E-01 | C21: 0.00917794971 | D21: 0.0004932301741 | E21: 1 | F21: 0.0005132827972 | G21: -1.830748488e-07 | H21: 0.000242297131 | I21: -0.0007555799282 | J21: 0.008935652579 | K21: 0.000242397131 | L21: 0.0007355273051 | M21: 10.38452748 | N21: 10.38452748 | AB21: =IF(AA18=FALSE,NA(),B1003) ->  | AG21: =IF(AA18=FALSE,NA(),$AG$20+(AB21-$AB$20)/($AB$20-$AB$19)*($AG$20-$AG$19)) -> 
A22: 18 | B22: 9.00E-01 | C22: 0.009131274131 | D22: 0.0005212355212 | E22: 1 | F22: 0.0005412881444 | G22: -1.821407481e-07 | H22: 0.0002347161576 | I22: -0.000776004302 | J22: 0.008896557974 | K22: 0.0002348161576 | L22: 0.0007559516789 | M22: 10.37072798 | N22: 10.37072798 | Z22: Equivalence : | AB22: =IF(AA18=FALSE,NA(),AB17) ->  | AG22: =IF(AA18=FALSE,NA(),AG17-(AG18-AG23)) -> 
A23: 19 | B23: 9.50E-01 | C23: 0.00908477842 | D23: 0.000549132948 | E23: 1 | F23: 0.0005691855711 | G23: -1.812102469e-07 | H23: 0.0002274651218 | I23: -0.0007966506929 | J23: 0.008857313298 | K23: 0.0002275651218 | L23: 0.0007765980698 | M23: =IF(C23>0,14+LOG(K23),NA()) -> 10.3571057 | N23: 10.3571057 | AB23: =IF(AA18=FALSE,NA(),AB11) ->  | AG23: =IF(AA18=FALSE,NA(),AG11) -> 
A24: 20 | B24: 1.00E+00 | C24: 0.009038461538 | D24: 0.0005769230769 | E24: 1 | F24: 0.0005969757001 | G24: -1.802833246e-07 | H24: 0.0002205288368 | I24: -0.0008175045369 | J24: 0.008817932702 | K24: 0.0002206288368 | L24: 0.0007974519137 | M24: 10.34366228 | N24: 10.34366228 | AB24: =IF(AA18=FALSE,NA(),AB21) ->  | AG24: =IF(AA18=FALSE,NA(),AG21-(AG18-AG23)) -> 
A25: 21 | B25: 1.05E+00 | C25: 0.008992322457 | D25: 0.0006046065259 | E25: 1 | F25: 0.0006246591491 | G25: -1.793599606e-07 | H25: 0.0002138925494 | I25: -0.0008385516984 | J25: 0.008778429907 | K25: 0.0002139925494 | L25: 0.0008184990753 | M25: 10.33039865 | N25: 10.33039865 | Z25: Tangente 2 : | AB25: =IF(AA18=FALSE,NA(),AB17) ->  | AG25: =IF(AA18=FALSE,NA(),AG26-((AB26-AB25)/(AB27-AB26))*(AG27-AG26)) -> 
A26: 22 | B26: 1.10E+00 | C26: 0.008946360153 | D26: 0.000632183908 | E26: 1 | F26: 0.0006522365312 | G26: -1.784401343e-07 | H26: 0.0002075419798 | I26: -0.0008597785109 | J26: 0.008738818174 | K26: 0.0002076419798 | L26: 0.0008397258878 | M26: 10.31731516 | N26: 10.31731516 | AB26: =IF(AA18=FALSE,NA(),AB27-AB9) ->  | AG26: =IF(AA18=FALSE,NA(),$AB$6+LOG((($AB$4*$AB$5/1000)-($AB$8*AB26/1000))/($AB$8*AB26/1000))) -> 
A27: 23 | B27: 1.15E+00 | C27: 0.008900573614 | D27: 0.0006596558317 | E27: 1 | F27: 0.0006797084549 | G27: -1.775238255e-07 | H27: 0.0002014633517 | I27: -0.0008811718066 | J27: 0.008699110262 | K27: 0.0002015633517 | L27: 0.0008611191834 | M27: 10.30441157 | N27: 10.30441157 | AB27: =IF(AA18=FALSE,NA(),AB11-AA17*AB9) ->  | AG27: =IF(AA18=FALSE,NA(),$AB$6+LOG((($AB$4*$AB$5/1000)-($AB$8*AB27/1000))/($AB$8*AB27/1000))) -> 
A28: 24 | B28: 1.20E+00 | C28: 0.008854961832 | D28: 0.0006870229008 | E28: 1 | F28: 0.0007070755239 | G28: -1.766110141e-07 | H28: 0.0001956434133 | I28: -0.0009027189372 | J28: 0.008659318419 | K28: 0.0001957434133 | L28: 0.0008826663141 | M28: 10.29168716 | N28: 10.29168716 | AB28: =IF(AA18=FALSE,NA(),AB21) ->  | AG28: =IF(AA18=FALSE,NA(),AG27+(AB28-AB27)/(AB27-AB26)*(AG27-AG26)) -> 
A29: 25 | B29: 1.25E+00 | C29: 0.00880952381 | D29: 0.0007142857143 | E29: 1 | F29: 0.0007343383374 | G29: -1.757016801e-07 | H29: 0.0001900694504 | I29: -0.0009244077878 | J29: 0.008619454359 | K29: 0.0001901694504 | L29: 0.0009043551646 | M29: 10.27914075 | N29: 10.27914075
A30: 26 | B30: 1.30E+00 | C30: 0.008764258555 | D30: 0.0007414448669 | E30: 1 | F30: 0.0007614974901 | G30: -1.747958037e-07 | H30: 0.0001847292921 | I30: -0.0009462267822 | J30: 0.008579529263 | K30: 0.0001848292921 | L30: 0.000926174159 | M30: 10.2667708 | N30: 10.2667708
A31: 27 | B31: 1.35E+00 | C31: 0.008719165085 | D31: 0.0007685009488 | E31: 1 | F31: 0.0007885535719 | G31: -1.73893365e-07 | H31: 0.000179611312 | I31: -0.0009681648839 | J31: 0.008539553773 | K31: 0.000179711312 | L31: 0.0009481122608 | M31: 10.25457541 | N31: 10.25457541
A32: 28 | B32: 1.40E+00 | C32: 0.008674242424 | D32: 0.0007954545455 | E32: 1 | F32: 0.0008155071686 | G32: -1.729943447e-07 | H32: 0.000174704423 | I32: -0.0009902115916 | J32: 0.008499538001 | K32: 0.000174804423 | L32: 0.0009701589684 | M32: 10.24255242 | N32: 10.24255242
A33: 29 | B33: 1.45E+00 | C33: 0.008629489603 | D33: 0.0008223062382 | E33: 1 | F33: 0.0008423588613 | G33: -1.720987234e-07 | H33: 0.0001699980691 | I33: -0.00101235693 | J33: 0.008459491534 | K33: 0.0001700980691 | L33: 0.0009923043073 | M33: 10.23069938 | N33: 10.23069938
A34: 30 | B34: 1.50E+00 | C34: 0.00858490566 | D34: 0.0008490566038 | E34: 1 | F34: 0.0008691092269 | G34: -1.712064818e-07 | H34: 0.0001654822136 | I34: -0.001034591441 | J34: 0.008419423447 | K34: 0.0001655822136 | L34: 0.001014538817 | M34: 10.21901368 | N34: 10.21901368
A35: 31 | B35: 1.55E+00 | C35: 0.008540489642 | D35: 0.0008757062147 | E35: 1 | F35: 0.0008957588378 | G35: -1.703176007e-07 | H35: 0.0001611473248 | I35: -0.001056906163 | J35: 0.008379342317 | K35: 0.0001612473248 | L35: 0.00103685354 | M35: 10.20749252 | N35: 10.20749252
A36: 32 | B36: 1.60E+00 | C36: 0.008496240602 | D36: 0.0009022556391 | E36: 1 | F36: 0.0009223082622 | G36: -1.694320613e-07 | H36: 0.0001569843598 | I36: -0.001079292622 | J36: 0.008339256242 | K36: 0.0001570843598 | L36: 0.001059239999 | M36: 10.19613295 | N36: 10.19613295
A37: 33 | B37: 1.65E+00 | C37: 0.008452157598 | D37: 0.0009287054409 | E37: 1 | F37: 0.0009487580641 | G37: -1.685498448e-07 | H37: 0.0001529847467 | I37: -0.001101742811 | J37: 0.008299172852 | K37: 0.0001530847467 | L37: 0.001081690188 | M37: 10.18493192 | N37: 10.18493192
A38: 34 | B38: 1.70E+00 | C38: 0.0084082397 | D38: 0.0009550561798 | E38: 1 | F38: 0.0009751088029 | G38: -1.676709325e-07 | H38: 0.000149140366 | I38: -0.001124249169 | J38: 0.008259099334 | K38: 0.000149240366 | L38: 0.001104196546 | M38: 10.17388631 | N38: 10.17388631
A39: 35 | B39: 1.75E+00 | C39: 0.008364485981 | D39: 0.0009813084112 | E39: 1 | F39: 0.001001361034 | G39: -1.667953058e-07 | H39: 0.0001454435313 | I39: -0.001146804566 | J39: 0.00821904245 | K39: 0.0001455435313 | L39: 0.001126751943 | M39: 10.16299291 | N39: 10.16299291
A40: 36 | B40: 1.80E+00 | C40: 0.008320895522 | D40: 0.001007462687 | E40: 1 | F40: 0.00102751531 | G40: -1.659229464e-07 | H40: 0.0001418869701 | I40: -0.00116940228 | J40: 0.008179008552 | K40: 0.0001419869701 | L40: 0.001149349657 | M40: 10.15224849 | N40: 10.15224849
A41: 37 | B41: 1.85E+00 | C41: 0.008277467412 | D41: 0.001033519553 | E41: 1 | F41: 0.001053572176 | G41: -1.650538359e-07 | H41: 0.0001384638037 | I41: -0.00119203598 | J41: 0.008139003608 | K41: 0.0001385638037 | L41: 0.001171983357 | M41: 10.1416498 | N41: 10.1416498
A42: 38 | B42: 1.90E+00 | C42: 0.008234200743 | D42: 0.001059479554 | E42: 1 | F42: 0.001079532177 | G42: -1.641879564e-07 | H42: 0.000135167528 | I42: -0.001214699705 | J42: 0.008099033215 | K42: 0.000135267528 | L42: 0.001194647082 | M42: 10.13119355 | N42: 10.13119355
A43: 39 | B43: 1.95E+00 | C43: 0.00819109462 | D43: 0.001085343228 | E43: 1 | F43: 0.001105395851 | G43: -1.633252898e-07 | H43: 0.0001319919945 | I43: -0.001237387846 | J43: 0.008059102625 | K43: 0.0001320919945 | L43: 0.001217335223 | M43: 10.1208765 | N43: 10.1208765
A44: 40 | B44: 2.00E+00 | C44: 0.008148148148 | D44: 0.001111111111 | E44: 1 | F44: 0.001131163734 | G44: -1.624658183e-07 | H44: 0.0001289313917 | I44: -0.001260095126 | J44: 0.008019216756 | K44: 0.0001290313917 | L44: 0.001240042503 | M44: 10.11069538 | N44: 10.11069538
A45: 41 | B45: 2.05E+00 | C45: 0.008105360444 | D45: 0.001136783734 | E45: 1 | F45: 0.001156836357 | G45: -1.616095241e-07 | H45: 0.0001259802267 | I45: -0.001282816584 | J45: 0.007979380217 | K45: 0.0001260802267 | L45: 0.001262763961 | M45: 10.10064698 | N45: 10.10064698
A46: 42 | B46: 2.10E+00 | C46: 0.008062730627 | D46: 0.001162361624 | E46: 1 | F46: 0.001182414247 | G46: -1.607563896e-07 | H46: 0.0001231333083 | I46: -0.001305547555 | J46: 0.007939597319 | K46: 0.0001232333083 | L46: 0.001285494932 | M46: 10.09072811 | N46: 10.09072811
A47: 43 | B47: 2.15E+00 | C47: 0.008020257827 | D47: 0.001187845304 | E47: 1 | F47: 0.001207897927 | G47: -1.599063975e-07 | H47: 0.0001203857298 | I47: -0.001328283657 | J47: 0.007899872097 | K47: 0.0001204857298 | L47: 0.001308231034 | M47: 10.08093561 | N47: 10.08093561
A48: 44 | B48: 2.20E+00 | C48: 0.007977941176 | D48: 0.001213235294 | E48: 1 | F48: 0.001233287917 | G48: -1.590595303e-07 | H48: 0.0001177328534 | I48: -0.001351020771 | J48: 0.007860208323 | K48: 0.0001178328534 | L48: 0.001330968147 | M48: 10.07126639 | N48: 10.07126639
A49: 45 | B49: 2.25E+00 | C49: 0.007935779817 | D49: 0.00123853211 | E49: 1 | F49: 0.001258584733 | G49: -1.582157709e-07 | H49: 0.0001151702943 | I49: -0.001373755028 | J49: 0.007820609522 | K49: 0.0001152702943 | L49: 0.001353702404 | M49: 10.0617174 | N49: 10.0617174
A50: 46 | B50: 2.30E+00 | C50: 0.007893772894 | D50: 0.001263736264 | E50: 1 | F50: 0.001283788887 | G50: -1.573751022e-07 | H50: 0.000112693907 | I50: -0.001396482794 | J50: 0.007781078987 | K50: 0.000112793907 | L50: 0.001376430171 | M50: 10.05228564 | N50: 10.05228564
A51: 47 | B51: 2.35E+00 | C51: 0.007851919561 | D51: 0.001288848263 | E51: 1 | F51: 0.001308900886 | G51: -1.565375072e-07 | H51: 0.0001102997708 | I51: -0.001419200657 | J51: 0.00774161979 | K51: 0.0001103997708 | L51: 0.001399148034 | M51: 10.04296817 | N51: 10.04296817
A52: 48 | B52: 2.40E+00 | C52: 0.007810218978 | D52: 0.001313868613 | E52: 1 | F52: 0.001333921236 | G52: -1.557029691e-07 | H52: 0.0001079841768 | I52: -0.001441905413 | J52: 0.007702234801 | K52: 0.0001080841768 | L52: 0.00142185279 | M52: 10.03376212 | N52: 10.03376212
A53: 49 | B53: 2.45E+00 | C53: 0.00776867031 | D53: 0.001338797814 | E53: 1 | F53: 0.001358850437 | G53: -1.548714713e-07 | H53: 0.0001057436161 | I53: -0.001464594053 | J53: 0.007662926694 | K53: 0.0001058436161 | L53: 0.00144454143 | M53: 10.02466467 | N53: 10.02466467
A54: 50 | B54: 2.50E+00 | C54: 0.007727272727 | D54: 0.001363636364 | E54: 1 | F54: 0.001383688987 | G54: -1.540429971e-07 | H54: 0.0001035747672 | I54: -0.001487263754 | J54: 0.00762369796 | K54: 0.0001036747672 | L54: 0.001467211131 | M54: 10.01567307 | N54: 10.01567307
A55: 51 | B55: 2.55E+00 | C55: 0.007686025408 | D55: 0.001388384755 | E55: 1 | F55: 0.001408437378 | G55: -1.5321753e-07 | H55: 0.0001014744858 | I55: -0.001509911864 | J55: 0.007584550923 | K55: 0.0001015744858 | L55: 0.001489859241 | M55: 10.00678463 | N55: 10.00678463
A56: 52 | B56: 2.60E+00 | C56: 0.007644927536 | D56: 0.001413043478 | E56: 1 | F56: 0.001433096101 | G56: -1.523950538e-07 | H56: 9.943979403e-05 | I56: -0.001532535895 | J56: 0.007545487742 | K56: 9.953979403e-05 | L56: 0.001512483272 | M56: 9.997996738 | N56: 9.997996738
A57: 53 | B57: 2.65E+00 | C57: 0.0076039783 | D57: 0.00143761302 | E57: 1 | F57: 0.001457665643 | G57: -1.515755522e-07 | H57: 9.746787065e-05 | I57: -0.001555133514 | J57: 0.00750651043 | K57: 9.756787065e-05 | L57: 0.001535080891 | M57: 9.989306827 | N57: 9.989306827
A58: 54 | B58: 2.70E+00 | C58: 0.007563176895 | D58: 0.001462093863 | E58: 1 | F58: 0.001482146486 | G58: -1.50759009e-07 | H58: 9.5556042e-05 | I58: -0.001577702528 | J58: 0.007467620853 | K58: 9.5656042e-05 | L58: 0.001557649905 | M58: 9.980712407 | N58: 9.980712407
A59: 55 | B59: 2.75E+00 | C59: 0.007522522523 | D59: 0.001486486486 | E59: 1 | F59: 0.00150653911 | G59: -1.499454084e-07 | H59: 9.370177326e-05 | I59: -0.001600240883 | J59: 0.007428820749 | K59: 9.380177326e-05 | L59: 0.00158018826 | M59: 9.972211049 | N59: 9.972211049
A60: 56 | B60: 2.80E+00 | C60: 0.007482014388 | D60: 0.001510791367 | E60: 1 | F60: 0.00153084399 | G60: -1.491347344e-07 | H60: 9.190266041e-05 | I60: -0.00162274665 | J60: 0.007390111728 | K60: 9.200266041e-05 | L60: 0.001602694027 | M60: 9.963800386 | N60: 9.963800386
A61: 57 | B61: 2.85E+00 | C61: 0.007441651706 | D61: 0.001535008977 | E61: 1 | F61: 0.0015550616 | G61: -1.483269712e-07 | H61: 9.015642254e-05 | I61: -0.001645218022 | J61: 0.007351495283 | K61: 9.025642254e-05 | L61: 0.001625165399 | M61: 9.955478116 | N61: 9.955478116
A62: 58 | B62: 2.90E+00 | C62: 0.007401433692 | D62: 0.001559139785 | E62: 1 | F62: 0.001579192408 | G62: -1.475221032e-07 | H62: 8.846089471e-05 | I62: -0.001667653303 | J62: 0.007312972797 | K62: 8.856089471e-05 | L62: 0.00164760068 | M62: 9.947241995 | N62: 9.947241995
A63: 59 | B63: 2.95E+00 | C63: 0.007361359571 | D63: 0.001583184258 | E63: 1 | F63: 0.001603236881 | G63: -1.46720115e-07 | H63: 8.681402127e-05 | I63: -0.001690050902 | J63: 0.007274545549 | K63: 8.691402127e-05 | L63: 0.001669998279 | M63: 9.939089844 | N63: 9.939089844
A64: 60 | B64: 3.00E+00 | C64: 0.007321428571 | D64: 0.001607142857 | E64: 1 | F64: 0.00162719548 | G64: -1.459209909e-07 | H64: 8.52138495e-05 | I64: -0.00171240933 | J64: 0.007236214722 | K64: 8.53138495e-05 | L64: 0.001692356707 | M64: 9.931019538 | N64: 9.931019538
A65: 61 | B65: 3.05E+00 | C65: 0.007281639929 | D65: 0.001631016043 | E65: 1 | F65: 0.001651068666 | G65: -1.451247158e-07 | H65: 8.365852375e-05 | I65: -0.00173472719 | J65: 0.007197981405 | K65: 8.375852375e-05 | L65: 0.001714674567 | M65: 9.923029014 | N65: 9.923029014
A66: 62 | B66: 3.10E+00 | C66: 0.007241992883 | D66: 0.00165480427 | E66: 1 | F66: 0.001674856894 | G66: -1.443312744e-07 | H66: 8.214627986e-05 | I66: -0.001757003173 | J66: 0.007159846603 | K66: 8.224627986e-05 | L66: 0.00173695055 | M66: 9.915116263 | N66: 9.915116263
A67: 63 | B67: 3.15E+00 | C67: 0.007202486679 | D67: 0.001678507993 | E67: 1 | F67: 0.001698560616 | G67: -1.435406516e-07 | H67: 8.067543997e-05 | I67: -0.001779236056 | J67: 0.007121811239 | K67: 8.077543997e-05 | L67: 0.001759183433 | M67: 9.907279332 | N67: 9.907279332
A68: 64 | B68: 3.20E+00 | C68: =IF((($AB$5*$AB$4/1000)-($AB$8*B68/1000))>0,(($AB$5*$AB$4/1000)-($AB$8*B68/1000))/((B68+$AB$4)/1000),NA()) -> 0.007163120567 | D68: =IF(C68>0,($AB$8*B68/1000)/((B68+$AB$4)/1000),NA()) -> 0.00170212766 | E68: 1 | F68: 0.001722180283 | G68: -1.427528325e-07 | H68: 7.924440764e-05 | I68: =IF(C68>0,((-F68)-SQRT(F68^(2)-4*E68*G68))/(2*E68),NA()) -> -0.00180142469 | J68: 0.00708387616 | K68: 7.934440764e-05 | L68: 0.001781372067 | M68: 9.899516322 | N68: 9.899516322
A69: 65 | B69: 3.25E+00 | C69: 0.007123893805 | D69: 0.001725663717 | E69: =IF(C69>0,1,NA()) -> 1 | F69: =IF(C69>0,D69+10^(-7)+10^(-$AD$6),NA()) -> 0.00174571634 | G69: =IF(C69>0,(10^(-7)*D69)-(10^(-$AD$6)*C69),NA()) -> -1.419678021e-07 | H69: =IF(C69>0,((-F69)+SQRT(F69^(2)-4*E69*G69))/(2*E69),NA()) -> 7.785166324e-05 | I69: -0.001823568003 | J69: =IF(C69>0,C69-H69,NA()) -> 0.007046042142 | K69: =IF(C69>0,H69+10^(-7),NA()) -> 7.795166324e-05 | L69: =IF(C69>0,D69+H69,NA()) -> 0.00180351538 | M69: =IF(C69>0,14+LOG(K69),NA()) -> 9.891825386 | N69: =IF(M69<$AG$11,NA(),M69) -> 9.891825386 | O69: =IF((($AB$8*B69/1000)-($AB$5*$AB$4/1000))>0,(($AB$8*B69/1000)-($AB$5*$AB$4/1000))/((B69+$AB$4)/1000),NA()) ->  | P69: =IF(O69>0,($AB$5*$AB$4/1000)/((B69+$AB$4)/1000),NA()) ->  | Q69: =IF(O69>0,1,NA()) ->  | R69: =IF(O69>0,O69+10^(-7)+10^(-(14-$AD$6)),NA()) ->  | S69: =IF(O69>0,-(10^(-(14-$AD$6))*P69),NA()) ->  | T69: =IF(O69>0,((-R69)+SQRT(R69^(2)-4*Q69*S69))/(2*Q69),NA()) ->  | U69: =IF(O69>0,((-R69)-SQRT(R69^(2)-4*Q69*S69))/(2*Q69),NA()) ->  | V69: =IF(Q69>0,O69+10^(-7)+T69,NA()) ->  | W69: =IF(O69>0,-LOG(V69),NA()) ->  | X69: =IF(W69>$AG$11,NA(),W69) -> 
A70: =A69+1 -> 66 | B70: 3.30E+00 | C70: 0.007084805654 | D70: 0.001749116608 | E70: 1 | F70: 0.001769169231 | G70: -1.411855456e-07 | H70: 7.649575971e-05 | I70: -0.001845664991 | J70: 0.007008309894 | K70: 7.659575971e-05 | L70: 0.001825612367 | M70: 9.884204728 | N70: 9.884204728
A71: 67 | B71: =A71*$AB$9 -> 3.35E+00 | C71: 0.007045855379 | D71: 0.001772486772 | E71: 1 | F71: 0.001792539396 | G71: -1.404060485e-07 | H71: 7.517531848e-05 | I71: -0.001867714714 | J71: 0.006970680061 | K71: 7.527531848e-05 | L71: 0.001847662091 | M71: 9.876652602 | N71: 9.876652602
A72: 68 | B72: 3.40E+00 | C72: 0.007007042254 | D72: 0.001795774648 | E72: 1 | F72: 0.001815827271 | G72: -1.39629296e-07 | H72: 7.38890257e-05 | I72: -0.001889716297 | J72: 0.006933153228 | K72: 7.39890257e-05 | L72: 0.001869663674 | M72: 9.869167308 | N72: 9.869167308
A73: 69 | B73: 3.45E+00 | C73: 0.006968365554 | D73: 0.001818980668 | E73: 1 | F73: 0.001839033291 | G73: -1.388552738e-07 | H73: 7.263562867e-05 | I73: -0.00191166892 | J73: 0.006895729925 | K73: 7.273562867e-05 | L73: 0.001891616297 | M73: 9.861747197 | N73: 9.861747197
A74: 70 | B74: 3.50E+00 | C74: 0.006929824561 | D74: 0.001842105263 | E74: 1 | F74: 0.001862157886 | G74: -1.380839674e-07 | H74: 7.141393254e-05 | I74: -0.001933571819 | J74: 0.006858410629 | K74: 7.151393254e-05 | L74: 0.001913519196 | M74: 9.854390661 | N74: 9.854390661
A75: 71 | B75: 3.55E+00 | C75: 0.006891418564 | D75: 0.001865148862 | E75: 1 | F75: 0.001885201485 | G75: -1.373153627e-07 | H75: 7.022279715e-05 | I75: -0.001955424282 | J75: 0.006821195767 | K75: 7.032279715e-05 | L75: 0.001935371659 | M75: 9.847096137 | N75: 9.847096137
A76: 72 | B76: 3.60E+00 | C76: 0.006853146853 | D76: 0.001888111888 | E76: 1 | F76: 0.001908164511 | G76: -1.365494454e-07 | H76: 6.906113406e-05 | I76: -0.001977225645 | J76: 0.006784085719 | K76: 6.916113406e-05 | L76: 0.001957173022 | M76: 9.839862106 | N76: 9.839862106
A77: 73 | B77: 3.65E+00 | C77: 0.006815008726 | D77: 0.001910994764 | E77: 1 | F77: 0.001931047388 | G77: -1.357862014e-07 | H77: 6.792790385e-05 | I77: -0.001998975291 | J77: 0.006747080822 | K77: 6.802790385e-05 | L77: 0.001978922668 | M77: 9.832687089 | N77: 9.832687089
A78: 74 | B78: 3.70E+00 | C78: 0.006777003484 | D78: 0.001933797909 | E78: 1 | F78: 0.001953850533 | G78: -1.350256168e-07 | H78: 6.682211346e-05 | I78: -0.002020672646 | J78: 0.006710181371 | K78: 6.692211346e-05 | L78: 0.002000620023 | M78: 9.825569648 | N78: 9.825569648
A79: 75 | B79: 3.75E+00 | C79: 0.006739130435 | D79: 0.001956521739 | E79: 1 | F79: 0.001976574362 | G79: -1.342676777e-07 | H79: 6.574281376e-05 | I79: -0.002042317176 | J79: 0.006673387621 | K79: 6.584281376e-05 | L79: 0.002022264553 | M79: 9.818508382 | N79: 9.818508382
A80: 76 | B80: 3.80E+00 | C80: 0.006701388889 | D80: 0.001979166667 | E80: 1 | F80: 0.00199921929 | G80: -1.335123704e-07 | H80: 6.468909727e-05 | I80: -0.002063908387 | J80: 0.006636699792 | K80: 6.478909727e-05 | L80: 0.002043855764 | M80: 9.811501929 | N80: 9.811501929
A81: 77 | B81: 3.85E+00 | C81: 0.006663778163 | D81: 0.002001733102 | E81: 1 | F81: 0.002021785725 | G81: -1.327596811e-07 | H81: 6.366009597e-05 | I81: -0.002085445821 | J81: 0.006600118067 | K81: 6.376009597e-05 | L81: 0.002065393198 | M81: 9.804548962 | N81: 9.804548962
A82: 78 | B82: 3.90E+00 | C82: 0.006626297578 | D82: 0.002024221453 | E82: 1 | F82: 0.002044274076 | G82: -1.320095963e-07 | H82: 6.265497927e-05 | I82: -0.002106929056 | J82: 0.006563642599 | K82: 6.275497927e-05 | L82: 0.002086876433 | M82: 9.79764819 | N82: 9.79764819
A83: 79 | B83: 3.95E+00 | C83: 0.006588946459 | D83: 0.002046632124 | E83: 1 | F83: 0.002066684748 | G83: -1.312621024e-07 | H83: 6.167295209e-05 | I83: -0.0021283577 | J83: 0.006527273507 | K83: 6.177295209e-05 | L83: 0.002108305076 | M83: 9.790798357 | N83: 9.790798357
A84: 80 | B84: 4.00E+00 | C84: 0.006551724138 | D84: 0.002068965517 | E84: 1 | F84: 0.00208901814 | G84: -1.305171862e-07 | H84: 6.071325308e-05 | I84: -0.002149731393 | J84: 0.006491010885 | K84: 6.081325308e-05 | L84: 0.00212967877 | M84: 9.783998236 | N84: 9.783998236
A85: 81 | B85: 4.05E+00 | C85: 0.006514629948 | D85: 0.002091222031 | E85: 1 | F85: 0.002111274654 | G85: -1.297748341e-07 | H85: 5.977515288e-05 | I85: -0.002171049807 | J85: 0.006454854795 | K85: 5.987515288e-05 | L85: 0.002150997184 | M85: 9.777246635 | N85: 9.777246635
A86: 82 | B86: 4.10E+00 | C86: 0.00647766323 | D86: 0.002113402062 | E86: 1 | F86: 0.002133454685 | G86: -1.290350331e-07 | H86: 5.885795252e-05 | I86: -0.002192312638 | J86: 0.006418805278 | K86: 5.895795252e-05 | L86: 0.002172260014 | M86: 9.770542393 | N86: 9.770542393
A87: 83 | B87: 4.15E+00 | C87: 0.006440823328 | D87: 0.002135506003 | E87: 1 | F87: 0.002155558627 | G87: -1.2829777e-07 | H87: 5.796098193e-05 | I87: -0.002213519609 | J87: 0.006382862346 | K87: 5.806098193e-05 | L87: 0.002193466985 | M87: 9.763884376 | N87: 9.763884376
A88: 84 | B88: 4.20E+00 | C88: 0.006404109589 | D88: 0.002157534247 | E88: 1 | F88: 0.00217758687 | G88: -1.275630318e-07 | H88: 5.708359851e-05 | I88: -0.002234670468 | J88: 0.006347025991 | K88: 5.718359851e-05 | L88: 0.002214617845 | M88: 9.757271482 | N88: 9.757271482
A89: 85 | B89: 4.25E+00 | C89: 0.006367521368 | D89: 0.002179487179 | E89: 1 | F89: 0.002199539803 | G89: -1.268308055e-07 | H89: 5.622518577e-05 | I89: -0.002255764988 | J89: 0.006311296182 | K89: 5.632518577e-05 | L89: 0.002235712365 | M89: 9.750702633 | N89: 9.750702633
A90: 86 | B90: 4.30E+00 | C90: 0.00633105802 | D90: 0.002201365188 | E90: 1 | F90: 0.002221417811 | G90: -1.261010783e-07 | H90: 5.538515206e-05 | I90: -0.002276802963 | J90: 0.006275672868 | K90: 5.548515206e-05 | L90: 0.00225675034 | M90: 9.744176781 | N90: 9.744176781
A91: 87 | B91: 4.35E+00 | C91: 0.00629471891 | D91: 0.002223168654 | E91: 1 | F91: 0.002243221277 | G91: -1.253738374e-07 | H91: 5.456292937e-05 | I91: -0.002297784207 | J91: 0.00624015598 | K91: 5.466292937e-05 | L91: 0.002277731584 | M91: 9.737692902 | N91: 9.737692902
A92: 88 | B92: 4.40E+00 | C92: 0.006258503401 | D92: 0.002244897959 | E92: 1 | F92: 0.002264950582 | G92: -1.246490701e-07 | H92: 5.375797222e-05 | I92: -0.002318708555 | J92: 0.006204745429 | K92: 5.385797222e-05 | L92: 0.002298655931 | M92: 9.731249998 | N92: 9.731249998
A93: 89 | B93: 4.45E+00 | C93: 0.006222410866 | D93: 0.00226655348 | E93: 1 | F93: 0.002286606104 | G93: -1.239267637e-07 | H93: 5.296975655e-05 | I93: -0.00233957586 | J93: 0.006169441109 | K93: 5.306975655e-05 | L93: 0.002319523237 | M93: 9.724847095 | N93: 9.724847095
A94: 90 | B94: 4.50E+00 | C94: 0.006186440678 | D94: 0.002288135593 | E94: 1 | F94: 0.002308188216 | G94: -1.232069059e-07 | H94: 5.219777875e-05 | I94: -0.002360385995 | J94: 0.006134242899 | K94: 5.229777875e-05 | L94: 0.002340333372 | M94: 9.718483243 | N94: 9.718483243
A95: 91 | B95: 4.55E+00 | C95: 0.006150592217 | D95: 0.00230964467 | E95: 1 | F95: 0.002329697293 | G95: -1.224894842e-07 | H95: 5.144155465e-05 | I95: -0.002381138848 | J95: 0.006099150662 | K95: 5.154155465e-05 | L95: 0.002361086225 | M95: 9.712157514 | N95: 9.712157514
A96: 92 | B96: 4.60E+00 | C96: 0.006114864865 | D96: 0.002331081081 | E96: 1 | F96: 0.002351133704 | G96: -1.217744862e-07 | H96: 5.070061869e-05 | I96: -0.002401834323 | J96: 0.006064164246 | K96: 5.080061869e-05 | L96: 0.0023817817 | M96: 9.705869001 | N96: 9.705869001
A97: 93 | B97: 4.65E+00 | C97: 0.00607925801 | D97: 0.002352445194 | E97: 1 | F97: 0.002372497817 | G97: -1.210618996e-07 | H97: 4.997452296e-05 | I97: -0.00242247234 | J97: 0.006029283487 | K97: 5.007452296e-05 | L97: 0.002402419717 | M97: 9.699616821 | N97: 9.699616821
A98: 94 | B98: 4.70E+00 | C98: 0.006043771044 | D98: 0.002373737374 | E98: 1 | F98: 0.002393789997 | G98: -1.203517123e-07 | H98: 4.92628365e-05 | I98: -0.002443052833 | J98: 0.005994508207 | K98: 4.93628365e-05 | L98: 0.00242300021 | M98: 9.693400107 | N98: 9.693400107
A99: 95 | B99: 4.75E+00 | C99: 0.006008403361 | D99: 0.002394957983 | E99: 1 | F99: 0.002415010606 | G99: -1.196439122e-07 | H99: 4.856514445e-05 | I99: -0.002463575751 | J99: 0.005959838217 | K99: 4.866514445e-05 | L99: 0.002443523128 | M99: 9.687218017 | N99: 9.687218017
A100: 96 | B100: 4.80E+00 | C100: 0.005973154362 | D100: 0.002416107383 | E100: 1 | F100: 0.002436160006 | G100: -1.189384873e-07 | H100: 4.788104735e-05 | I100: -0.002484041053 | J100: 0.005925273315 | K100: 4.798104735e-05 | L100: 0.00246398843 | M100: 9.681069724 | N100: 9.681069724
A101: 97 | B101: 4.85E+00 | C101: 0.005938023451 | D101: 0.00243718593 | E101: 1 | F101: 0.002457238553 | G101: -1.182354256e-07 | H101: 4.721016044e-05 | I101: -0.002504448713 | J101: 0.00589081329 | K101: 4.731016044e-05 | L101: 0.00248439609 | M101: 9.674954421 | N101: 9.674954421
A102: 98 | B102: 4.90E+00 | C102: 0.005903010033 | D102: 0.00245819398 | E102: 1 | F102: 0.002478246603 | G102: -1.175347152e-07 | H102: 4.655211304e-05 | I102: -0.002524798716 | J102: 0.00585645792 | K102: 4.665211304e-05 | L102: 0.002504746093 | M102: 9.668871319 | N102: 9.668871319
A103: 99 | B103: 4.95E+00 | C103: 0.005868113523 | D103: 0.002479131886 | E103: 1 | F103: 0.00249918451 | G103: -1.168363445e-07 | H103: 4.590654789e-05 | I103: -0.002545091058 | J103: 0.005822206975 | K103: 4.600654789e-05 | L103: 0.002525038434 | M103: 9.662819647 | N103: 9.662819647
A104: 100 | B104: 5.00E+00 | C104: 0.005833333333 | D104: 0.0025 | E104: 1 | F104: 0.002520052623 | G104: -1.161403017e-07 | H104: 4.527312057e-05 | I104: -0.002565325744 | J104: 0.005788060213 | K104: 4.537312057e-05 | L104: 0.002545273121 | M104: 9.656798649 | N104: 9.656798649
A105: 101 | B105: 5.05E+00 | C105: 0.005798668885 | D105: 0.002520798669 | E105: 1 | F105: 0.002540851292 | G105: -1.154465752e-07 | H105: 4.465149895e-05 | I105: -0.002585502791 | J105: 0.005754017386 | K105: 4.475149895e-05 | L105: 0.002565450168 | M105: 9.650807587 | N105: 9.650807587
A106: 102 | B106: 5.10E+00 | C106: 0.005764119601 | D106: 0.002541528239 | E106: 1 | F106: 0.002561580862 | G106: -1.147551534e-07 | H106: 4.404136266e-05 | I106: -0.002605622225 | J106: 0.005720078239 | K106: 4.414136266e-05 | L106: 0.002585569602 | M106: 9.644845736 | N106: 9.644845736
A107: 103 | B107: 5.15E+00 | C107: 0.005729684909 | D107: 0.002562189055 | E107: 1 | F107: 0.002582241678 | G107: -1.140660248e-07 | H107: 4.344240257e-05 | I107: -0.00262568408 | J107: 0.005686242506 | K107: 4.354240257e-05 | L107: 0.002605631457 | M107: 9.638912389 | N107: 9.638912389
A108: 104 | B108: 5.20E+00 | C108: 0.005695364238 | D108: 0.002582781457 | E108: 1 | F108: 0.00260283408 | G108: -1.133791782e-07 | H108: 4.285432033e-05 | I108: -0.0026456884 | J108: 0.005652509918 | K108: 4.295432033e-05 | L108: 0.002625635777 | M108: 9.633006852 | N108: 9.633006852
A109: 105 | B109: 5.25E+00 | C109: 0.005661157025 | D109: 0.002603305785 | E109: 1 | F109: 0.002623358408 | G109: -1.126946021e-07 | H109: 4.22768279e-05 | I109: -0.002665635236 | J109: 0.005618880197 | K109: 4.23768279e-05 | L109: 0.002645582613 | M109: 9.627128445 | N109: 9.627128445
A110: 106 | B110: 5.30E+00 | C110: 0.005627062706 | D110: 0.002623762376 | E110: 1 | F110: 0.002643814999 | G110: -1.120122854e-07 | H110: 4.170964714e-05 | I110: -0.002685524647 | J110: 0.005585353059 | K110: 4.180964714e-05 | L110: 0.002665472023 | M110: 9.621276502 | N110: 9.621276502
A111: 107 | B111: 5.35E+00 | C111: 0.005593080725 | D111: 0.002644151565 | E111: 1 | F111: 0.002664204188 | G111: -1.113322168e-07 | H111: 4.115250935e-05 | I111: -0.002705356698 | J111: 0.005551928216 | K111: 4.125250935e-05 | L111: 0.002685304074 | M111: 9.615450371 | N111: 9.615450371
A112: 108 | B112: 5.40E+00 | C112: 0.005559210526 | D112: 0.002664473684 | E112: 1 | F112: 0.002684526307 | G112: -1.106543853e-07 | H112: 4.060515495e-05 | I112: -0.002725131462 | J112: 0.005518605371 | K112: 4.070515495e-05 | L112: 0.002705078839 | M112: 9.609649412 | N112: 9.609649412
A113: 109 | B113: 5.45E+00 | C113: 0.00552545156 | D113: 0.002684729064 | E113: 1 | F113: 0.002704781687 | G113: -1.099787798e-07 | H113: 4.006733303e-05 | I113: -0.00274484902 | J113: 0.005485384227 | K113: 4.016733303e-05 | L113: 0.002724796397 | M113: 9.603872997 | N113: 9.603872997
A114: 110 | B114: 5.50E+00 | C114: 0.005491803279 | D114: 0.002704918033 | E114: 1 | F114: 0.002724970656 | G114: -1.093053894e-07 | H114: 3.953880105e-05 | I114: -0.002764509457 | J114: 0.005452264478 | K114: 3.963880105e-05 | L114: 0.002744456834 | M114: 9.59812051 | N114: 9.59812051
A115: 111 | B115: 5.55E+00 | C115: 0.005458265139 | D115: 0.002725040917 | E115: 1 | F115: 0.00274509354 | G115: -1.086342033e-07 | H115: 3.90193245e-05 | I115: -0.002784112864 | J115: 0.005419245815 | K115: 3.91193245e-05 | L115: 0.002764060241 | M115: 9.592391347 | N115: 9.592391347
A116: 112 | B116: 5.60E+00 | C116: 0.005424836601 | D116: 0.002745098039 | E116: 1 | F116: 0.002765150662 | G116: -1.079652106e-07 | H116: 3.850867652e-05 | I116: -0.002803659339 | J116: 0.005386327925 | K116: 3.860867652e-05 | L116: 0.002783606716 | M116: 9.586684915 | N116: 9.586684915
A117: 113 | B117: 5.65E+00 | C117: 0.005391517129 | D117: 0.002765089723 | E117: 1 | F117: 0.002785142346 | G117: -1.072984005e-07 | H117: 3.800663767e-05 | I117: -0.002823148983 | J117: 0.005353510491 | K117: 3.810663767e-05 | L117: 0.00280309636 | M117: 9.581000631 | N117: 9.581000631
A118: 114 | B118: 5.70E+00 | C118: 0.005358306189 | D118: 0.002785016287 | E118: 1 | F118: 0.00280506891 | G118: -1.066337625e-07 | H118: 3.751299559e-05 | I118: -0.002842581905 | J118: 0.005320793193 | K118: 3.761299559e-05 | L118: 0.002822529282 | M118: 9.575337923 | N118: 9.575337923
A119: 115 | B119: 5.75E+00 | C119: 0.005325203252 | D119: 0.002804878049 | E119: 1 | F119: 0.002824930672 | G119: -1.059712859e-07 | H119: 3.702754473e-05 | I119: -0.002861958217 | J119: 0.005288175707 | K119: 3.712754473e-05 | L119: 0.002841905594 | M119: 9.56969623 | N119: 9.56969623
A120: 116 | B120: 5.80E+00 | C120: 0.005292207792 | D120: 0.002824675325 | E120: 1 | F120: 0.002844727948 | G120: -1.053109602e-07 | H120: 3.655008609e-05 | I120: -0.002881278034 | J120: 0.005255657706 | K120: 3.665008609e-05 | L120: 0.002861225411 | M120: 9.564074999 | N120: 9.564074999
A121: 117 | B121: 5.85E+00 | C121: 0.005259319287 | D121: 0.002844408428 | E121: 1 | F121: 0.002864461051 | G121: -1.046527749e-07 | H121: 3.608042695e-05 | I121: -0.002900541478 | J121: 0.00522323886 | K121: 3.618042695e-05 | L121: 0.002880488855 | M121: 9.558473687 | N121: 9.558473687
A122: 118 | B122: 5.90E+00 | C122: 0.005226537217 | D122: 0.00286407767 | E122: 1 | F122: 0.002884130293 | G122: -1.039967197e-07 | H122: 3.561838066e-05 | I122: -0.002919748674 | J122: 0.005190918836 | K122: 3.571838066e-05 | L122: 0.002899696051 | M122: 9.552891761 | N122: 9.552891761
A123: 119 | B123: 5.95E+00 | C123: 0.005193861066 | D123: 0.00288368336 | E123: 1 | F123: 0.002903735983 | G123: -1.033427842e-07 | H123: 3.516376638e-05 | I123: -0.00293889975 | J123: 0.0051586973 | K123: 3.526376638e-05 | L123: 0.002918847127 | M123: 9.547328696 | N123: 9.547328696
A124: 120 | B124: 6.00E+00 | C124: 0.005161290323 | D124: 0.002903225806 | E124: 1 | F124: 0.00292327843 | G124: -1.026909582e-07 | H124: 3.471640885e-05 | I124: -0.002957994838 | J124: 0.005126573914 | K124: 3.481640885e-05 | L124: 0.002937942215 | M124: 9.541783974 | N124: 9.541783974
A125: 121 | B125: 6.05E+00 | C125: 0.005128824477 | D125: 0.002922705314 | E125: 1 | F125: 0.002942757937 | G125: -1.020412315e-07 | H125: 3.427613822e-05 | I125: -0.002977034075 | J125: 0.005094548338 | K125: 3.437613822e-05 | L125: 0.002956981452 | M125: 9.536257087 | N125: 9.536257087
A126: 122 | B126: 6.10E+00 | C126: 0.005096463023 | D126: 0.002942122186 | E126: 1 | F126: 0.00296217481 | G126: -1.013935939e-07 | H126: 3.38427898e-05 | I126: -0.002996017599 | J126: 0.005062620233 | K126: 3.39427898e-05 | L126: 0.002975964976 | M126: 9.530747535 | N126: 9.530747535
A127: 123 | B127: 6.15E+00 | C127: 0.005064205457 | D127: 0.002961476726 | E127: 1 | F127: 0.002981529349 | G127: -1.007480354e-07 | H127: 3.341620391e-05 | I127: -0.003014945553 | J127: 0.005030789254 | K127: 3.351620391e-05 | L127: 0.002994892929 | M127: 9.525254824 | N127: 9.525254824
A128: 124 | B128: 6.20E+00 | C128: 0.005032051282 | D128: 0.002980769231 | E128: 1 | F128: 0.003000821854 | G128: -1.00104546e-07 | H128: 3.299622566e-05 | I128: -0.00303381808 | J128: 0.004999055056 | K128: 3.309622566e-05 | L128: 0.003013765456 | M128: 9.519778469 | N128: 9.519778469
A129: 125 | B129: 6.25E+00 | C129: 0.005 | D129: 0.003 | E129: 1 | F129: 0.003020052623 | G129: -9.946311575e-08 | H129: 3.25827048e-05 | I129: -0.003052635328 | J129: 0.004967417295 | K129: 3.26827048e-05 | L129: 0.003032582705 | M129: 9.514317991 | N129: 9.514317991
A130: 126 | B130: 6.30E+00 | C130: 0.004968051118 | D130: 0.003019169329 | E130: 1 | F130: 0.003039221952 | G130: -9.882373482e-08 | H130: 3.217549552e-05 | I130: -0.003071397448 | J130: 0.004935875623 | K130: 3.227549552e-05 | L130: 0.003051344825 | M130: 9.508872919 | N130: 9.508872919
A131: 127 | B131: 6.35E+00 | C131: 0.004936204147 | D131: 0.003038277512 | E131: 1 | F131: 0.003058330135 | G131: -9.818639338e-08 | H131: 3.177445632e-05 | I131: -0.003090104591 | J131: 0.00490442969 | K131: 3.187445632e-05 | L131: 0.003070051968 | M131: 9.503442786 | N131: 9.503442786
A132: 128 | B132: 6.40E+00 | C132: =IF((($AB$5*$AB$4/1000)-($AB$8*B132/1000))>0,(($AB$5*$AB$4/1000)-($AB$8*B132/1000))/((B132+$AB$4)/1000),NA()) -> 0.004904458599 | D132: =IF(C132>0,($AB$8*B132/1000)/((B132+$AB$4)/1000),NA()) -> 0.003057324841 | E132: 1 | F132: 0.003077377464 | G132: -9.755108169e-08 | H132: 3.137944986e-05 | I132: =IF(C132>0,((-F132)-SQRT(F132^(2)-4*E132*G132))/(2*E132),NA()) -> -0.003108756914 | J132: 0.004873079149 | K132: 3.147944986e-05 | L132: 0.003088704291 | M132: 9.498027134 | N132: 9.498027134
A133: 129 | B133: 6.45E+00 | C133: 0.00487281399 | D133: 0.003076311606 | E133: =IF(C133>0,1,NA()) -> 1 | F133: =IF(C133>0,D133+10^(-7)+10^(-$AD$6),NA()) -> 0.003096364229 | G133: =IF(C133>0,(10^(-7)*D133)-(10^(-$AD$6)*C133),NA()) -> -9.691779007e-08 | H133: =IF(C133>0,((-F133)+SQRT(F133^(2)-4*E133*G133))/(2*E133),NA()) -> 3.099034275e-05 | I133: -0.003127354572 | J133: =IF(C133>0,C133-H133,NA()) -> 0.004841823648 | K133: =IF(C133>0,H133+10^(-7),NA()) -> 3.109034275e-05 | L133: =IF(C133>0,D133+H133,NA()) -> 0.003107301948 | M133: =IF(C133>0,14+LOG(K133),NA()) -> 9.49262551 | N133: =IF(M133<$AG$11,NA(),M133) -> 9.49262551 | O133: =IF((($AB$8*B133/1000)-($AB$5*$AB$4/1000))>0,(($AB$8*B133/1000)-($AB$5*$AB$4/1000))/((B133+$AB$4)/1000),NA()) ->  | P133: =IF(O133>0,($AB$5*$AB$4/1000)/((B133+$AB$4)/1000),NA()) ->  | Q133: =IF(O133>0,1,NA()) ->  | R133: =IF(O133>0,O133+10^(-7)+10^(-(14-$AD$6)),NA()) ->  | S133: =IF(O133>0,-(10^(-(14-$AD$6))*P133),NA()) ->  | T133: =IF(O133>0,((-R133)+SQRT(R133^(2)-4*Q133*S133))/(2*Q133),NA()) ->  | U133: =IF(O133>0,((-R133)-SQRT(R133^(2)-4*Q133*S133))/(2*Q133),NA()) ->  | V133: =IF(Q133>0,O133+10^(-7)+T133,NA()) ->  | W133: =IF(O133>0,-LOG(V133),NA()) ->  | X133: =IF(W133>$AG$11,NA(),W133) -> 
A134: =A133+1 -> 130 | B134: 6.50E+00 | C134: 0.004841269841 | D134: 0.003095238095 | E134: 1 | F134: 0.003115290718 | G134: -9.62865089e-08 | H134: 3.060700549e-05 | I134: -0.003145897724 | J134: 0.004810662836 | K134: 3.070700549e-05 | L134: 0.003125845101 | M134: 9.487237467 | N134: 9.487237467
A135: 131 | B135: =A135*$AB$9 -> 6.55E+00 | C135: 0.004809825674 | D135: 0.003114104596 | E135: 1 | F135: 0.003134157219 | G135: -9.565722862e-08 | H135: 3.022931228e-05 | I135: -0.003164386531 | J135: 0.004779596361 | K135: 3.032931228e-05 | L135: 0.003144333908 | M135: 9.481862563 | N135: 9.481862563
A136: 132 | B136: 6.60E+00 | C136: 0.004778481013 | D136: 0.003132911392 | E136: 1 | F136: 0.003152964016 | G136: -9.502993973e-08 | H136: 2.98571409e-05 | I136: -0.003182821156 | J136: 0.004748623872 | K136: 2.99571409e-05 | L136: 0.003162768533 | M136: 9.476500362 | N136: 9.476500362
A137: 133 | B137: 6.65E+00 | C137: 0.004747235387 | D137: 0.003151658768 | E137: 1 | F137: 0.003171711391 | G137: -9.44046328e-08 | H137: 2.949037261e-05 | I137: -0.003201201764 | J137: 0.004717745014 | K137: 2.959037261e-05 | L137: 0.00318114914 | M137: 9.471150434 | N137: 9.471150434
A138: 134 | B138: 6.70E+00 | C138: 0.004716088328 | D138: 0.003170347003 | E138: 1 | F138: 0.003190399626 | G138: -9.378129845e-08 | H138: 2.912889198e-05 | I138: -0.003219528518 | J138: 0.004686959436 | K138: 2.922889198e-05 | L138: 0.003199475895 | M138: 9.465812352 | N138: 9.465812352
A139: 135 | B139: 6.75E+00 | C139: 0.00468503937 | D139: 0.003188976378 | E139: 1 | F139: 0.003209029001 | G139: -9.315992735e-08 | H139: 2.877258684e-05 | I139: -0.003237801588 | J139: 0.004656266783 | K139: 2.887258684e-05 | L139: 0.003217748965 | M139: 9.460485696 | N139: 9.460485696
A140: 136 | B140: 6.80E+00 | C140: 0.00465408805 | D140: 0.00320754717 | E140: 1 | F140: 0.003227599793 | G140: -9.254051026e-08 | H140: 2.84213481e-05 | I140: -0.003256021141 | J140: 0.004625666702 | K140: 2.85213481e-05 | L140: 0.003235968518 | M140: 9.455170049 | N140: 9.455170049
A141: 137 | B141: 6.85E+00 | C141: 0.004623233909 | D141: 0.003226059655 | E141: 1 | F141: 0.003246112278 | G141: -9.192303795e-08 | H141: 2.807506969e-05 | I141: -0.003274187347 | J141: 0.004595158839 | K141: 2.817506969e-05 | L141: 0.003254134724 | M141: 9.449864999 | N141: 9.449864999
A142: 138 | B142: 6.90E+00 | C142: 0.004592476489 | D142: 0.003244514107 | E142: 1 | F142: 0.00326456673 | G142: -9.13075013e-08 | H142: 2.773364846e-05 | I142: -0.003292300378 | J142: 0.004564742841 | K142: 2.783364846e-05 | L142: 0.003272247755 | M142: 9.444570138 | N142: 9.444570138
A143: 139 | B143: 6.95E+00 | C143: 0.004561815336 | D143: 0.003262910798 | E143: 1 | F143: 0.003282963421 | G143: -9.069389121e-08 | H143: 2.739698404e-05 | I143: -0.003310360405 | J143: 0.004534418352 | K143: 2.749698404e-05 | L143: 0.003290307782 | M143: 9.439285062 | N143: 9.439285062
A144: 140 | B144: 7.00E+00 | C144: 0.00453125 | D144: 0.00328125 | E144: 1 | F144: 0.003301302623 | G144: -9.008219865e-08 | H144: 2.706497882e-05 | I144: -0.003328367602 | J144: 0.004504185021 | K144: 2.716497882e-05 | L144: 0.003308314979 | M144: 9.434009371 | N144: 9.434009371
A145: 141 | B145: 7.05E+00 | C145: 0.004500780031 | D145: 0.003299531981 | E145: 1 | F145: 0.003319584604 | G145: -8.947241464e-08 | H145: 2.673753776e-05 | I145: -0.003346322142 | J145: 0.004474042493 | K145: 2.683753776e-05 | L145: 0.003326269519 | M145: 9.428742669 | N145: 9.428742669
A146: 142 | B146: 7.10E+00 | C146: 0.004470404984 | D146: 0.003317757009 | E146: 1 | F146: 0.003337809632 | G146: -8.886453028e-08 | H146: 2.64145684e-05 | I146: -0.003364224201 | J146: 0.004443990416 | K146: 2.65145684e-05 | L146: 0.003344171578 | M146: 9.423484562 | N146: 9.423484562
A147: 143 | B147: 7.15E+00 | C147: 0.004440124417 | D147: 0.00333592535 | E147: 1 | F147: 0.003355977973 | G147: -8.825853669e-08 | H147: 2.609598072e-05 | I147: -0.003382073954 | J147: 0.004414028436 | K147: 2.619598072e-05 | L147: 0.003362021331 | M147: 9.418234662 | N147: 9.418234662
A148: 144 | B148: 7.20E+00 | C148: 0.004409937888 | D148: 0.003354037267 | E148: 1 | F148: 0.00337408989 | G148: -8.765442507e-08 | H148: 2.578168707e-05 | I148: -0.003399871577 | J148: 0.004384156201 | K148: 2.588168707e-05 | L148: 0.003379818954 | M148: 9.412992582 | N148: 9.412992582
A149: 145 | B149: 7.25E+00 | C149: 0.004379844961 | D149: 0.003372093023 | E149: 1 | F149: 0.003392145646 | G149: -8.705218666e-08 | H149: 2.547160209e-05 | I149: -0.003417617248 | J149: 0.004354373359 | K149: 2.557160209e-05 | L149: 0.003397564625 | M149: 9.407757938 | N149: 9.407757938
A150: 146 | B150: 7.30E+00 | C150: 0.004349845201 | D150: 0.003390092879 | E150: 1 | F150: 0.003410145502 | G150: -8.645181277e-08 | H150: 2.516564268e-05 | I150: -0.003435311145 | J150: 0.004324679559 | K150: 2.526564268e-05 | L150: 0.003415258522 | M150: 9.40253035 | N150: 9.40253035
A151: 147 | B151: 7.35E+00 | C151: 0.004319938176 | D151: 0.003408037094 | E151: 1 | F151: 0.003428089717 | G151: -8.585329475e-08 | H151: 2.486372785e-05 | I151: -0.003452953445 | J151: 0.004295074448 | K151: 2.496372785e-05 | L151: 0.003432900822 | M151: 9.397309439 | N151: 9.397309439
A152: 148 | B152: 7.40E+00 | C152: 0.004290123457 | D152: 0.003425925926 | E152: 1 | F152: 0.003445978549 | G152: -8.525662401e-08 | H152: 2.456577872e-05 | I152: -0.003470544328 | J152: 0.004265557678 | K152: 2.466577872e-05 | L152: 0.003450491705 | M152: 9.392094831 | N152: 9.392094831
A153: 149 | B153: 7.45E+00 | C153: 0.004260400616 | D153: 0.00344375963 | E153: 1 | F153: 0.003463812253 | G153: -8.4661792e-08 | H153: 2.427171842e-05 | I153: -0.003488083972 | J153: 0.004236128898 | K153: 2.437171842e-05 | L153: 0.003468031349 | M153: 9.386886152 | N153: 9.386886152
A154: 150 | B154: 7.50E+00 | C154: 0.004230769231 | D154: 0.003461538462 | E154: 1 | F154: 0.003481591085 | G154: -8.406879025e-08 | H154: 2.398147204e-05 | I154: -0.003505572557 | J154: 0.004206787759 | K154: 2.408147204e-05 | L154: 0.003485519934 | M154: 9.381683031 | N154: 9.381683031
A155: 151 | B155: 7.55E+00 | C155: 0.004201228879 | D155: 0.003479262673 | E155: 1 | F155: 0.003499315296 | G155: -8.347761031e-08 | H155: 2.369496655e-05 | I155: -0.003523010263 | J155: 0.004177533912 | K155: 2.379496655e-05 | L155: 0.003502957639 | M155: 9.376485099 | N155: 9.376485099
A156: 152 | B156: 7.60E+00 | C156: 0.004171779141 | D156: 0.003496932515 | E156: 1 | F156: 0.003516985138 | G156: -8.288824381e-08 | H156: 2.341213076e-05 | I156: -0.003540397269 | J156: 0.00414836701 | K156: 2.351213076e-05 | L156: 0.003520344646 | M156: 9.371291988 | N156: 9.371291988
A157: 153 | B157: 7.65E+00 | C157: 0.004142419602 | D157: 0.003514548239 | E157: 1 | F157: 0.003534600862 | G157: -8.230068242e-08 | H157: 2.313289527e-05 | I157: -0.003557733757 | J157: 0.004119286707 | K157: 2.323289527e-05 | L157: 0.003537681134 | M157: 9.366103335 | N157: 9.366103335
A158: 154 | B158: 7.70E+00 | C158: 0.004113149847 | D158: 0.003532110092 | E158: 1 | F158: 0.003552162715 | G158: -8.171491785e-08 | H158: 2.28571924e-05 | I158: -0.003575019907 | J158: 0.004090292655 | K158: 2.29571924e-05 | L158: 0.003554967284 | M158: 9.360918774 | N158: 9.360918774
A159: 155 | B159: 7.75E+00 | C159: 0.004083969466 | D159: 0.003549618321 | E159: 1 | F159: 0.003569670944 | G159: -8.113094187e-08 | H159: 2.258495612e-05 | I159: -0.0035922559 | J159: 0.00406138451 | K159: 2.268495612e-05 | L159: 0.003572203277 | M159: 9.355737944 | N159: 9.355737944
A160: 156 | B160: 7.80E+00 | C160: 0.004054878049 | D160: 0.003567073171 | E160: 1 | F160: 0.003587125794 | G160: -8.054874631e-08 | H160: 2.231612204e-05 | I160: -0.003609441916 | J160: 0.004032561927 | K160: 2.241612204e-05 | L160: 0.003589389293 | M160: 9.350560482 | N160: 9.350560482
A161: 157 | B161: 7.85E+00 | C161: 0.00402587519 | D161: 0.003584474886 | E161: 1 | F161: 0.003604527509 | G161: -7.996832303e-08 | H161: 2.205062735e-05 | I161: -0.003626578136 | J161: 0.004003824563 | K161: 2.215062735e-05 | L161: 0.003606525513 | M161: 9.345386031 | N161: 9.345386031
A162: 158 | B162: 7.90E+00 | C162: 0.003996960486 | D162: 0.003601823708 | E162: 1 | F162: 0.003621876331 | G162: -7.938966396e-08 | H162: 2.178841073e-05 | I162: -0.003643664742 | J162: 0.003975172076 | K162: 2.188841073e-05 | L162: 0.003623612119 | M162: 9.34021423 | N162: 9.34021423
A163: 159 | B163: 7.95E+00 | C163: 0.003968133536 | D163: 0.003619119879 | E163: 1 | F163: 0.003639172502 | G163: -7.881276106e-08 | H163: 2.152941237e-05 | I163: -0.003660701914 | J163: 0.003946604123 | K163: 2.162941237e-05 | L163: 0.003640649291 | M163: 9.335044721 | N163: 9.335044721
A164: 160 | B164: 8.00E+00 | C164: 0.003939393939 | D164: 0.003636363636 | E164: 1 | F164: 0.00365641626 | G164: -7.823760635e-08 | H164: 2.127357387e-05 | I164: -0.003677689833 | J164: 0.003918120366 | K164: 2.137357387e-05 | L164: 0.00365763721 | M164: 9.329877147 | N164: 9.329877147
A165: 161 | B165: 8.05E+00 | C165: 0.003910741301 | D165: 0.003653555219 | E165: 1 | F165: 0.003673607843 | G165: -7.766419189e-08 | H165: 2.102083825e-05 | I165: -0.003694628681 | J165: 0.003889720463 | K165: 2.112083825e-05 | L165: 0.003674576058 | M165: 9.324711151 | N165: 9.324711151
A166: 162 | B166: 8.10E+00 | C166: 0.003882175227 | D166: 0.003670694864 | E166: 1 | F166: 0.003690747487 | G166: -7.709250981e-08 | H166: 2.077114986e-05 | I166: -0.003711518637 | J166: 0.003861404077 | K166: 2.087114986e-05 | L166: 0.003691466014 | M166: 9.319546376 | N166: 9.319546376
A167: 163 | B167: 8.15E+00 | C167: 0.003853695324 | D167: 0.003687782805 | E167: 1 | F167: 0.003707835429 | G167: -7.652255226e-08 | H167: 2.052445436e-05 | I167: -0.003728359883 | J167: 0.00383317087 | K167: 2.062445436e-05 | L167: 0.00370830726 | M167: 9.314382468 | N167: 9.314382468
A168: 164 | B168: 8.20E+00 | C168: 0.003825301205 | D168: 0.003704819277 | E168: 1 | F168: 0.0037248719 | G168: -7.595431145e-08 | H168: 2.02806987e-05 | I168: -0.003745152599 | J168: 0.003805020506 | K168: 2.03806987e-05 | L168: 0.003725099976 | M168: 9.309219069 | N168: 9.309219069
A169: 165 | B169: 8.25E+00 | C169: 0.003796992481 | D169: 0.003721804511 | E169: 1 | F169: 0.003741857134 | G169: -7.538777963e-08 | H169: 2.003983105e-05 | I169: -0.003761896965 | J169: 0.00377695265 | K169: 2.013983105e-05 | L169: 0.003741844342 | M169: 9.304055823 | N169: 9.304055823
A170: 166 | B170: 8.30E+00 | C170: 0.003768768769 | D170: 0.003738738739 | E170: 1 | F170: 0.003758791362 | G170: -7.482294911e-08 | H170: 1.98018008e-05 | I170: -0.003778593163 | J170: 0.003748966968 | K170: 1.99018008e-05 | L170: 0.00375854054 | M170: 9.298892375 | N170: 9.298892375
A171: 167 | B171: 8.35E+00 | C171: 0.003740629685 | D171: 0.003755622189 | E171: 1 | F171: 0.003775674812 | G171: -7.425981223e-08 | H171: 1.956655848e-05 | I171: -0.003795241371 | J171: 0.003721063127 | K171: 1.966655848e-05 | L171: 0.003775188747 | M171: 9.293728368 | N171: 9.293728368
A172: 168 | B172: 8.40E+00 | C172: 0.00371257485 | D172: 0.00377245509 | E172: 1 | F172: 0.003792507713 | G172: -7.369836139e-08 | H172: 1.933405578e-05 | I172: -0.003811841769 | J172: 0.003693240795 | K172: 1.943405578e-05 | L172: 0.003791789146 | M172: 9.288563445 | N172: 9.288563445
A173: 169 | B173: 8.45E+00 | C173: 0.003684603886 | D173: 0.003789237668 | E173: 1 | F173: 0.003809290291 | G173: -7.313858903e-08 | H173: 1.910424548e-05 | I173: -0.003828394537 | J173: 0.003665499641 | K173: 1.920424548e-05 | L173: 0.003808341914 | M173: 9.283397249 | N173: 9.283397249
A174: 170 | B174: 8.50E+00 | C174: 0.003656716418 | D174: 0.003805970149 | E174: 1 | F174: 0.003826022772 | G174: -7.258048764e-08 | H174: 1.887708143e-05 | I174: -0.003844899854 | J174: 0.003637839336 | K174: 1.897708143e-05 | L174: 0.003824847231 | M174: 9.278229421 | N174: 9.278229421
A175: 171 | B175: 8.55E+00 | C175: 0.003628912072 | D175: 0.003822652757 | E175: 1 | F175: 0.00384270538 | G175: -7.202404973e-08 | H175: 1.865251852e-05 | I175: -0.003861357899 | J175: 0.003610259553 | K175: 1.875251852e-05 | L175: 0.003841305276 | M175: 9.273059603 | N175: 9.273059603
A176: 172 | B176: 8.60E+00 | C176: 0.003601190476 | D176: 0.003839285714 | E176: 1 | F176: 0.003859338337 | G176: -7.146926789e-08 | H176: 1.843051266e-05 | I176: -0.00387776885 | J176: 0.003582759964 | K176: 1.853051266e-05 | L176: 0.003857716227 | M176: 9.267887435 | N176: 9.267887435
A177: 173 | B177: 8.65E+00 | C177: 0.003573551263 | D177: 0.003855869242 | E177: 1 | F177: 0.003875921865 | G177: -7.091613473e-08 | H177: 1.821102073e-05 | I177: -0.003894132886 | J177: 0.003555340242 | K177: 1.831102073e-05 | L177: 0.003874080263 | M177: 9.262712554 | N177: 9.262712554
A178: 174 | B178: 8.70E+00 | C178: 0.003545994065 | D178: 0.003872403561 | E178: 1 | F178: 0.003892456184 | G178: -7.036464292e-08 | H178: 1.799400059e-05 | I178: -0.003910450185 | J178: 0.003528000065 | K178: 1.809400059e-05 | L178: 0.003890397561 | M178: 9.2575346 | N178: 9.2575346
A179: 175 | B179: 8.75E+00 | C179: 0.003518518519 | D179: 0.003888888889 | E179: 1 | F179: 0.003908941512 | G179: -6.981478516e-08 | H179: 1.7779411e-05 | I179: -0.003926720923 | J179: 0.003500739108 | K179: 1.7879411e-05 | L179: 0.0039066683 | M179: 9.252353208 | N179: 9.252353208
A180: 176 | B180: 8.80E+00 | C180: 0.00349112426 | D180: 0.003905325444 | E180: 1 | F180: 0.003925378067 | G180: -6.926655419e-08 | H180: 1.756721164e-05 | I180: -0.003942945279 | J180: 0.003473557049 | K180: 1.766721164e-05 | L180: 0.003922892655 | M180: 9.247168012 | N180: 9.247168012
A181: 177 | B181: 8.85E+00 | C181: 0.003463810931 | D181: 0.003921713442 | E181: 1 | F181: 0.003941766065 | G181: -6.871994282e-08 | H181: 1.735736308e-05 | I181: -0.003959123428 | J181: 0.003446453567 | K181: 1.745736308e-05 | L181: 0.003939070805 | M181: 9.241978645 | N181: 9.241978645
A182: 178 | B182: 8.90E+00 | C182: 0.003436578171 | D182: 0.003938053097 | E182: 1 | F182: 0.00395810572 | G182: -6.817494386e-08 | H182: 1.714982674e-05 | I182: -0.003975255547 | J182: 0.003419428344 | K182: 1.724982674e-05 | L182: 0.003955202924 | M182: 9.236784737 | N182: 9.236784737
A183: 179 | B183: 8.95E+00 | C183: 0.003409425626 | D183: 0.003954344624 | E183: 1 | F183: 0.003974397248 | G183: -6.763155021e-08 | H183: 1.694456486e-05 | I183: -0.003991341812 | J183: 0.003392481061 | K183: 1.704456486e-05 | L183: 0.003971289189 | M183: 9.231585918 | N183: 9.231585918
A184: 180 | B184: 9.00E+00 | C184: 0.003382352941 | D184: 0.003970588235 | E184: 1 | F184: 0.003990640858 | G184: -6.708975477e-08 | H184: 1.674154051e-05 | I184: -0.004007382399 | J184: 0.003365611401 | K184: 1.684154051e-05 | L184: 0.003987329776 | M184: 9.226381814 | N184: 9.226381814
A185: 181 | B185: 9.05E+00 | C185: 0.003355359765 | D185: 0.003986784141 | E185: 1 | F185: 0.004006836764 | G185: -6.654955051e-08 | H185: 1.654071755e-05 | I185: -0.004023377482 | J185: 0.003338819048 | K185: 1.664071755e-05 | L185: 0.004003324859 | M185: 9.221172049 | N185: 9.221172049
A186: 182 | B186: 9.10E+00 | C186: 0.003328445748 | D186: 0.004002932551 | E186: 1 | F186: 0.004022985174 | G186: -6.601093042e-08 | H186: 1.634206059e-05 | I186: -0.004039327235 | J186: 0.003312103687 | K186: 1.644206059e-05 | L186: 0.004019274612 | M186: 9.215956244 | N186: 9.215956244
A187: 183 | B187: 9.15E+00 | C187: 0.003301610542 | D187: 0.004019033675 | E187: 1 | F187: 0.004039086298 | G187: -6.547388756e-08 | H187: 1.614553502e-05 | I187: -0.004055231833 | J187: 0.003285465007 | K187: 1.624553502e-05 | L187: 0.00403517921 | M187: 9.210734019 | N187: 9.210734019
A188: 184 | B188: 9.20E+00 | C188: 0.003274853801 | D188: 0.004035087719 | E188: 1 | F188: 0.004055140342 | G188: -6.493841499e-08 | H188: 1.595110692e-05 | I188: -0.004071091449 | J188: 0.003258902694 | K188: 1.605110692e-05 | L188: 0.004051038826 | M188: 9.205504988 | N188: 9.205504988
A189: 185 | B189: 9.25E+00 | C189: 0.003248175182 | D189: 0.004051094891 | E189: 1 | F189: 0.004071147514 | G189: -6.440450585e-08 | H189: 1.575874312e-05 | I189: -0.004086906257 | J189: 0.003232416439 | K189: 1.585874312e-05 | L189: 0.004066853634 | M189: 9.200268764 | N189: 9.200268764
A190: 186 | B190: 9.30E+00 | C190: 0.003221574344 | D190: 0.004067055394 | E190: 1 | F190: 0.004087108017 | G190: -6.38721533e-08 | H190: 1.556841111e-05 | I190: -0.004102676428 | J190: 0.003206005933 | K190: 1.566841111e-05 | L190: 0.004082623805 | M190: 9.195024958 | N190: 9.195024958
A191: 187 | B191: 9.35E+00 | C191: 0.003195050946 | D191: 0.004082969432 | E191: 1 | F191: 0.004103022055 | G191: -6.334135053e-08 | H191: 1.538007908e-05 | I191: -0.004118402135 | J191: 0.003179670867 | K191: 1.548007908e-05 | L191: 0.004098349511 | M191: 9.189773175 | N191: 9.189773175
A192: 188 | B192: 9.40E+00 | C192: 0.003168604651 | D192: 0.004098837209 | E192: 1 | F192: 0.004118889832 | G192: -6.281209079e-08 | H192: 1.519371586e-05 | I192: -0.004134083548 | J192: 0.003153410935 | K192: 1.529371586e-05 | L192: 0.004114030925 | M192: 9.184513017 | N192: 9.184513017
A193: 189 | B193: 9.45E+00 | C193: 0.003142235123 | D193: 0.004114658926 | E193: 1 | F193: 0.004134711549 | G193: -6.228436737e-08 | H193: 1.500929093e-05 | I193: -0.00414972084 | J193: 0.003127225832 | K193: 1.510929093e-05 | L193: 0.004129668217 | M193: 9.179244084 | N193: 9.179244084
A194: 190 | B194: 9.50E+00 | C194: 0.003115942029 | D194: 0.004130434783 | E194: 1 | F194: 0.004150487406 | G194: -6.175817358e-08 | H194: 1.482677438e-05 | I194: -0.00416531418 | J194: 0.003101115255 | K194: 1.492677438e-05 | L194: 0.004145261557 | M194: 9.173965969 | N194: 9.173965969
A195: 191 | B195: 9.55E+00 | C195: 0.003089725036 | D195: 0.004146164978 | E195: 1 | F195: 0.004166217601 | G195: -6.123350279e-08 | H195: 1.464613693e-05 | I195: -0.004180863738 | J195: 0.003075078899 | K195: 1.474613693e-05 | L195: 0.004160811115 | M195: 9.168678262 | N195: 9.168678262
A196: 192 | B196: 9.60E+00 | C196: =IF((($AB$5*$AB$4/1000)-($AB$8*B196/1000))>0,(($AB$5*$AB$4/1000)-($AB$8*B196/1000))/((B196+$AB$4)/1000),NA()) -> 0.003063583815 | D196: =IF(C196>0,($AB$8*B196/1000)/((B196+$AB$4)/1000),NA()) -> 0.004161849711 | E196: 1 | F196: 0.004181902334 | G196: -6.071034838e-08 | H196: 1.446734986e-05 | I196: =IF(C196>0,((-F196)-SQRT(F196^(2)-4*E196*G196))/(2*E196),NA()) -> -0.004196369684 | J196: 0.003049116465 | K196: 1.456734986e-05 | L196: 0.004176317061 | M196: 9.163380551 | N196: 9.163380551
A197: 193 | B197: 9.65E+00 | C197: 0.003037518038 | D197: 0.004177489177 | E197: =IF(C197>0,1,NA()) -> 1 | F197: =IF(C197>0,D197+10^(-7)+10^(-$AD$6),NA()) -> 0.004197541801 | G197: =IF(C197>0,(10^(-7)*D197)-(10^(-$AD$6)*C197),NA()) -> -6.01887038e-08 | H197: =IF(C197>0,((-F197)+SQRT(F197^(2)-4*E197*G197))/(2*E197),NA()) -> 1.429038507e-05 | I197: -0.004211832186 | J197: =IF(C197>0,C197-H197,NA()) -> 0.003023227652 | K197: =IF(C197>0,H197+10^(-7),NA()) -> 1.439038507e-05 | L197: =IF(C197>0,D197+H197,NA()) -> 0.004191779563 | M197: =IF(C197>0,14+LOG(K197),NA()) -> 9.158072415 | N197: =IF(M197<$AG$11,NA(),M197) -> 9.158072415 | O197: =IF((($AB$8*B197/1000)-($AB$5*$AB$4/1000))>0,(($AB$8*B197/1000)-($AB$5*$AB$4/1000))/((B197+$AB$4)/1000),NA()) ->  | P197: =IF(O197>0,($AB$5*$AB$4/1000)/((B197+$AB$4)/1000),NA()) ->  | Q197: =IF(O197>0,1,NA()) ->  | R197: =IF(O197>0,O197+10^(-7)+10^(-(14-$AD$6)),NA()) ->  | S197: =IF(O197>0,-(10^(-(14-$AD$6))*P197),NA()) ->  | T197: =IF(O197>0,((-R197)+SQRT(R197^(2)-4*Q197*S197))/(2*Q197),NA()) ->  | U197: =IF(O197>0,((-R197)-SQRT(R197^(2)-4*Q197*S197))/(2*Q197),NA()) ->  | V197: =IF(Q197>0,O197+10^(-7)+T197,NA()) ->  | W197: =IF(O197>0,-LOG(V197),NA()) ->  | X197: =IF(W197>$AG$11,NA(),W197) -> 
A198: =A197+1 -> 194 | B198: 9.70E+00 | C198: 0.003011527378 | D198: 0.004193083573 | E198: 1 | F198: 0.004213136197 | G198: -5.966856251e-08 | H198: 1.411521499e-05 | I198: -0.004227251412 | J198: 0.002997412163 | K198: 1.421521499e-05 | L198: 0.004207198788 | M198: 9.152753432 | N198: 9.152753432
A199: 195 | B199: =A199*$AB$9 -> 9.75E+00 | C199: 0.002985611511 | D199: 0.004208633094 | E199: 1 | F199: 0.004228685717 | G199: -5.914991804e-08 | H199: 1.394181262e-05 | I199: -0.004242627529 | J199: 0.002971669698 | K199: 1.404181262e-05 | L199: 0.004222574906 | M199: 9.147423173 | N199: 9.147423173
A200: 196 | B200: 9.80E+00 | C200: 0.002959770115 | D200: 0.004224137931 | E200: 1 | F200: 0.004244190554 | G200: -5.863276392e-08 | H200: 1.377015148e-05 | I200: -0.004257960706 | J200: 0.002945999963 | K200: 1.387015148e-05 | L200: 0.004237908083 | M200: 9.142081204 | N200: 9.142081204
... 803 more rows
